Workbook

Sheet Summary
C2: Lossy Compression | L2: =CONCATENATE("Encoder run times for ", I3) -> Encoder run times for Audio
C3: =CONCATENATE("Over ", $I$3) -> Over Audio | H3: Reference: | I3: Audio | M3: MIT (ECG) | N3: INCART (ECG) | O3: CHBMIT (EEG) | P3: NMR55 (EEG) | Q3: NMR57 (EEG) | R3: Ozdemir (EMG) | S3: All [hours] | T3: All [days]
C4: BD-PSNR1 | D4: BD-PSNR2 | E4: EncT | F4: DecT | H4: Tested: | I4: BWC-2.1 | L4: Sum (Hours) | M4: ='MIT (ECG)'!I679 -> 0 | N4: ='INCART (ECG)'!I1057 -> 0 | O4: ='CHBMIT (EEG)'!I1456 -> 0 | P4: ='NMR55 (EEG)'!I2695 -> 0 | Q4: ='NMR57 (EEG)'!I637 -> 0 | R4: ='Ozdemir (EMG)'!I865 -> 0 | S4: =SUM(M4:R4) -> 0 | T4: =S4/24 -> 0
B5: MIT (ECG) | C5: ='MIT (ECG)'!T677 -> -0.4308192647 | D5: ='MIT (ECG)'!U677 -> -0.428903481 | E5: =IFERROR('MIT (ECG)'!Q677,"N/A") -> N/A | F5: =IFERROR('MIT (ECG)'!R677,"N/A") -> N/A | L5: Max (Hours) | M5: ='MIT (ECG)'!I680 -> 0 | N5: ='INCART (ECG)'!I1058 -> 0 | O5: ='CHBMIT (EEG)'!I1457 -> 0 | P5: ='NMR55 (EEG)'!I2696 -> 0 | Q5: ='NMR57 (EEG)'!I638 -> 0 | R5: ='Ozdemir (EMG)'!I866 -> 0 | S5: =MAX(M5,N5,O5,P5,Q5,R5) -> 0 | T5: =S5/24 -> 0
B6: INCART (ECG) | C6: ='INCART (ECG)'!T1055 -> -0.680069684 | D6: ='INCART (ECG)'!U1055 -> -0.6755842181 | E6: =IFERROR('INCART (ECG)'!Q1055,"N/A") -> N/A | F6: =IFERROR('INCART (ECG)'!R1055,"N/A") -> N/A
B7: CHBMIT (EEG) | C7: ='CHBMIT (EEG)'!T1454 -> -0.3041798418 | D7: ='CHBMIT (EEG)'!U1454 -> -0.300591184 | E7: =IFERROR('CHBMIT (EEG)'!Q1454,"N/A") -> N/A | F7: =IFERROR('CHBMIT (EEG)'!R1454,"N/A") -> N/A
B8: NMR55 (EEG) | C8: ='NMR55 (EEG)'!T2693 -> -0.4733524295 | D8: ='NMR55 (EEG)'!U2693 -> -0.4473610179 | E8: =IFERROR('NMR55 (EEG)'!Q2693,"N/A") -> N/A | F8: =IFERROR('NMR55 (EEG)'!R2693,"N/A") -> N/A | L8: =CONCATENATE("Encoder run times for ", I4) -> Encoder run times for BWC-2.1
B9: NMR57 (EEG) | C9: ='NMR57 (EEG)'!T635 -> -0.4912087102 | D9: ='NMR57 (EEG)'!U635 -> -0.4516103393 | E9: =IFERROR('NMR57 (EEG)'!Q635,"N/A") -> N/A | F9: =IFERROR('NMR57 (EEG)'!R635,"N/A") -> N/A | M9: MIT (ECG) | N9: INCART (ECG) | O9: CHBMIT (EEG) | P9: NMR55 (EEG) | Q9: NMR57 (EEG) | R9: Ozdemir (EMG) | S9: All [hours] | T9: All [days]
B10: Ozdemir (EMG) | C10: ='Ozdemir (EMG)'!T863 -> -0.4134681875 | D10: ='Ozdemir (EMG)'!U863 -> -0.3959915262 | E10: =IFERROR('Ozdemir (EMG)'!Q863,"N/A") -> N/A | F10: =IFERROR('Ozdemir (EMG)'!R863,"N/A") -> N/A | H10: Note: BD-rate is computed using piece-wise cubic interpolation | L10: Sum | M10: ='MIT (ECG)'!P679 -> 2.911147222 | N10: ='INCART (ECG)'!P1057 -> 13.9644 | O10: ='CHBMIT (EEG)'!P1456 -> 186.2526861 | P10: ='NMR55 (EEG)'!P2695 -> 708.6260778 | Q10: ='NMR57 (EEG)'!P637 -> 2161.651467 | R10: ='Ozdemir (EMG)'!P865 -> 15.61187222 | S10: =SUM(M10:R10) -> 3089.01765 | T10: =S10/24 -> 128.7090687
B11: Overall | C11: =AVERAGE(C5:C10) -> -0.465516353 | D11: =AVERAGE(D5:D10) -> -0.4500069611 | E11: =IFERROR(AVERAGE(E5:E10),"N/A") -> N/A | F11: =IFERROR(AVERAGE(F5:F10),"N/A") -> N/A | L11: Max | M11: ='MIT (ECG)'!P680 -> 0.00575 | N11: ='INCART (ECG)'!P1058 -> 0.02290555556 | O11: ='CHBMIT (EEG)'!P1457 -> 0.4958444444 | P11: ='NMR55 (EEG)'!P2696 -> 0.6565777778 | Q11: ='NMR57 (EEG)'!P638 -> 9.140575 | R11: ='Ozdemir (EMG)'!P866 -> 0.02340555556 | S11: =MAX(M11,N11,O11,P11,Q11,R11) -> 9.140575 | T11: =S11/24 -> 0.3808572917
H13: Cluster information
C14: Lossless Compression | L14: =CONCATENATE("Encoder run times for ", I4, " over ", I3) -> Encoder run times for BWC-2.1 over Audio
C15: =CONCATENATE("Over ", $I$3) -> Over Audio | H15: CPU type: | I15: Intel Xeon E5-2697A v4 | M15: MIT (ECG) | N15: INCART (ECG) | O15: CHBMIT (EEG) | P15: NMR55 (EEG) | Q15: NMR57 (EEG) | R15: Ozdemir (EMG) | S15: All
C16: BR-R | D16: EncT | E16: DecT | L16: Average | M16: =E5 -> N/A | N16: =E6 -> N/A | O16: =E7 -> N/A | P16: =E8 -> N/A | Q16: =E9 -> N/A | R16: =E10 -> N/A
B17: MIT (ECG) | C17: =IFERROR('MIT (ECG)'!V675,"N/A") -> N/A | D17: =IFERROR('MIT (ECG)'!Q675,"N/A") -> N/A | E17: =IFERROR('MIT (ECG)'!R675,"N/A") -> N/A | H17: Hyperthreading: | I17: off | L17: Sum | M17: =M10/M4 -> 
B18: INCART (ECG) | C18: =IFERROR('INCART (ECG)'!V1053,"N/A") -> N/A | D18: =IFERROR('INCART (ECG)'!Q1053,"N/A") -> N/A | E18: =IFERROR('INCART (ECG)'!R1053,"N/A") -> N/A | H18: Turbo mode: | I18: off | L18: Max
B19: CHBMIT (EEG) | C19: =IFERROR('CHBMIT (EEG)'!V1452,"N/A") -> N/A | D19: =IFERROR('CHBMIT (EEG)'!Q1452,"N/A") -> N/A | E19: =IFERROR('CHBMIT (EEG)'!R1452,"N/A") -> N/A
B20: NMR55 (EEG) | C20: =IFERROR('NMR55 (EEG)'!V2691,"N/A") -> N/A | D20: =IFERROR('NMR55 (EEG)'!Q2691,"N/A") -> N/A | E20: =IFERROR('NMR55 (EEG)'!R2691,"N/A") -> N/A | H20: Compiler: | I20: gcc 7.2.1
B21: NMR57 (EEG) | C21: =IFERROR('NMR57 (EEG)'!V633,"N/A") -> N/A | D21: =IFERROR('NMR57 (EEG)'!Q633,"N/A") -> N/A | E21: =IFERROR('NMR57 (EEG)'!R633,"N/A") -> N/A
B22: Ozdemir (EMG) | C22: =IFERROR('Ozdemir (EMG)'!V861,"N/A") -> N/A | D22: =IFERROR('Ozdemir (EMG)'!Q861,"N/A") -> N/A | E22: =IFERROR('Ozdemir (EMG)'!R861,"N/A") -> N/A | H22: OS: | I22: Scientific Linux 7.4
B23: Overall | C23: =IFERROR(AVERAGE(C17:C22),"N/A") -> N/A | D23: =IFERROR(AVERAGE(D17:D22),"N/A") -> N/A | E23: =IFERROR(AVERAGE(E17:E22),"N/A") -> N/A
H24: Decoding options

Sheet MIT (ECG)
D1: Reference | K1: Tested | T1: BD-rate (piecewise cubic) | V1: Lossless
C2: StepSizeForQP | D2: BPS | E2: PSNR1 | F2: PSNR2 | G2: Enc T [s] | H2: Dec T [s] | I2: Enc T [h] | K2: BPS | L2: PSNR1 | M2: PSNR2 | N2: Enc T [s] | O2: Dec T [s] | P2: Enc T [h] | Q2: EncR | R2: DecR | T2: BD-PSNR1 | U2: BD-PSNR2 | V2: BR-R
A3: MIT | B3: 100.dat | C3: 1 | D3: 0 | E3: 0 | F3: 0 | G3: 0 | H3: 0 | I3: =G3/3600 -> 0 | K3: 3.2803 | L3: 0 | M3: 0 | N3: 19.43 | O3: 0.18 | P3: =N3/3600 -> 0.005397222222 | Q3: =N3/G3 ->  | R3: =O3/H3 ->  | V3: =($K3/$D3-1) -> 
A4: ECG | C4: 1.125 | D4: 0 | E4: 0 | F4: 0 | G4: 0 | H4: 0 | I4: 0 | K4: 3.2115 | L4: 110.2745013 | M4: 110.360794 | N4: 16.69 | O4: 0.19 | P4: 0.004636111111 | T4: =bdrate($D4:$D16,E4:E16,$K4:$K16,L4:L16) -> -0.5679675589 | U4: =bdrate($D4:$D16,F4:F16,$K4:$K16,M4:M16) -> -0.5673854458
C5: 1.5 | D5: 0 | E5: 0 | F5: 0 | G5: 0 | H5: 0 | I5: 0 | K5: 2.7336 | L5: 102.920499 | M5: 102.9289448 | N5: 17.59 | O5: 0.22 | P5: 0.004886111111
C6: 2 | D6: 0 | E6: 0 | F6: 0 | G6: 0 | H6: 0 | I6: 0 | K6: 2.1671 | L6: 100.1028729 | M6: 100.1035276 | N6: 17.34 | O6: 0.18 | P6: 0.004816666667
C7: 3 | D7: 0 | E7: 0 | F7: 0 | G7: 0 | H7: 0 | I7: 0 | K7: 1.3622 | L7: 96.36571462 | M7: 96.36596289 | N7: 16.93 | O7: 0.17 | P7: 0.004702777778
C8: 4 | D8: 0 | E8: 0 | F8: 0 | G8: 0 | H8: 0 | I8: 0 | K8: 1.0151 | L8: 94.72632991 | M8: 94.72870712 | N8: 16.15 | O8: 0.15 | P8: 0.004486111111
C9: 5.5 | D9: 4.780029531 | E9: 106.4345446 | F9: 106.4768596 | G9: 0 | H9: 0 | I9: 0 | K9: 0.769 | L9: 93.11760572 | M9: 93.12014715 | N9: 14.95 | O9: 0.14 | P9: 0.004152777778
C10: 7 | D10: 3.772289898 | E10: 102.0996639 | F10: 102.1006555 | G10: 0 | H10: 0 | I10: 0 | K10: 0.6067 | L10: 91.68288777 | M10: 91.68646304 | N10: 14.42 | O10: 0.13 | P10: 0.004005555556
C11: 9 | D11: 2.569201427 | E11: 96.51121365 | F11: 96.51137221 | G11: 0 | H11: 0 | I11: 0 | K11: 0.4735 | L11: 90.17652465 | M11: 90.17997181 | N11: 14.17 | O11: 0.13 | P11: 0.003936111111
C12: 11 | D12: 1.851015135 | E12: 92.30667458 | F12: 92.30702899 | G12: 0 | H12: 0 | I12: 0 | K12: 0.3811 | L12: 88.930351 | M12: 88.93456627 | N12: 14.09 | O12: 0.12 | P12: 0.003913888889
C13: 13.5 | D13: 1.393287806 | E13: 88.34402277 | F13: 88.34837264 | G13: 0 | H13: 0 | I13: 0 | K13: 0.2971 | L13: 87.49603868 | M13: 87.50048165 | N13: 13.97 | O13: 0.11 | P13: 0.003880555556
C14: 16 | D14: 0.9782576597 | E14: 83.29398039 | F14: 83.30064687 | G14: 0 | H14: 0 | I14: 0 | K14: 0.2436 | L14: 86.58987381 | M14: 86.59834688 | N14: 13.9 | O14: 0.11 | P14: 0.003861111111
C15: 19 | D15: 0.6472868217 | E15: 78.33426988 | F15: 78.33765001 | G15: 0 | H15: 0 | I15: 0 | K15: 0.2044 | L15: 85.71531165 | M15: 85.72856973 | N15: 13.77 | O15: 0.11 | P15: 0.003825
C16: 22 | D16: 0.428208441 | E16: 73.79914406 | F16: 73.80364566 | G16: 0 | H16: 0 | I16: 0 | K16: 0.1788 | L16: 84.90006541 | M16: 84.92064368 | N16: 13.54 | O16: 0.11 | P16: 0.003761111111
B17: 101.dat | C17: 1 | D17: 0 | E17: 0 | F17: 0 | G17: 0 | H17: 0 | I17: 0 | K17: 3.221 | L17: 0 | M17: 0 | N17: 18.82 | O17: 0.17 | P17: 0.005227777778 | V17: =($K17/$D17-1) -> 
C18: 1.125 | D18: 0 | E18: 0 | F18: 0 | G18: 0 | H18: 0 | I18: 0 | K18: 3.1397 | L18: 110.4205742 | M18: 110.4332147 | N18: 16.49 | O18: 0.19 | P18: 0.004580555556 | T18: =bdrate($D18:$D30,E18:E30,$K18:$K30,L18:L30) -> -0.4628990699 | U18: =bdrate($D18:$D30,F18:F30,$K18:$K30,M18:M30) -> -0.4584865192
C19: 1.5 | D19: 0 | E19: 0 | F19: 0 | G19: 0 | H19: 0 | I19: 0 | K19: 2.6074 | L19: 102.8825327 | M19: 102.884135 | N19: 17.44 | O19: 0.2 | P19: 0.004844444444
C20: 2 | D20: 0 | E20: 0 | F20: 0 | G20: 0 | H20: 0 | I20: 0 | K20: 2.1056 | L20: 100.2653902 | M20: 100.2679661 | N20: 17.19 | O20: 0.19 | P20: 0.004775
C21: 3 | D21: 0 | E21: 0 | F21: 0 | G21: 0 | H21: 0 | I21: 0 | K21: 1.2047 | L21: 96.21577398 | M21: 96.21897172 | N21: 16.79 | O21: 0.15 | P21: 0.004663888889
C22: 4 | D22: 0 | E22: 0 | F22: 0 | G22: 0 | H22: 0 | I22: 0 | K22: 0.8886 | L22: 94.76864427 | M22: 94.76877531 | N22: 16.01 | O22: 0.13 | P22: 0.004447222222
C23: 5.5 | D23: 4.118272425 | E23: 106.6290205 | F23: 106.8491926 | G23: 0 | H23: 0 | I23: 0 | K23: 0.658 | L23: 93.30161869 | M23: 93.30235385 | N23: 14.75 | O23: 0.12 | P23: 0.004097222222
C24: 7 | D24: 3.117669497 | E24: 102.1335405 | F24: 102.135458 | G24: 0 | H24: 0 | I24: 0 | K24: 0.5139 | L24: 92.04161095 | M24: 92.04793783 | N24: 14.09 | O24: 0.12 | P24: 0.003913888889
C25: 9 | D25: 1.915147041 | E25: 96.45768797 | F25: 96.45769749 | G25: 0 | H25: 0 | I25: 0 | K25: 0.4001 | L25: 90.70849789 | M25: 90.72093684 | N25: 13.87 | O25: 0.11 | P25: 0.003852777778
C26: 11 | D26: 1.288661253 | E26: 92.85965477 | F26: 92.87669472 | G26: 0 | H26: 0 | I26: 0 | K26: 0.3166 | L26: 89.35047694 | M26: 89.35322868 | N26: 13.83 | O26: 0.11 | P26: 0.003841666667
C27: 13.5 | D27: 0.9305401747 | E27: 89.10648236 | F27: 89.17267891 | G27: 0 | H27: 0 | I27: 0 | K27: 0.25 | L27: 88.12069114 | M27: 88.13188626 | N27: 13.85 | O27: 0.1 | P27: 0.003847222222
C28: 16 | D28: 0.6659837578 | E28: 84.97779358 | F28: 85.50531006 | G28: 0 | H28: 0 | I28: 0 | K28: 0.2051 | L28: 87.25028381 | M28: 87.27455453 | N28: 13.81 | O28: 0.09 | P28: 0.003836111111
C29: 19 | D29: 0.4777839301 | E29: 80.73470588 | F29: 82.10931729 | G29: 0 | H29: 0 | I29: 0 | K29: 0.1743 | L29: 86.46373385 | M29: 86.49143208 | N29: 13.72 | O29: 0.09 | P29: 0.003811111111
C30: 22 | D30: 0.3494708995 | E30: 76.18547451 | F30: 78.83706426 | G30: 0 | H30: 0 | I30: 0 | K30: 0.1513 | L30: 85.77496404 | M30: 85.81404596 | N30: 13.47 | O30: 0.09 | P30: 0.003741666667
B31: 102.dat | C31: 1 | D31: 0 | E31: 0 | F31: 0 | G31: 0 | H31: 0 | I31: 0 | K31: 3.4611 | L31: 0 | M31: 0 | N31: 19.88 | O31: 0.18 | P31: 0.005522222222 | V31: =($K31/$D31-1) -> 
C32: 1.125 | D32: 0 | E32: 0 | F32: 0 | G32: 0 | H32: 0 | I32: 0 | K32: 3.379 | L32: 109.2096094 | M32: 109.368916 | N32: 16.84 | O32: 0.19 | P32: 0.004677777778 | T32: =bdrate($D32:$D44,E32:E44,$K32:$K44,L32:L44) -> -0.5688717468 | U32: =bdrate($D32:$D44,F32:F44,$K32:$K44,M32:M44) -> -0.5613886514
C33: 1.5 | D33: 0 | E33: 0 | F33: 0 | G33: 0 | H33: 0 | I33: 0 | K33: 2.9296 | L33: 102.7210781 | M33: 102.750981 | N33: 17.82 | O33: 0.24 | P33: 0.00495
C34: 2 | D34: 0 | E34: 0 | F34: 0 | G34: 0 | H34: 0 | I34: 0 | K34: 2.3691 | L34: 100.0383843 | M34: 100.0401456 | N34: 17.55 | O34: 0.19 | P34: 0.004875
C35: 3 | D35: 0 | E35: 0 | F35: 0 | G35: 0 | H35: 0 | I35: 0 | K35: 1.6553 | L35: 96.63387461 | M35: 96.64349348 | N35: 17.14 | O35: 0.17 | P35: 0.004761111111
C36: 4 | D36: 0 | E36: 0 | F36: 0 | G36: 0 | H36: 0 | I36: 0 | K36: 1.2175 | L36: 94.55307726 | M36: 94.55833635 | N36: 16.49 | O36: 0.16 | P36: 0.004580555556
C37: 5.5 | D37: 4.671164021 | E37: 102.6694871 | F37: 103.386514 | G37: 0 | H37: 0 | I37: 0 | K37: 0.9726 | L37: 92.93403798 | M37: 92.94034041 | N37: 15.35 | O37: 0.15 | P37: 0.004263888889
C38: 7 | D38: 4.108508675 | E38: 100.9490846 | F38: 101.0855039 | G38: 0 | H38: 0 | I38: 0 | K38: 0.8061 | L38: 91.50938834 | M38: 91.5152024 | N38: 14.88 | O38: 0.14 | P38: 0.004133333333
C39: 9 | D39: 2.939264181 | E39: 96.1096672 | F39: 96.12634238 | G39: 0 | H39: 0 | I39: 0 | K39: 0.665 | L39: 89.95020739 | M39: 89.95485736 | N39: 14.67 | O39: 0.13 | P39: 0.004075
C40: 11 | D40: 2.140537714 | E40: 91.94526093 | F40: 91.95017692 | G40: 0 | H40: 0 | I40: 0 | K40: 0.563 | L40: 88.57945653 | M40: 88.58448216 | N40: 14.49 | O40: 0.13 | P40: 0.004025
C41: 13.5 | D41: 1.58820598 | E41: 87.59286211 | F41: 87.59575844 | G41: 0 | H41: 0 | I41: 0 | K41: 0.4687 | L41: 87.16050195 | M41: 87.16512003 | N41: 14.45 | O41: 0.12 | P41: 0.004013888889
C42: 16 | D42: 1.063055248 | E42: 82.33334251 | F42: 82.33436099 | G42: 0 | H42: 0 | I42: 0 | K42: 0.3986 | L42: 86.03643151 | M42: 86.04808389 | N42: 14.34 | O42: 0.12 | P42: 0.003983333333
C43: 19 | D43: 0.6517226529 | E43: 77.26783113 | F43: 77.26810707 | G43: 0 | H43: 0 | I43: 0 | K43: 0.3479 | L43: 85.05727545 | M43: 85.0785255 | N43: 14.2 | O43: 0.11 | P43: 0.003944444444
C44: 22 | D44: 0.3914974775 | E44: 73.4675342 | F44: 73.47549619 | G44: 0 | H44: 0 | I44: 0 | K44: 0.3101 | L44: 84.21863867 | M44: 84.24446469 | N44: 13.98 | O44: 0.11 | P44: 0.003883333333
B45: 103.dat | C45: 1 | D45: 0 | E45: 0 | F45: 0 | G45: 0 | H45: 0 | I45: 0 | K45: 3.3961 | L45: 0 | M45: 0 | N45: 19.44 | O45: 0.18 | P45: 0.0054 | V45: =($K45/$D45-1) -> 
C46: 1.125 | D46: 0 | E46: 0 | F46: 0 | G46: 0 | H46: 0 | I46: 0 | K46: 3.3141 | L46: 109.7597557 | M46: 109.9649881 | N46: 16.63 | O46: 0.19 | P46: 0.004619444444 | T46: =bdrate($D46:$D58,E46:E58,$K46:$K58,L46:L58) -> -0.5668751258 | U46: =bdrate($D46:$D58,F46:F58,$K46:$K58,M46:M58) -> -0.5657478158
C47: 1.5 | D47: 0 | E47: 0 | F47: 0 | G47: 0 | H47: 0 | I47: 0 | K47: 2.8169 | L47: 102.7168312 | M47: 102.7410729 | N47: 17.6 | O47: 0.22 | P47: 0.004888888889
C48: 2 | D48: 0 | E48: 0 | F48: 0 | G48: 0 | H48: 0 | I48: 0 | K48: 2.2899 | L48: 100.1574905 | M48: 100.1592803 | N48: 17.28 | O48: 0.19 | P48: 0.0048
C49: 3 | D49: 0 | E49: 0 | F49: 0 | G49: 0 | H49: 0 | I49: 0 | K49: 1.4748 | L49: 96.37221953 | M49: 96.3722215 | N49: 16.89 | O49: 0.16 | P49: 0.004691666667
C50: 4 | D50: 0 | E50: 0 | F50: 0 | G50: 0 | H50: 0 | I50: 0 | K50: 1.0941 | L50: 94.6034259 | M50: 94.6048459 | N50: 16.23 | O50: 0.15 | P50: 0.004508333333
C51: 5.5 | D51: 4.716931217 | E51: 103.9033235 | F51: 103.9670772 | G51: 0 | H51: 0 | I51: 0 | K51: 0.8435 | L51: 93.00472575 | M51: 93.0051709 | N51: 14.95 | O51: 0.14 | P51: 0.004152777778
C52: 7 | D52: 3.944315245 | E52: 101.450902 | F52: 101.4965888 | G52: 0 | H52: 0 | I52: 0 | K52: 0.687 | L52: 91.68570141 | M52: 91.68693565 | N52: 14.32 | O52: 0.13 | P52: 0.003977777778
C53: 9 | D53: 2.698947951 | E53: 96.26146049 | F53: 96.26490719 | G53: 0 | H53: 0 | I53: 0 | K53: 0.5607 | L53: 90.31372259 | M53: 90.31625037 | N53: 14.07 | O53: 0.13 | P53: 0.003908333333
C54: 11 | D54: 1.950381445 | E54: 92.35326466 | F54: 92.35389982 | G54: 0 | H54: 0 | I54: 0 | K54: 0.471 | L54: 89.0381361 | M54: 89.04195075 | N54: 13.97 | O54: 0.12 | P54: 0.003880555556
C55: 13.5 | D55: 1.486427956 | E55: 88.04575385 | F55: 88.05278784 | G55: 0 | H55: 0 | I55: 0 | K55: 0.3891 | L55: 87.69235623 | M55: 87.7016284 | N55: 13.87 | O55: 0.12 | P55: 0.003852777778
C56: 16 | D56: 1.101008982 | E56: 83.46513874 | F56: 83.46990596 | G56: 0 | H56: 0 | I56: 0 | K56: 0.3351 | L56: 86.71801883 | M56: 86.73063779 | N56: 13.84 | O56: 0.11 | P56: 0.003844444444
C57: 19 | D57: 0.7962470776 | E57: 78.55834017 | F57: 78.56852736 | G57: 0 | H57: 0 | I57: 0 | K57: 0.293 | L57: 85.84080819 | M57: 85.85859584 | N57: 13.7 | O57: 0.11 | P57: 0.003805555556
C58: 22 | D58: 0.55530331 | E58: 73.51927415 | F58: 73.52944387 | G58: 0 | H58: 0 | I58: 0 | K58: 0.2638 | L58: 85.06303485 | M58: 85.08702741 | N58: 13.5 | O58: 0.11 | P58: 0.00375
B59: 104.dat | C59: 1 | D59: 0 | E59: 0 | F59: 0 | G59: 0 | H59: 0 | I59: 0 | K59: 3.5517 | L59: 0 | M59: 0 | N59: 19.67 | O59: 0.19 | P59: 0.005463888889 | V59: =($K59/$D59-1) -> 
C60: 1.125 | D60: 0 | E60: 0 | F60: 0 | G60: 0 | H60: 0 | I60: 0 | K60: 3.4664 | L60: 109.0938316 | M60: 109.1325445 | N60: 16.79 | O60: 0.2 | P60: 0.004663888889 | T60: =bdrate($D60:$D72,E60:E72,$K60:$K72,L60:L72) -> -0.543824778 | U60: =bdrate($D60:$D72,F60:F72,$K60:$K72,M60:M72) -> -0.5428873225
C61: 1.5 | D61: 0 | E61: 0 | F61: 0 | G61: 0 | H61: 0 | I61: 0 | K61: 2.9476 | L61: 102.3397779 | M61: 102.3456386 | N61: 17.74 | O61: 0.22 | P61: 0.004927777778
C62: 2 | D62: 0 | E62: 0 | F62: 0 | G62: 0 | H62: 0 | I62: 0 | K62: 2.4454 | L62: 99.98785558 | M62: 99.98911142 | N62: 17.47 | O62: 0.19 | P62: 0.004852777778
C63: 3 | D63: 0 | E63: 0 | F63: 0 | G63: 0 | H63: 0 | I63: 0 | K63: 1.7781 | L63: 96.81951837 | M63: 96.81964876 | N63: 17.15 | O63: 0.17 | P63: 0.004763888889
C64: 4 | D64: 0 | E64: 0 | F64: 0 | G64: 0 | H64: 0 | I64: 0 | K64: 1.3014 | L64: 94.50425328 | M64: 94.50601547 | N64: 16.5 | O64: 0.16 | P64: 0.004583333333
C65: 5.5 | D65: 4.860926541 | E65: 104.7075873 | F65: 104.8129456 | G65: 0 | H65: 0 | I65: 0 | K65: 1.0254 | L65: 92.75716583 | M65: 92.75825178 | N65: 15.51 | O65: 0.15 | P65: 0.004308333333
C66: 7 | D66: 4.30720438 | E66: 102.2126089 | F66: 102.2153396 | G66: 0 | H66: 0 | I66: 0 | K66: 0.8476 | L66: 91.29146481 | M66: 91.29206257 | N66: 14.99 | O66: 0.14 | P66: 0.004163888889
C67: 9 | D67: 3.138630491 | E67: 96.44768057 | F67: 96.44772223 | G67: 0 | H67: 0 | I67: =G67/3600 -> 0 | K67: 0.7033 | L67: 89.75213797 | M67: 89.75237207 | N67: 14.77 | O67: 0.13 | P67: =N67/3600 -> 0.004102777778 | Q67: =N67/G67 ->  | R67: =O67/H67 -> 
C68: 11 | D68: 2.252282515 | E68: 91.70483339 | F68: 91.70483405 | G68: 0 | H68: 0 | I68: 0 | K68: 0.5964 | L68: 88.40990887 | M68: 88.41059114 | N68: 14.6 | O68: 0.13 | P68: 0.004055555556
C69: 13.5 | D69: 1.629082072 | E69: 86.96604998 | F69: 86.96606654 | G69: 0 | H69: 0 | I69: 0 | K69: 0.4981 | L69: 87.06545313 | M69: 87.06652299 | N69: 14.56 | O69: 0.12 | P69: 0.004044444444
C70: 16 | D70: 1.057450474 | E70: 81.68443328 | F70: 81.68542246 | G70: 0 | H70: 0 | I70: 0 | K70: 0.4285 | L70: 85.98147692 | M70: 85.98469044 | N70: 14.36 | O70: 0.12 | P70: 0.003988888889
C71: 19 | D71: 0.6156515319 | E71: 76.7864357 | F71: 76.79924364 | G71: 0 | H71: 0 | I71: 0 | K71: 0.3735 | L71: 84.97938125 | M71: 84.98471477 | N71: 14.24 | O71: 0.11 | P71: 0.003955555556
C72: 22 | D72: 0.3461301833 | E72: 72.97166892 | F72: 72.99996813 | G72: 0 | H72: 0 | I72: 0 | K72: 0.3295 | L72: 84.04114179 | M72: 84.05008411 | N72: 14.03 | O72: 0.11 | P72: 0.003897222222
B73: 105.dat | C73: 1 | D73: 0 | E73: 0 | F73: 0 | G73: 0 | H73: 0 | I73: 0 | K73: 3.5902 | L73: 0 | M73: 0 | N73: 19.68 | O73: 0.18 | P73: 0.005466666667 | V73: =($K73/$D73-1) -> 
C74: 1.125 | D74: 0 | E74: 0 | F74: 0 | G74: 0 | H74: 0 | I74: 0 | K74: 3.4686 | L74: 108.2540921 | M74: 108.2801928 | N74: 16.83 | O74: 0.19 | P74: 0.004675 | T74: =bdrate($D74:$D86,E74:E86,$K74:$K86,L74:L86) -> -0.3291096974 | U74: =bdrate($D74:$D86,F74:F86,$K74:$K86,M74:M86) -> -0.3284056554
C75: 1.5 | D75: 0 | E75: 0 | F75: 0 | G75: 0 | H75: 0 | I75: 0 | K75: 3.0472 | L75: 102.6650411 | M75: 102.6652357 | N75: 17.74 | O75: 0.23 | P75: 0.004927777778
C76: 2 | D76: 0 | E76: 0 | F76: 0 | G76: 0 | H76: 0 | I76: 0 | K76: 2.5041 | L76: 99.92666865 | M76: 99.92711295 | N76: 17.46 | O76: 0.19 | P76: 0.00485
C77: 3 | D77: 0 | E77: 0 | F77: 0 | G77: 0 | H77: 0 | I77: 0 | K77: 1.6809 | L77: 96.28523131 | M77: 96.28726097 | N77: 17.13 | O77: 0.17 | P77: 0.004758333333
C78: 4 | D78: 0 | E78: 0 | F78: 0 | G78: 0 | H78: 0 | I78: 0 | K78: 1.3259 | L78: 94.71300216 | M78: 94.71580783 | N78: 16.44 | O78: 0.16 | P78: 0.004566666667
C79: 5.5 | D79: 4.549981543 | E79: 106.4290333 | F79: 106.5342027 | G79: 0 | H79: 0 | I79: 0 | K79: 1.085 | L79: 93.22933142 | M79: 93.23028857 | N79: 15.26 | O79: 0.15 | P79: 0.004238888889
C80: 7 | D80: 3.461111111 | E80: 102.0145401 | F80: 102.0171273 | G80: 0 | H80: 0 | I80: 0 | K80: 0.9007 | L80: 91.7707135 | M80: 91.77106028 | N80: 14.59 | O80: 0.14 | P80: 0.004052777778
C81: 9 | D81: 2.25915467 | E81: 96.38841039 | F81: 96.3886483 | G81: 0 | H81: 0 | I81: 0 | K81: 0.7338 | L81: 90.15772836 | M81: 90.15772888 | N81: 14.34 | O81: 0.13 | P81: 0.003983333333
C82: 11 | D82: 1.531198474 | E82: 92.34932021 | F82: 92.34932751 | G82: 0 | H82: 0 | I82: 0 | K82: 0.6041 | L82: 88.72988782 | M82: 88.73041125 | N82: 14.22 | O82: 0.13 | P82: 0.00395
C83: 13.5 | D83: 1.071256306 | E83: 88.23941726 | F83: 88.24781588 | G83: 0 | H83: 0 | I83: 0 | K83: 0.4891 | L83: 87.23719116 | M83: 87.23872459 | N83: 14.04 | O83: 0.12 | P83: 0.0039
C84: 16 | D84: 0.7253291497 | E84: 83.86962387 | F84: 83.87267976 | G84: 0 | H84: 0 | I84: 0 | K84: 0.4088 | L84: 86.10256217 | M84: 86.10379942 | N84: 14.02 | O84: 0.12 | P84: 0.003894444444
C85: 19 | D85: 0.4907899594 | E85: 79.80228377 | F85: 79.81631828 | G85: 0 | H85: 0 | I85: 0 | K85: 0.3523 | L85: 85.18179928 | M85: 85.18417616 | N85: 13.81 | O85: 0.11 | P85: 0.003836111111
C86: 22 | D86: 0.3507013658 | E86: 75.7963651 | F86: 75.91471942 | G86: 0 | H86: 0 | I86: 0 | K86: 0.3076 | L86: 84.3715159 | M86: 84.37454889 | N86: 13.68 | O86: 0.11 | P86: 0.0038
B87: 106.dat | C87: 1 | D87: 0 | E87: 0 | F87: 0 | G87: 0 | H87: 0 | I87: 0 | K87: 3.7318 | L87: 0 | M87: 0 | N87: 19.61 | O87: 0.19 | P87: 0.005447222222 | V87: =($K87/$D87-1) -> 
C88: 1.125 | D88: 0 | E88: 0 | F88: 0 | G88: 0 | H88: 0 | I88: 0 | K88: 3.594 | L88: 107.8069551 | M88: 107.8394651 | N88: 16.8 | O88: 0.2 | P88: 0.004666666667 | T88: =bdrate($D88:$D100,E88:E100,$K88:$K100,L88:L100) -> -0.35933146 | U88: =bdrate($D88:$D100,F88:F100,$K88:$K100,M88:M100) -> -0.356011868
C89: 1.5 | D89: 0 | E89: 0 | F89: 0 | G89: 0 | H89: 0 | I89: 0 | K89: 3.1357 | L89: 102.2692881 | M89: 102.2813208 | N89: 17.87 | O89: 0.25 | P89: 0.004963888889
C90: 2 | D90: 0 | E90: 0 | F90: 0 | G90: 0 | H90: 0 | I90: 0 | K90: 2.6441 | L90: 99.92578176 | M90: 99.92818759 | N90: 17.5 | O90: 0.2 | P90: 0.004861111111
C91: 3 | D91: 0 | E91: 0 | F91: 0 | G91: 0 | H91: 0 | I91: 0 | K91: 1.8702 | L91: 96.47870651 | M91: 96.49154585 | N91: 17.21 | O91: 0.17 | P91: 0.004780555556
C92: 4 | D92: 0 | E92: 0 | F92: 0 | G92: 0 | H92: 0 | I92: 0 | K92: 1.4307 | L92: 94.52008242 | M92: 94.52230962 | N92: 16.68 | O92: 0.16 | P92: 0.004633333333
C93: 5.5 | D93: 4.603223822 | E93: 105.3628062 | F93: 105.8253165 | G93: 0 | H93: 0 | I93: 0 | K93: 1.1592 | L93: 92.97220795 | M93: 92.97680703 | N93: 15.43 | O93: 0.15 | P93: 0.004286111111
C94: 7 | D94: 3.761209548 | E94: 102.1836901 | F94: 102.1857258 | G94: 0 | H94: 0 | I94: 0 | K94: 0.9672 | L94: 91.56943767 | M94: 91.57427829 | N94: 14.68 | O94: 0.14 | P94: 0.004077777778
C95: 9 | D95: 2.526694967 | E95: 96.27842658 | F95: 96.27928055 | G95: 0 | H95: 0 | I95: 0 | K95: 0.81 | L95: 90.14492681 | M95: 90.1496242 | N95: 14.33 | O95: 0.14 | P95: 0.003980555556
C96: 11 | D96: 1.705327919 | E96: 92.06662175 | F96: 92.07654629 | G96: 0 | H96: 0 | I96: 0 | K96: 0.6892 | L96: 88.85765954 | M96: 88.86256922 | N96: 14.13 | O96: 0.13 | P96: 0.003925
C97: 13.5 | D97: 1.238692014 | E97: 87.97839331 | F97: 88.0081663 | G97: 0 | H97: 0 | I97: 0 | K97: 0.5834 | L97: 87.53187331 | M97: 87.53530575 | N97: 14.07 | O97: 0.13 | P97: 0.003908333333
C98: 16 | D98: 0.8732742709 | E98: 83.31176409 | F98: 83.36710833 | G98: 0 | H98: 0 | I98: 0 | K98: 0.4946 | L98: 86.26502678 | M98: 86.26541281 | N98: 14.03 | O98: 0.12 | P98: 0.003897222222
C99: 19 | D99: 0.5938968869 | E99: 78.70372053 | F99: 78.7756186 | G99: 0 | H99: 0 | I99: 0 | K99: 0.4152 | L99: 85.02703051 | M99: 85.02750885 | N99: 14.17 | O99: 0.11 | P99: 0.003936111111
C100: 22 | D100: 0.4092469546 | E100: 74.52002031 | F100: 74.69281002 | G100: 0 | H100: 0 | I100: 0 | K100: 0.3552 | L100: 84.09014694 | M100: 84.09108578 | N100: 14.19 | O100: 0.11 | P100: 0.003941666667
B101: 107.dat | C101: 1 | D101: 0 | E101: 0 | F101: 0 | G101: 0 | H101: 0 | I101: 0 | K101: 3.9489 | L101: 0 | M101: 0 | N101: 20.7 | O101: 0.21 | P101: 0.00575 | V101: =($K101/$D101-1) -> 
C102: 1.125 | D102: 0 | E102: 0 | F102: 0 | G102: 0 | H102: 0 | I102: 0 | K102: 3.8037 | L102: 107.2378556 | M102: 107.2631398 | N102: 17.18 | O102: 0.21 | P102: 0.004772222222 | T102: =bdrate($D102:$D114,E102:E114,$K102:$K114,L102:L114) -> -0.4021604737 | U102: =bdrate($D102:$D114,F102:F114,$K102:$K114,M102:M114) -> -0.4009474136
C103: 1.5 | D103: 0 | E103: 0 | F103: 0 | G103: 0 | H103: 0 | I103: 0 | K103: 3.3213 | L103: 101.7899706 | M103: 101.7906745 | N103: 18.25 | O103: 0.22 | P103: 0.005069444444
C104: 2 | D104: 0 | E104: 0 | F104: 0 | G104: 0 | H104: 0 | I104: 0 | K104: 2.8658 | L104: 99.75547542 | M104: 99.75585219 | N104: 17.85 | O104: 0.19 | P104: 0.004958333333
C105: 3 | D105: 0 | E105: 0 | F105: 0 | G105: 0 | H105: 0 | I105: 0 | K105: 2.2157 | L105: 96.88146609 | M105: 96.88500232 | N105: 17.49 | O105: 0.18 | P105: 0.004858333333
C106: 4 | D106: 0 | E106: 0 | F106: 0 | G106: 0 | H106: 0 | I106: 0 | K106: 1.7499 | L106: 94.63781131 | M106: 94.63934867 | N106: 16.79 | O106: 0.18 | P106: 0.004663888889
C107: 5.5 | D107: 4.611523317 | E107: 102.2592445 | F107: 102.4528109 | G107: 0 | H107: 0 | I107: 0 | K107: 1.4742 | L107: 92.99183064 | M107: 92.9944195 | N107: 15.74 | O107: 0.17 | P107: 0.004372222222
C108: 7 | D108: 4.279924942 | E108: 101.19985 | F108: 101.2217974 | G108: 0 | H108: 0 | I108: 0 | K108: 1.2708 | L108: 91.50755802 | M108: 91.51071166 | N108: 15.11 | O108: 0.16 | P108: 0.004197222222
C109: 9 | D109: 3.070721053 | E109: 96.14226653 | F109: 96.143311 | G109: 0 | H109: 0 | I109: 0 | K109: 1.0914 | L109: 89.92264547 | M109: 89.92682947 | N109: 14.78 | O109: 0.15 | P109: 0.004105555556
C110: 11 | D110: 2.238292113 | E110: 91.9049877 | F110: 91.90573122 | G110: 0 | H110: 0 | I110: 0 | K110: 0.9436 | L110: 88.46157771 | M110: 88.46544902 | N110: 14.58 | O110: 0.15 | P110: 0.00405
C111: 13.5 | D111: 1.685209795 | E111: 87.64786034 | F111: 87.65522684 | G111: 0 | H111: 0 | I111: 0 | K111: 0.8103 | L111: 86.99236545 | M111: 86.99480706 | N111: 14.45 | O111: 0.14 | P111: 0.004013888889
C112: 16 | D112: 1.17311431 | E112: 82.47152187 | F112: 82.47657837 | G112: 0 | H112: 0 | I112: 0 | K112: 0.7 | L112: 85.69633554 | M112: 85.69847431 | N112: 14.3 | O112: 0.13 | P112: 0.003972222222
C113: 19 | D113: 0.7790636151 | E113: 77.61383813 | F113: 77.61645891 | G113: 0 | H113: 0 | I113: 0 | K113: 0.604 | L113: 84.50849327 | M113: 84.51089362 | N113: 14.17 | O113: 0.13 | P113: 0.003936111111
C114: 22 | D114: 0.5086501784 | E114: 73.31957112 | F114: 73.36890362 | G114: 0 | H114: 0 | I114: 0 | K114: 0.534 | L114: 83.44923381 | M114: 83.45235342 | N114: 14.02 | O114: 0.13 | P114: 0.003894444444
B115: 108.dat | C115: 1 | D115: 0 | E115: 0 | F115: 0 | G115: 0 | H115: 0 | I115: 0 | K115: 3.7886 | L115: 0 | M115: 0 | N115: 20.03 | O115: 0.19 | P115: 0.005563888889 | V115: =($K115/$D115-1) -> 
C116: 1.125 | D116: 0 | E116: 0 | F116: 0 | G116: 0 | H116: 0 | I116: 0 | K116: 3.6625 | L116: 107.8822757 | M116: 107.9225957 | N116: 16.99 | O116: 0.2 | P116: 0.004719444444 | T116: =bdrate($D116:$D128,E116:E128,$K116:$K128,L116:L128) -> -0.2949766958 | U116: =bdrate($D116:$D128,F116:F128,$K116:$K128,M116:M128) -> -0.2943340571
C117: 1.5 | D117: 0 | E117: 0 | F117: 0 | G117: 0 | H117: 0 | I117: 0 | K117: 3.1481 | L117: 101.8484917 | M117: 101.8659831 | N117: 17.91 | O117: 0.24 | P117: 0.004975
C118: 2 | D118: 0 | E118: 0 | F118: 0 | G118: 0 | H118: 0 | I118: 0 | K118: 2.6987 | L118: 99.85646451 | M118: 99.85646527 | N118: 17.61 | O118: 0.21 | P118: 0.004891666667
C119: 3 | D119: 0 | E119: 0 | F119: 0 | G119: 0 | H119: 0 | I119: 0 | K119: 1.9512 | L119: 96.5652717 | M119: 96.56543943 | N119: 17.41 | O119: 0.17 | P119: 0.004836111111
C120: 4 | D120: 0 | E120: 0 | F120: 0 | G120: 0 | H120: 0 | I120: 0 | K120: 1.5433 | L120: 94.68102469 | M120: 94.68278504 | N120: 16.78 | O120: 0.16 | P120: 0.004661111111
C121: 5.5 | D121: 4.678472991 | E121: 105.5858375 | F121: 105.7300517 | G121: 0 | H121: 0 | I121: 0 | K121: 1.2774 | L121: 93.12302785 | M121: 93.12326379 | N121: 15.61 | O121: 0.16 | P121: 0.004336111111
C122: 7 | D122: 3.664864033 | E122: 101.8515495 | F122: 101.8550692 | G122: 0 | H122: 0 | I122: 0 | K122: 1.082 | L122: 91.69859639 | M122: 91.69868716 | N122: 15.01 | O122: 0.15 | P122: 0.004169444444
C123: 9 | D123: 2.460920389 | E123: 96.35078116 | F123: 96.3511424 | G123: 0 | H123: 0 | I123: 0 | K123: 0.9168 | L123: 90.19987563 | M123: 90.20007879 | N123: 14.81 | O123: 0.14 | P123: 0.004113888889
C124: 11 | D124: 1.696720807 | E124: 92.2295481 | F124: 92.22970533 | G124: 0 | H124: 0 | I124: 0 | K124: 0.7826 | L124: 88.81461994 | M124: 88.81473213 | N124: 14.62 | O124: 0.13 | P124: 0.004061111111
C125: 13.5 | D125: 1.200965916 | E125: 87.81744735 | F125: 87.81836628 | G125: 0 | H125: 0 | I125: 0 | K125: 0.6607 | L125: 87.37825361 | M125: 87.3783364 | N125: 14.51 | O125: 0.13 | P125: 0.004030555556
C126: 16 | D126: 0.8102313277 | E126: 83.16216331 | F126: 83.16473268 | G126: 0 | H126: 0 | I126: 0 | K126: 0.5719 | L126: 86.24082925 | M126: 86.24087665 | N126: 14.45 | O126: 0.12 | P126: 0.004013888889
C127: 19 | D127: 0.5310631229 | E127: 78.82012419 | F127: 78.84359858 | G127: 0 | H127: 0 | I127: 0 | K127: 0.4921 | L127: 85.16066716 | M127: 85.16085597 | N127: 14.32 | O127: 0.12 | P127: 0.003977777778
C128: 22 | D128: 0.3535314384 | E128: 74.75842968 | F128: 74.80354236 | G128: 0 | H128: 0 | I128: 0 | K128: 0.4313 | L128: 84.20913793 | M128: 84.20930791 | N128: 14.16 | O128: 0.11 | P128: 0.003933333333
B129: 109.dat | C129: 1 | D129: 0 | E129: 0 | F129: 0 | G129: 0 | H129: 0 | I129: 0 | K129: 3.2437 | L129: 0 | M129: 0 | N129: 19.5 | O129: 0.17 | P129: 0.005416666667 | V129: =($K129/$D129-1) -> 
C130: 1.125 | D130: 0 | E130: 0 | F130: 0 | G130: 0 | H130: 0 | I130: 0 | K130: 3.1767 | L130: 110.4759277 | M130: 110.4789352 | N130: 16.63 | O130: 0.19 | P130: 0.004619444444 | T130: =bdrate($D130:$D142,E130:E142,$K130:$K142,L130:L142) -> -0.4789443572 | U130: =bdrate($D130:$D142,F130:F142,$K130:$K142,M130:M142) -> -0.4783697877
C131: 1.5 | D131: 0 | E131: 0 | F131: 0 | G131: 0 | H131: 0 | I131: =G131/3600 -> 0 | K131: 2.6482 | L131: 102.6563163 | M131: 102.683835 | N131: 17.54 | O131: 0.21 | P131: =N131/3600 -> 0.004872222222 | Q131: =N131/G131 ->  | R131: =O131/H131 -> 
C132: 2 | D132: 0 | E132: 0 | F132: 0 | G132: 0 | H132: 0 | I132: 0 | K132: 2.1565 | L132: 100.2641008 | M132: 100.2641349 | N132: 17.31 | O132: 0.19 | P132: 0.004808333333
C133: 3 | D133: 0 | E133: 0 | F133: 0 | G133: 0 | H133: 0 | I133: 0 | K133: 1.3339 | L133: 96.36995013 | M133: 96.37025745 | N133: 16.92 | O133: 0.17 | P133: 0.0047
C134: 4 | D134: 0 | E134: 0 | F134: 0 | G134: 0 | H134: 0 | I134: 0 | K134: 0.943 | L134: 94.59071118 | M134: 94.59365961 | N134: 16.25 | O134: 0.15 | P134: 0.004513888889
C135: 5.5 | D135: 4.454189738 | E135: 106.326704 | F135: 106.3898244 | G135: 0 | H135: 0 | I135: 0 | K135: 0.7042 | L135: 93.05240462 | M135: 93.05329877 | N135: 15 | O135: 0.14 | P135: 0.004166666667
C136: 7 | D136: 3.355906238 | E136: 101.9231111 | F136: 101.9277855 | G136: 0 | H136: 0 | I136: 0 | K136: 0.5659 | L136: 91.80284725 | M136: 91.80288649 | N136: 14.35 | O136: 0.13 | P136: 0.003986111111
C137: 9 | D137: 2.145570321 | E137: 96.36257704 | F137: 96.36260942 | G137: 0 | H137: 0 | I137: 0 | K137: 0.4617 | L137: 90.52083104 | M137: 90.52148536 | N137: 14.04 | O137: 0.13 | P137: 0.0039
C138: 11 | D138: 1.452731635 | E138: 92.64821892 | F138: 92.65006399 | G138: 0 | H138: 0 | I138: 0 | K138: 0.3904 | L138: 89.30582795 | M138: 89.30646912 | N138: 13.91 | O138: 0.12 | P138: 0.003863888889
C139: 13.5 | D139: 1.054515811 | E139: 88.77431402 | F139: 88.77896186 | G139: 0 | H139: 0 | I139: 0 | K139: 0.3153 | L139: 87.71529288 | M139: 87.71700747 | N139: 13.85 | O139: 0.11 | P139: 0.003847222222
C140: 16 | D140: 0.7469115295 | E140: 84.59747385 | F140: 84.6177554 | G140: 0 | H140: 0 | I140: 0 | K140: 0.2712 | L140: 86.85334889 | M140: 86.85511706 | N140: 13.83 | O140: 0.11 | P140: 0.003841666667
C141: 19 | D141: 0.5369016857 | E141: 80.62164105 | F141: 80.63208934 | G141: 0 | H141: 0 | I141: 0 | K141: 0.2386 | L141: 85.90711748 | M141: 85.90837067 | N141: 13.69 | O141: 0.11 | P141: 0.003802777778
C142: 22 | D142: 0.402485542 | E142: 76.28453938 | F142: 76.28453946 | G142: 0 | H142: 0 | I142: 0 | K142: 0.2145 | L142: 85.08250666 | M142: 85.08627529 | N142: 13.55 | O142: 0.11 | P142: 0.003763888889
B143: 111.dat | C143: 1 | D143: 0 | E143: 0 | F143: 0 | G143: 0 | H143: 0 | I143: 0 | K143: 3.4112 | L143: 0 | M143: 0 | N143: 19.68 | O143: 0.18 | P143: 0.005466666667 | V143: =($K143/$D143-1) -> 
C144: 1.125 | D144: 0 | E144: 0 | F144: 0 | G144: 0 | H144: 0 | I144: 0 | K144: 3.3163 | L144: 109.0574378 | M144: 109.0850346 | N144: 16.74 | O144: 0.19 | P144: 0.00465 | T144: =bdrate($D144:$D156,E144:E156,$K144:$K156,L144:L156) -> -0.3440016422 | U144: =bdrate($D144:$D156,F144:F156,$K144:$K156,M144:M156) -> -0.3442546588
C145: 1.5 | D145: 0 | E145: 0 | F145: 0 | G145: 0 | H145: 0 | I145: 0 | K145: 2.8631 | L145: 102.6148553 | M145: 102.6583691 | N145: 17.65 | O145: 0.22 | P145: 0.004902777778
C146: 2 | D146: 0 | E146: 0 | F146: 0 | G146: 0 | H146: 0 | I146: 0 | K146: 2.3395 | L146: 100.0557262 | M146: 100.0571699 | N146: 17.38 | O146: 0.19 | P146: 0.004827777778
C147: 3 | D147: 0 | E147: 0 | F147: 0 | G147: 0 | H147: 0 | I147: 0 | K147: 1.4887 | L147: 96.1595078 | M147: 96.1627494 | N147: 17.05 | O147: 0.17 | P147: 0.004736111111
C148: 4 | D148: 0 | E148: 0 | F148: 0 | G148: 0 | H148: 0 | I148: 0 | K148: 1.1227 | L148: 94.59599829 | M148: 94.59600809 | N148: 16.39 | O148: 0.15 | P148: 0.004552777778
C149: 5.5 | D149: 4.464661007 | E149: 107.4522807 | F149: 107.4533762 | G149: 0 | H149: 0 | I149: 0 | K149: 0.8899 | L149: 93.17635288 | M149: 93.17641436 | N149: 15.04 | O149: 0.14 | P149: 0.004177777778
C150: 7 | D150: 3.24807432 | E150: 102.165608 | F150: 102.1657992 | G150: 0 | H150: 0 | I150: 0 | K150: 0.7231 | L150: 91.84023569 | M150: 91.84023707 | N150: 14.26 | O150: 0.14 | P150: 0.003961111111
C151: 9 | D151: 2.018253968 | E151: 96.27281245 | F151: 96.27347957 | G151: 0 | H151: 0 | I151: 0 | K151: 0.587 | L151: 90.46416777 | M151: 90.46417143 | N151: 13.98 | O151: 0.13 | P151: 0.003883333333
C152: 11 | D152: 1.325544481 | E152: 92.62254072 | F152: 92.62381899 | G152: 0 | H152: 0 | I152: 0 | K152: 0.4935 | L152: 89.28430123 | M152: 89.28486583 | N152: 13.89 | O152: 0.13 | P152: 0.003858333333
C153: 13.5 | D153: 0.9930355605 | E153: 89.28435794 | F153: 89.28677862 | G153: 0 | H153: 0 | I153: 0 | K153: 0.4152 | L153: 88.06773164 | M153: 88.06924702 | N153: 13.82 | O153: 0.12 | P153: 0.003838888889
C154: 16 | D154: 0.7248738772 | E154: 85.09709995 | F154: 85.0971313 | G154: 0 | H154: 0 | I154: 0 | K154: 0.3538 | L154: 86.88447046 | M154: 86.88776388 | N154: 13.85 | O154: 0.12 | P154: 0.003847222222
C155: 19 | D155: 0.5004060539 | E155: 80.1671073 | F155: 80.18584649 | G155: 0 | H155: 0 | I155: 0 | K155: 0.2939 | L155: 85.61645623 | M155: 85.61848597 | N155: 13.82 | O155: 0.11 | P155: 0.003838888889
C156: 22 | D156: 0.3352528608 | E156: 75.46690964 | F156: 75.50708746 | G156: 0 | H156: 0 | I156: 0 | K156: 0.258 | L156: 84.7975287 | M156: 84.80032885 | N156: 13.82 | O156: 0.11 | P156: 0.003838888889
B157: 112.dat | C157: 1 | D157: 0 | E157: 0 | F157: 0 | G157: 0 | H157: 0 | I157: 0 | K157: 3.1753 | L157: 0 | M157: 0 | N157: 19.13 | O157: 0.17 | P157: 0.005313888889 | V157: =($K157/$D157-1) -> 
C158: 1.125 | D158: 0 | E158: 0 | F158: 0 | G158: 0 | H158: 0 | I158: 0 | K158: 3.1075 | L158: 110.7650051 | M158: 110.8018389 | N158: 16.6 | O158: 0.18 | P158: 0.004611111111 | T158: =bdrate($D158:$D170,E158:E170,$K158:$K170,L158:L170) -> -0.4652092575 | U158: =bdrate($D158:$D170,F158:F170,$K158:$K170,M158:M170) -> -0.4647317851
C159: 1.5 | D159: 0 | E159: 0 | F159: 0 | G159: 0 | H159: 0 | I159: 0 | K159: 2.5993 | L159: 102.8365193 | M159: 102.8370305 | N159: 17.46 | O159: 0.22 | P159: 0.00485
C160: 2 | D160: 0 | E160: 0 | F160: 0 | G160: 0 | H160: 0 | I160: 0 | K160: 2.0886 | L160: 100.246649 | M160: 100.2467051 | N160: 17.15 | O160: 0.18 | P160: 0.004763888889
C161: 3 | D161: 0 | E161: 0 | F161: 0 | G161: 0 | H161: 0 | I161: 0 | K161: 1.2049 | L161: 96.16617724 | M161: 96.16745162 | N161: 16.9 | O161: 0.16 | P161: 0.004694444444
C162: 4 | D162: 0 | E162: 0 | F162: 0 | G162: 0 | H162: 0 | I162: 0 | K162: 0.8491 | L162: 94.63661693 | M162: 94.64097643 | N162: 15.99 | O162: 0.14 | P162: 0.004441666667
C163: 5.5 | D163: 4.241079119 | E163: 104.8081002 | F163: 104.844704 | G163: 0 | H163: 0 | I163: 0 | K163: 0.6638 | L163: 93.430684 | M163: 93.43172432 | N163: 14.41 | O163: 0.13 | P163: 0.004002777778
C164: 7 | D164: 3.044235265 | E164: 101.1505881 | F164: 101.1593377 | G164: 0 | H164: 0 | I164: 0 | K164: 0.5488 | L164: 92.34008581 | M164: 92.34033835 | N164: 13.68 | O164: 0.12 | P164: 0.0038
C165: 9 | D165: 1.844413683 | E165: 96.10217532 | F165: 96.10225688 | G165: 0 | H165: 0 | I165: 0 | K165: 0.4488 | L165: 91.12196146 | M165: 91.12210855 | N165: 13.42 | O165: 0.12 | P165: 0.003727777778
C166: 11 | D166: 1.231499938 | E166: 92.82647993 | F166: 92.82776834 | G166: 0 | H166: 0 | I166: 0 | K166: 0.3751 | L166: 89.92478729 | M166: 89.92484475 | N166: 13.34 | O166: 0.11 | P166: 0.003705555556
C167: 13.5 | D167: 0.8945982527 | E167: 89.34279375 | F167: 89.35393887 | G167: 0 | H167: 0 | I167: 0 | K167: 0.3098 | L167: 88.68827976 | M167: 88.68903316 | N167: 13.24 | O167: 0.11 | P167: 0.003677777778
C168: 16 | D168: 0.6375230712 | E168: 85.15177191 | F168: 85.15180832 | G168: 0 | H168: 0 | I168: 0 | K168: 0.2606 | L168: 87.52658489 | M168: 87.52700963 | N168: 13.12 | O168: 0.11 | P168: 0.003644444444
C169: 19 | D169: 0.4468007875 | E169: 80.52165907 | F169: 80.52165988 | G169: 0 | H169: 0 | I169: 0 | K169: 0.2203 | L169: 86.39631207 | M169: 86.39640075 | N169: 13.07 | O169: 0.1 | P169: 0.003630555556
C170: 22 | D170: 0.3049280177 | E170: 75.83935808 | F170: 75.89942158 | G170: 0 | H170: 0 | I170: 0 | K170: 0.1872 | L170: 85.33478243 | M170: 85.33478894 | N170: 12.97 | O170: 0.1 | P170: 0.003602777778
B171: 113.dat | C171: 1 | D171: 0 | E171: 0 | F171: 0 | G171: 0 | H171: 0 | I171: 0 | K171: 3.3088 | L171: 0 | M171: 0 | N171: 19.2 | O171: 0.18 | P171: 0.005333333333 | V171: =($K171/$D171-1) -> 
C172: 1.125 | D172: 0 | E172: 0 | F172: 0 | G172: 0 | H172: 0 | I172: 0 | K172: 3.2244 | L172: 110.1935801 | M172: 110.1944979 | N172: 16.52 | O172: 0.19 | P172: 0.004588888889 | T172: =bdrate($D172:$D184,E172:E184,$K172:$K184,L172:L184) -> -0.617184165 | U172: =bdrate($D172:$D184,F172:F184,$K172:$K184,M172:M184) -> -0.6057717207
C173: 1.5 | D173: 0 | E173: 0 | F173: 0 | G173: 0 | H173: 0 | I173: 0 | K173: 2.7185 | L173: 103.1145347 | M173: 103.1170956 | N173: 17.4 | O173: 0.22 | P173: 0.004833333333
C174: 2 | D174: 0 | E174: 0 | F174: 0 | G174: 0 | H174: 0 | I174: 0 | K174: 2.2108 | L174: 100.4108612 | M174: 100.4111073 | N174: 17.17 | O174: 0.2 | P174: 0.004769444444
C175: 3 | D175: 0 | E175: 0 | F175: 0 | G175: 0 | H175: 0 | I175: 0 | K175: 1.3962 | L175: 96.49134865 | M175: 96.51031168 | N175: 16.82 | O175: 0.16 | P175: 0.004672222222
C176: 4 | D176: 0 | E176: 0 | F176: 0 | G176: 0 | H176: 0 | I176: 0 | K176: 0.9156 | L176: 94.33431421 | M176: 94.33516399 | N176: 16.3 | O176: 0.15 | P176: 0.004527777778
C177: 5.5 | D177: 4.455703212 | E177: 104.1165043 | F177: 105.0764454 | G177: 0 | H177: 0 | I177: 0 | K177: 0.6365 | L177: 92.69903246 | M177: 92.71335838 | N177: 15.11 | O177: 0.13 | P177: 0.004197222222
C178: 7 | D178: 3.851039744 | E178: 102.1010037 | F178: 102.1046019 | G178: 0 | H178: 0 | I178: 0 | K178: 0.4997 | L178: 91.51668426 | M178: 91.54362015 | N178: 14.38 | O178: 0.13 | P178: 0.003994444444
C179: 9 | D179: 2.629937246 | E179: 96.26279042 | F179: 96.26346773 | G179: 0 | H179: 0 | I179: 0 | K179: 0.3952 | L179: 90.28162551 | M179: 90.31480384 | N179: 13.99 | O179: 0.12 | P179: 0.003886111111
C180: 11 | D180: 1.75401132 | E180: 91.79255385 | F180: 91.91307099 | G180: 0 | H180: 0 | I180: 0 | K180: 0.3258 | L180: 89.25958685 | M180: 89.29426363 | N180: 13.8 | O180: 0.12 | P180: 0.003833333333
C181: 13.5 | D181: 1.301150486 | E181: 88.17294825 | F181: 88.28483569 | G181: 0 | H181: 0 | I181: 0 | K181: 0.2718 | L181: 88.05125658 | M181: 88.09008335 | N181: 13.73 | O181: 0.11 | P181: 0.003813888889
C182: 16 | D182: 0.9347606743 | E182: 83.57855805 | F182: 83.74822595 | G182: 0 | H182: 0 | I182: 0 | K182: 0.2261 | L182: 86.93866755 | M182: 86.94711058 | N182: 13.7 | O182: 0.11 | P182: 0.003805555556
C183: 19 | D183: 0.6446597761 | E183: 78.87876832 | F183: 79.01427365 | G183: 0 | H183: 0 | I183: 0 | K183: 0.1829 | L183: 85.64739451 | M183: 85.68308952 | N183: 14.07 | O183: 0.1 | P183: 0.003908333333
C184: 22 | D184: 0.427094869 | E184: 74.30164296 | F184: 74.58861424 | G184: 0 | H184: 0 | I184: 0 | K184: 0.1625 | L184: 85.0046592 | M184: 85.0367183 | N184: 14.1 | O184: 0.1 | P184: 0.003916666667
B185: 114.dat | C185: 1 | D185: 0 | E185: 0 | F185: 0 | G185: 0 | H185: 0 | I185: 0 | K185: 3.5521 | L185: 0 | M185: 0 | N185: 19.67 | O185: 0.19 | P185: 0.005463888889 | V185: =($K185/$D185-1) -> 
C186: 1.125 | D186: 0 | E186: 0 | F186: 0 | G186: 0 | H186: 0 | I186: 0 | K186: 3.4299 | L186: 108.4516815 | M186: 108.5522539 | N186: 16.83 | O186: 0.2 | P186: 0.004675 | T186: =bdrate($D186:$D198,E186:E198,$K186:$K198,L186:L198) -> -0.4440700615 | U186: =bdrate($D186:$D198,F186:F198,$K186:$K198,M186:M198) -> -0.4424153226
C187: 1.5 | D187: 0 | E187: 0 | F187: 0 | G187: 0 | H187: 0 | I187: 0 | K187: 2.9974 | L187: 102.6789827 | M187: 102.7219031 | N187: 17.77 | O187: 0.23 | P187: 0.004936111111
C188: 2 | D188: 0 | E188: 0 | F188: 0 | G188: 0 | H188: 0 | I188: 0 | K188: 2.4676 | L188: 100.0364625 | M188: 100.0413323 | N188: 17.58 | O188: 0.19 | P188: 0.004883333333
C189: 3 | D189: 0 | E189: 0 | F189: 0 | G189: 0 | H189: 0 | I189: 0 | K189: 1.7004 | L189: 96.46734547 | M189: 96.4673778 | N189: 17.2 | O189: 0.17 | P189: 0.004777777778
C190: 4 | D190: 0 | E190: 0 | F190: 0 | G190: 0 | H190: 0 | I190: 0 | K190: 1.2571 | L190: 94.48545518 | M190: 94.48559529 | N190: 16.61 | O190: 0.16 | P190: 0.004613888889
C191: 5.5 | D191: 4.690839178 | E191: 106.1721301 | F191: 106.3898813 | G191: 0 | H191: 0 | I191: 0 | K191: 0.9941 | L191: 92.9705093 | M191: 92.97083603 | N191: 15.38 | O191: 0.14 | P191: 0.004272222222
C192: 7 | D192: 3.775261474 | E192: 102.2591783 | F192: 102.2595408 | G192: 0 | H192: 0 | I192: 0 | K192: 0.8139 | L192: 91.59658506 | M192: 91.59695793 | N192: 14.54 | O192: 0.14 | P192: 0.004038888889
C193: 9 | D193: 2.532705795 | E193: 96.25882779 | F193: 96.2593253 | G193: 0 | H193: 0 | I193: 0 | K193: 0.6601 | L193: 90.16169048 | M193: 90.16170454 | N193: 14.23 | O193: 0.13 | P193: 0.003952777778
C194: 11 | D194: 1.7428756 | E194: 92.21304149 | F194: 92.21351279 | G194: 0 | H194: 0 | I194: 0 | K194: 0.5495 | L194: 88.9082662 | M194: 88.90877073 | N194: 14.1 | O194: 0.12 | P194: 0.003916666667
C195: 13.5 | D195: 1.312187769 | E195: 88.45539937 | F195: 88.45556405 | G195: 0 | H195: 0 | I195: =G195/3600 -> 0 | K195: 0.4554 | L195: 87.59753334 | M195: 87.60326565 | N195: 13.99 | O195: 0.12 | P195: =N195/3600 -> 0.003886111111 | Q195: =N195/G195 ->  | R195: =O195/H195 -> 
C196: 16 | D196: 0.9410360527 | E196: 83.64329005 | F196: 83.64623204 | G196: 0 | H196: 0 | I196: 0 | K196: 0.3827 | L196: 86.39287661 | M196: 86.4001585 | N196: 14 | O196: 0.11 | P196: 0.003888888889
C197: 19 | D197: 0.624498585 | E197: 78.51913389 | F197: 78.52232954 | G197: 0 | H197: 0 | I197: 0 | K197: 0.3201 | L197: 85.16095221 | M197: 85.16914897 | N197: 14.03 | O197: 0.11 | P197: 0.003897222222
C198: 22 | D198: 0.3866309831 | E198: 73.84947016 | F198: 73.8559423 | G198: 0 | H198: 0 | I198: 0 | K198: 0.2731 | L198: 84.28091425 | M198: 84.29966491 | N198: 14.09 | O198: 0.11 | P198: 0.003913888889
B199: 115.dat | C199: 1 | D199: 0 | E199: 0 | F199: 0 | G199: 0 | H199: 0 | I199: 0 | K199: 3.1975 | L199: 0 | M199: 0 | N199: 19 | O199: 0.17 | P199: 0.005277777778 | V199: =($K199/$D199-1) -> 
C200: 1.125 | D200: 0 | E200: 0 | F200: 0 | G200: 0 | H200: 0 | I200: 0 | K200: 3.1332 | L200: 111.0569133 | M200: 111.0870371 | N200: 16.44 | O200: 0.18 | P200: 0.004566666667 | T200: =bdrate($D200:$D212,E200:E212,$K200:$K212,L200:L212) -> -0.5676691926 | U200: =bdrate($D200:$D212,F200:F212,$K200:$K212,M200:M212) -> -0.5601627705
... 479 more rows

Sheet INCART (ECG)
D1: Reference | K1: Tested | T1: BD-rate (piecewise cubic) | V1: Lossless
C2: StepSizeForQP | D2: BPS | E2: PSNR1 | F2: PSNR2 | G2: Enc T [s] | H2: Dec T [s] | I2: Enc T [h] | K2: BPS | L2: PSNR1 | M2: PSNR2 | N2: Enc T [s] | O2: Dec T [s] | P2: Enc T [h] | Q2: EncR | R2: DecR | T2: BD-PSNR1 | U2: BD-PSNR2 | V2: BR-R
A3: MIT | B3: l01.dat | C3: 1 | D3: 0 | E3: 0 | F3: 0 | G3: 0 | H3: 0 | I3: =G3/3600 -> 0 | K3: 4.2913 | L3: 0 | M3: 0 | N3: 69.69 | O3: 1.34 | P3: =N3/3600 -> 0.01935833333 | Q3: =N3/G3 ->  | R3: =O3/H3 ->  | V3: =($K3/$D3-1) -> 
A4: ECG | C4: 1.125 | D4: 0 | E4: 0 | F4: 0 | G4: 0 | H4: 0 | I4: 0 | K4: 4.2912 | L4: 0 | M4: 0 | N4: 71.15 | O4: 1.35 | P4: 0.01976388889 | T4: =bdrate($D4:$D16,E4:E16,$K4:$K16,L4:L16) -> -0.5208708191 | U4: =bdrate($D4:$D16,F4:F16,$K4:$K16,M4:M16) -> -0.5194169064
C5: 1.5 | D5: 0 | E5: 0 | F5: 0 | G5: 0 | H5: 0 | I5: 0 | K5: 3.0962 | L5: 101.9760766 | M5: 101.97856 | N5: 57.43 | O5: 1.31 | P5: 0.01595277778
C6: 2 | D6: 0 | E6: 0 | F6: 0 | G6: 0 | H6: 0 | I6: 0 | K6: 2.7974 | L6: 99.89889016 | M6: 99.90191121 | N6: 55.54 | O6: 1.29 | P6: 0.01542777778
C7: 3 | D7: 3.152444156 | E7: 87.92800912 | F7: 88.04915994 | G7: 0 | H7: 0 | I7: 0 | K7: 2.3959 | L7: 96.8719023 | M7: 96.87668449 | N7: 53.08 | O7: 1.27 | P7: 0.01474444444
C8: 4 | D8: 2.207185473 | E8: 84.22232868 | F8: 84.27077562 | G8: 0 | H8: 0 | I8: 0 | K8: 2.1355 | L8: 94.70026784 | M8: 94.70623742 | N8: 51.64 | O8: 1.25 | P8: 0.01434444444
C9: 5.5 | D9: 1.463158957 | E9: 79.71914787 | F9: 79.754096 | G9: 0 | H9: 0 | I9: 0 | K9: 1.8543 | L9: 92.17150352 | M9: 92.18027803 | N9: 49.39 | O9: 1.22 | P9: 0.01371944444
C10: 7 | D10: 0.9067300764 | E10: 75.19996127 | F10: 75.24908264 | G10: 0 | H10: 0 | I10: 0 | K10: 1.66 | L10: 90.32124972 | M10: 90.3336076 | N10: 47.5 | O10: 1.2 | P10: 0.01319444444
C11: 9 | D11: 0.5662516213 | E11: 71.26451124 | F11: 71.28742448 | G11: 0 | H11: 0 | I11: 0 | K11: 1.4747 | L11: 88.49673671 | M11: 88.51263045 | N11: 45.09 | O11: 1.18 | P11: 0.012525
C12: 11 | D12: 0.3513488975 | E12: 67.31710981 | F12: 67.32899085 | G12: 0 | H12: 0 | I12: 0 | K12: 1.3162 | L12: 86.85293999 | M12: 86.87118895 | N12: 43.28 | O12: 1.16 | P12: 0.01202222222
C13: 13.5 | D13: 0.2333938608 | E13: 64.05798947 | F13: 64.15208821 | G13: 0 | H13: 0 | I13: 0 | K13: 1.1792 | L13: 85.38206519 | M13: 85.40232148 | N13: 42.02 | O13: 1.13 | P13: 0.01167222222
C14: 16 | D14: 0.1990113849 | E14: 62.17283437 | F14: 62.39283871 | G14: 0 | H14: 0 | I14: 0 | K14: 1.064 | L14: 84.08810263 | M14: 84.11007455 | N14: 41.02 | O14: 1.1 | P14: 0.01139444444
C15: 19 | D15: 0.1930479896 | E15: 61.07036165 | F15: 61.31035533 | G15: 0 | H15: 0 | I15: 0 | K15: 0.9539 | L15: 82.79590003 | M15: 82.81975821 | N15: 40.17 | O15: 1.08 | P15: 0.01115833333
C16: 22 | D16: 0.1914497766 | E16: 59.52331773 | F16: 59.65617395 | G16: 0 | H16: 0 | I16: 0 | K16: 0.8619 | L16: 81.65712743 | M16: 81.68213627 | N16: 39.26 | O16: 1.03 | P16: 0.01090555556
B17: l02.dat | C17: 1 | D17: 0 | E17: 0 | F17: 0 | G17: 0 | H17: 0 | I17: 0 | K17: 3.6561 | L17: 0 | M17: 0 | N17: 65.59 | O17: 1.1 | P17: 0.01821944444 | V17: =($K17/$D17-1) -> 
C18: 1.125 | D18: 0 | E18: 0 | F18: 0 | G18: 0 | H18: 0 | I18: 0 | K18: 3.6598 | L18: 117.0535576 | M18: 117.0152763 | N18: 63.8 | O18: 1.12 | P18: 0.01772222222 | T18: =bdrate($D18:$D30,E18:E30,$K18:$K30,L18:L30) -> -0.7069305068 | U18: =bdrate($D18:$D30,F18:F30,$K18:$K30,M18:M30) -> -0.6861140197
C19: 1.5 | D19: 0 | E19: 0 | F19: 0 | G19: 0 | H19: 0 | I19: 0 | K19: 2.5867 | L19: 102.368289 | M19: 103.4087495 | N19: 52.01 | O19: 1.36 | P19: 0.01444722222
C20: 2 | D20: 0 | E20: 0 | F20: 0 | G20: 0 | H20: 0 | I20: 0 | K20: 2.3164 | L20: 100.2708779 | M20: 101.2915984 | N20: 49.69 | O20: 1.28 | P20: 0.01380277778
C21: 3 | D21: 2.795336504 | E21: 84.57953832 | F21: 87.60216697 | G21: 0 | H21: 0 | I21: 0 | K21: 1.9285 | L21: 97.34358595 | M21: 98.35231714 | N21: 47.05 | O21: 1.13 | P21: 0.01306944444
C22: 4 | D22: 1.959249171 | E22: 82.66774109 | F22: 83.85355901 | G22: 0 | H22: 0 | I22: 0 | K22: 1.6673 | L22: 95.17814938 | M22: 96.19749251 | N22: 45.65 | O22: 1.1 | P22: 0.01268055556
C23: 5.5 | D23: 1.297133593 | E23: 79.37449534 | F23: 79.61751849 | G23: 0 | H23: 0 | I23: 0 | K23: 1.4041 | L23: 92.69398066 | M23: 93.71572575 | N23: 43.64 | O23: 1.06 | P23: 0.01212222222
C24: 7 | D24: 0.8031603978 | E24: 75.39471522 | F24: 75.44040145 | G24: 0 | H24: 0 | I24: 0 | K24: 1.2273 | L24: 90.84615687 | M24: 91.88798707 | N24: 42.3 | O24: 1.04 | P24: 0.01175
C25: 9 | D25: 0.4981265312 | E25: 71.60580397 | F25: 71.75072018 | G25: 0 | H25: 0 | I25: 0 | K25: 1.0637 | L25: 89.00095809 | M25: 90.06569678 | N25: 40.92 | O25: 0.99 | P25: 0.01136666667
C26: 11 | D26: 0.3125234184 | E26: 67.87810985 | F26: 68.2355506 | G26: 0 | H26: 0 | I26: 0 | K26: 0.9365 | L26: 87.40648583 | M26: 88.47925495 | N26: 40.68 | O26: 0.97 | P26: 0.0113
C27: 13.5 | D27: 0.2242498919 | E27: 65.01846175 | F27: 65.64247048 | G27: 0 | H27: 0 | I27: 0 | K27: 0.825 | L27: 85.95627756 | M27: 87.05038381 | N27: 39.04 | O27: 0.95 | P27: 0.01084444444
C28: 16 | D28: 0.2027093241 | E28: 63.4988639 | F28: 64.31120531 | G28: 0 | H28: 0 | I28: 0 | K28: 0.7393 | L28: 84.68278239 | M28: 85.77335054 | N28: 37.91 | O28: 0.92 | P28: 0.01053055556
C29: 19 | D29: 0.1989508575 | E29: 62.46033553 | F29: 63.03264003 | G29: 0 | H29: 0 | I29: 0 | K29: 0.6588 | L29: 83.41047511 | M29: 84.50658714 | N29: 37.03 | O29: 0.91 | P29: 0.01028611111
C30: 22 | D30: 0.1976235769 | E30: 60.85629381 | F30: 61.18207002 | G30: 0 | H30: 0 | I30: 0 | K30: 0.5902 | L30: 82.32662741 | M30: 83.37928977 | N30: 36.36 | O30: 0.87 | P30: 0.0101
B31: l03.dat | C31: 1 | D31: 0 | E31: 0 | F31: 0 | G31: 0 | H31: 0 | I31: 0 | K31: 4.857 | L31: 0 | M31: 0 | N31: 68.76 | O31: 1.36 | P31: 0.0191 | V31: =($K31/$D31-1) -> 
C32: 1.125 | D32: 0 | E32: 0 | F32: 0 | G32: 0 | H32: 0 | I32: 0 | K32: 4.8568 | L32: 0 | M32: 0 | N32: 73.11 | O32: 1.37 | P32: 0.02030833333 | T32: =bdrate($D32:$D44,E32:E44,$K32:$K44,L32:L44) -> -0.650440494 | U32: =bdrate($D32:$D44,F32:F44,$K32:$K44,M32:M44) -> -0.7084530508
C33: 1.5 | D33: 0 | E33: 0 | F33: 0 | G33: 0 | H33: 0 | I33: 0 | K33: 3.7516 | L33: 102.3722944 | M33: 106.2468221 | N33: 57.09 | O33: 1.38 | P33: 0.01585833333
C34: 2 | D34: 0 | E34: 0 | F34: 0 | G34: 0 | H34: 0 | I34: 0 | K34: 3.4474 | L34: 100.2914665 | M34: 104.3403746 | N34: 55.81 | O34: 1.36 | P34: 0.01550277778
C35: 3 | D35: 4.095755873 | E35: 82.45657956 | F35: 84.01565678 | G35: 0 | H35: 0 | I35: 0 | K35: 3.0281 | L35: 97.22463586 | M35: 101.5329815 | N35: 53.89 | O35: 1.33 | P35: 0.01496944444
C36: 4 | D36: 3.247139357 | E36: 81.09035002 | F36: 81.6350827 | G36: 0 | H36: 0 | I36: 0 | K36: 2.7505 | L36: 94.98261355 | M36: 98.6133176 | N36: 53.2 | O36: 1.32 | P36: 0.01477777778
C37: 5.5 | D37: 2.248097709 | E37: 77.63939439 | F37: 77.69493582 | G37: 0 | H37: 0 | I37: 0 | K37: 2.4427 | L37: 92.29725723 | M37: 91.93575682 | N37: 51.85 | O37: 1.29 | P37: 0.01440277778
C38: 7 | D38: 1.473238219 | E38: 73.60304426 | F38: 73.74497079 | G38: 0 | H38: 0 | I38: 0 | K38: 2.2227 | L38: 90.29607883 | M38: 94.32273132 | N38: 51.25 | O38: 1.28 | P38: 0.01423611111
C39: 9 | D39: 0.9816688284 | E39: 69.57665197 | F39: 70.04215234 | G39: 0 | H39: 0 | I39: 0 | K39: 2.0094 | L39: 88.2742561 | M39: 92.15980937 | N39: 50.2 | O39: 1.26 | P39: 0.01394444444
C40: 11 | D40: 0.639933708 | E40: 65.29651205 | F40: 66.12720891 | G40: 0 | H40: 0 | I40: 0 | K40: 1.8159 | L40: 86.4231648 | M40: 90.77293587 | N40: 49.19 | O40: 1.21 | P40: 0.01366388889
C41: 13.5 | D41: 0.4225738579 | E41: 61.3924849 | F41: 62.5145736 | G41: 0 | H41: 0 | I41: 0 | K41: 1.6286 | L41: 84.71933497 | M41: 87.89737561 | N41: 48.58 | O41: 1.14 | P41: 0.01349444444
C42: 16 | D42: 0.2895820723 | E42: 57.55550102 | F42: 59.4571427 | G42: 0 | H42: 0 | I42: 0 | K42: 1.4403 | L42: 83.17302342 | M42: 85.96380827 | N42: 47.66 | O42: 1 | P42: 0.01323888889
C43: 19 | D43: 0.226126243 | E43: 54.53120532 | F43: 57.32849922 | G43: 0 | H43: 0 | I43: 0 | K43: 1.2333 | L43: 81.62743768 | M43: 84.04094622 | N43: 46.81 | O43: 0.86 | P43: 0.01300277778
C44: 22 | D44: 0.2110952587 | E44: 53.1694486 | F44: 55.86377765 | G44: 0 | H44: 0 | I44: 0 | K44: 1.0572 | L44: 80.35638761 | M44: 83.20405978 | N44: 45.88 | O44: 0.77 | P44: 0.01274444444
B45: l04.dat | C45: 1 | D45: 0 | E45: 0 | F45: 0 | G45: 0 | H45: 0 | I45: 0 | K45: 5.2894 | L45: 0 | M45: 0 | N45: 65.59 | O45: 1.44 | P45: 0.01821944444 | V45: =($K45/$D45-1) -> 
C46: 1.125 | D46: 0 | E46: 0 | F46: 0 | G46: 0 | H46: 0 | I46: 0 | K46: 5.2894 | L46: 0 | M46: 0 | N46: 65.59 | O46: 1.44 | P46: 0.01821944444 | T46: =bdrate($D46:$D58,E46:E58,$K46:$K58,L46:L58) ->  | U46: =bdrate($D46:$D58,F46:F58,$K46:$K58,M46:M58) -> 
C47: 1.5 | D47: 0 | E47: 0 | F47: 0 | G47: 0 | H47: 0 | I47: 0 | K47: 4.2281 | L47: 101.9836085 | M47: 101.987459 | N47: 57.01 | O47: 1.45 | P47: 0.01583611111
C48: 2 | D48: 0 | E48: 0 | F48: 0 | G48: 0 | H48: 0 | I48: 0 | K48: 3.8933 | L48: 99.90408813 | M48: 99.90897317 | N48: 54.75 | O48: 1.43 | P48: 0.01520833333
C49: 3 | D49: 4.383568237 | E49: 76.11570832 | F49: 77.13012385 | G49: 0 | H49: 0 | I49: 0 | K49: 3.4248 | L49: 96.8300079 | M49: 96.83889132 | N49: 51.61 | O49: 1.39 | P49: 0.01433611111
C50: 4 | D50: 3.354408416 | E50: 75.62708743 | F50: 76.44124303 | G50: 0 | H50: 0 | I50: 0 | K50: 3.1165 | L50: 94.58656905 | M50: 94.59854054 | N50: 51.86 | O50: 1.37 | P50: 0.01440555556
C51: 5.5 | D51: 2.265195273 | E51: 74.24124635 | F51: 74.64160407 | G51: 0 | H51: 0 | I51: 0 | K51: 2.7672 | L51: 91.90437551 | M51: 91.91972662 | N51: 50.65 | O51: 1.35 | P51: 0.01406944444
C52: 7 | D52: 1.42323966 | E52: 71.68098907 | F52: 71.82963855 | G52: 0 | H52: 0 | I52: 0 | K52: 2.5188 | L52: 89.89335998 | M52: 89.91046517 | N52: 49.62 | O52: 1.32 | P52: 0.01378333333
C53: 9 | D53: 0.9022178988 | E53: 68.5829446 | F53: 68.69252785 | G53: 0 | H53: 0 | I53: 0 | K53: 2.2779 | L53: 87.87375307 | M53: 87.89337743 | N53: 48.81 | O53: 1.31 | P53: 0.01355833333
C54: 11 | D54: 0.5885891339 | E54: 65.05648357 | F54: 65.22278254 | G54: 0 | H54: 0 | I54: 0 | K54: 2.0682 | L54: 86.03171703 | M54: 86.05272566 | N54: 48.06 | O54: 1.29 | P54: 0.01335
C55: 13.5 | D55: 0.4000072056 | E55: 61.4930087 | F55: 61.74630098 | G55: 0 | H55: 0 | I55: 0 | K55: 1.8765 | L55: 84.37399103 | M55: 84.39262435 | N55: 46.83 | O55: 1.24 | P55: 0.01300833333
C56: 16 | D56: 0.2876970745 | E56: 58.02534997 | F56: 58.60189333 | G56: 0 | H56: 0 | I56: 0 | K56: 1.6919 | L56: 82.8732304 | M56: 82.88454475 | N56: 45.85 | O56: 1.15 | P56: 0.01273611111
C57: 19 | D57: 0.2359749243 | E57: 55.054523 | F57: 56.4699392 | G57: 0 | H57: 0 | I57: 0 | K57: 1.4964 | L57: 81.39407806 | M57: 81.4021189 | N57: 45.07 | O57: 1.05 | P57: 0.01251944444
C58: 22 | D58: 0.2217307969 | E58: 53.38637486 | F58: 54.86406037 | G58: 0 | H58: 0 | I58: 0 | K58: 1.3181 | L58: 80.11125267 | M58: 80.11741188 | N58: 44.17 | O58: 0.96 | P58: 0.01226944444
B59: l05.dat | C59: 1 | D59: 0 | E59: 0 | F59: 0 | G59: 0 | H59: 0 | I59: 0 | K59: 4.5574 | L59: 0 | M59: 0 | N59: 66.56 | O59: 1.26 | P59: 0.01848888889 | V59: =($K59/$D59-1) -> 
C60: 1.125 | D60: 0 | E60: 0 | F60: 0 | G60: 0 | H60: 0 | I60: 0 | K60: 4.5888 | L60: 123.1283806 | M60: 123.1436206 | N60: 64.03 | O60: 1.4 | P60: 0.01778611111 | T60: =bdrate($D60:$D72,E60:E72,$K60:$K72,L60:L72) -> -0.7337597247 | U60: =bdrate($D60:$D72,F60:F72,$K60:$K72,M60:M72) -> -0.725739793
C61: 1.5 | D61: 0 | E61: 0 | F61: 0 | G61: 0 | H61: 0 | I61: 0 | K61: 3.486 | L61: 101.994246 | M61: 101.9983093 | N61: 54.18 | O61: 1.44 | P61: 0.01505
C62: 2 | D62: 0 | E62: 0 | F62: 0 | G62: 0 | H62: 0 | I62: 0 | K62: 3.1591 | L62: 99.92035435 | M62: 99.92542155 | N62: 52.26 | O62: 1.4 | P62: 0.01451666667
C63: 3 | D63: 3.976123361 | E63: 86.78709383 | F63: 87.39887786 | G63: 0 | H63: 0 | I63: 0 | K63: 2.7141 | L63: 96.95598515 | M63: 96.96273409 | N63: 50.61 | O63: 1.28 | P63: 0.01405833333
C64: 4 | D64: 2.99863525 | E64: 83.47258999 | F64: 83.52113596 | G64: 0 | H64: 0 | I64: 0 | K64: 2.3881 | L64: 94.68035646 | M64: 94.68788733 | N64: 49.73 | O64: 1.21 | P64: 0.01381388889
C65: 5.5 | D65: 2.057855599 | E65: 78.96088819 | F65: 79.0019394 | G65: 0 | H65: 0 | I65: 0 | K65: 2.0048 | L65: 91.91161957 | M65: 91.91904166 | N65: 48.66 | O65: 1.13 | P65: 0.01351666667
C66: 7 | D66: 1.404908488 | E66: 74.52981954 | F66: 74.71413117 | G66: 0 | H66: 0 | I66: 0 | K66: 1.688 | L66: 89.7780639 | M66: 89.78267991 | N66: 47.53 | O66: 1.01 | P66: 0.01320277778
C67: 9 | D67: 0.953517798 | E67: 70.05532298 | F67: 70.3663282 | G67: 0 | H67: 0 | I67: =G67/3600 -> 0 | K67: 1.3574 | L67: 87.63698924 | M67: 87.63914294 | N67: 45.95 | O67: 0.84 | P67: =N67/3600 -> 0.01276388889 | Q67: =N67/G67 ->  | R67: =O67/H67 -> 
C68: 11 | D68: 0.6112235192 | E68: 65.45663432 | F68: 65.74506926 | G68: 0 | H68: 0 | I68: 0 | K68: 1.1049 | L68: 85.99334203 | M68: 85.99565469 | N68: 44.86 | O68: 0.72 | P68: 0.01246111111
C69: 13.5 | D69: 0.3953480329 | E69: 61.51671037 | F69: 62.02697022 | G69: 0 | H69: 0 | I69: 0 | K69: 0.8962 | L69: 84.43244774 | M69: 84.43870183 | N69: 43.49 | O69: 0.65 | P69: 0.01208055556
C70: 16 | D70: 0.2748897536 | E70: 57.92088618 | F70: 59.01294798 | G70: 0 | H70: 0 | I70: 0 | K70: 0.7517 | L70: 83.23311796 | M70: 83.24373402 | N70: 41.87 | O70: 0.61 | P70: 0.01163055556
C71: 19 | D71: 0.2343695057 | E71: 55.69574232 | F71: 57.20727865 | G71: 0 | H71: 0 | I71: 0 | K71: 0.6346 | L71: 81.98180399 | M71: 81.99712216 | N71: 40.49 | O71: 0.57 | P71: 0.01124722222
C72: 22 | D72: 0.2293298746 | E72: 54.72212883 | F72: 55.997406 | G72: 0 | H72: 0 | I72: 0 | K72: 0.5561 | L72: 81.0459197 | M72: 81.06452871 | N72: 38.9 | O72: 0.54 | P72: 0.01080555556
B73: l06.dat | C73: 1 | D73: 0 | E73: 0 | F73: 0 | G73: 0 | H73: 0 | I73: 0 | K73: 3.6602 | L73: 0 | M73: 0 | N73: 65.11 | O73: 1.36 | P73: 0.01808611111 | V73: =($K73/$D73-1) -> 
C74: 1.125 | D74: 0 | E74: 0 | F74: 0 | G74: 0 | H74: 0 | I74: 0 | K74: 3.6602 | L74: 0 | M74: 0 | N74: 65.11 | O74: 1.36 | P74: 0.01808611111 | T74: =bdrate($D74:$D86,E74:E86,$K74:$K86,L74:L86) -> -0.5912056532 | U74: =bdrate($D74:$D86,F74:F86,$K74:$K86,M74:M86) -> -0.5909480825
C75: 1.5 | D75: 0 | E75: 0 | F75: 0 | G75: 0 | H75: 0 | I75: 0 | K75: 2.486 | L75: 101.9951399 | M75: 101.9971518 | N75: 51.5 | O75: 1.37 | P75: 0.01430555556
C76: 2 | D76: 0 | E76: 0 | F76: 0 | G76: 0 | H76: 0 | I76: 0 | K76: 2.1972 | L76: 99.94442783 | M76: 99.94639509 | N76: 49.89 | O76: 1.36 | P76: 0.01385833333
C77: 3 | D77: 2.543765672 | E77: 90.02980414 | F77: 90.06778425 | G77: 0 | H77: 0 | I77: 0 | K77: 1.8127 | L77: 97.03206396 | M77: 97.0362994 | N77: 47.96 | O77: 1.31 | P77: 0.01332222222
C78: 4 | D78: 1.74292117 | E78: 85.52416014 | F78: 85.56272937 | G78: 0 | H78: 0 | I78: 0 | K78: 1.5702 | L78: 94.97281143 | M78: 94.98014958 | N78: 45.92 | O78: 1.29 | P78: 0.01275555556
C79: 5.5 | D79: 1.159786713 | E79: 80.99974124 | F79: 81.03884179 | G79: 0 | H79: 0 | I79: 0 | K79: 1.3169 | L79: 92.57800967 | M79: 92.59080791 | N79: 43.88 | O79: 1.26 | P79: 0.01218888889
C80: 7 | D80: 0.765804871 | E80: 76.68289341 | F80: 76.72413474 | G80: 0 | H80: 0 | I80: 0 | K80: 1.1491 | L80: 90.8317064 | M80: 90.84999519 | N80: 42.46 | O80: 1.24 | P80: 0.01179444444
C81: 9 | D81: 0.5024225393 | E81: 72.34297609 | F81: 72.38452041 | G81: 0 | H81: 0 | I81: 0 | K81: 0.9938 | L81: 89.0732398 | M81: 89.09718381 | N81: 40.18 | O81: 1.19 | P81: 0.01116111111
C82: 11 | D82: 0.3112336071 | E82: 67.99456055 | F82: 68.05732577 | G82: 0 | H82: 0 | I82: 0 | K82: 0.8662 | L82: 87.49808523 | M82: 87.52698304 | N82: 38.81 | O82: 1.15 | P82: 0.01078055556
C83: 13.5 | D83: 0.2163251189 | E83: 65.03079212 | F83: 65.15225154 | G83: 0 | H83: 0 | I83: 0 | K83: 0.7555 | L83: 86.07258669 | M83: 86.10604384 | N83: 36.91 | O83: 1.1 | P83: 0.01025277778
C84: 16 | D84: 0.2040020176 | E84: 64.26260386 | F84: 64.37447648 | G84: 0 | H84: 0 | I84: 0 | K84: 0.6695 | L84: 84.82697212 | M84: 84.86431469 | N84: 35.99 | O84: 1.05 | P84: 0.009997222222
C85: 19 | D85: 0.2028145266 | E85: 63.3421986 | F85: 63.42649645 | G85: 0 | H85: 0 | I85: 0 | K85: 0.5677 | L85: 83.5184277 | M85: 83.55334213 | N85: 34.16 | O85: 0.87 | P85: 0.009488888889
C86: 22 | D86: 0.2021227843 | E86: 61.09463427 | F86: 61.22044427 | G86: 0 | H86: 0 | I86: 0 | K86: 0.4867 | L86: 82.41275688 | M86: 82.44729516 | N86: 33.49 | O86: 0.74 | P86: 0.009302777778
B87: l07.dat | C87: 1 | D87: 0 | E87: 0 | F87: 0 | G87: 0 | H87: 0 | I87: 0 | K87: 3.7352 | L87: 0 | M87: 0 | N87: 64.17 | O87: 1.21 | P87: 0.017825 | V87: =($K87/$D87-1) -> 
C88: 1.125 | D88: 0 | E88: 0 | F88: 0 | G88: 0 | H88: 0 | I88: 0 | K88: 3.7423 | L88: 128.3116111 | M88: 128.8842084 | N88: 61.09 | O88: 1.23 | P88: 0.01696944444 | T88: =bdrate($D88:$D100,E88:E100,$K88:$K100,L88:L100) -> -0.6262848672 | U88: =bdrate($D88:$D100,F88:F100,$K88:$K100,M88:M100) -> -0.6203376047
C89: 1.5 | D89: 0 | E89: 0 | F89: 0 | G89: 0 | H89: 0 | I89: 0 | K89: 2.5477 | L89: 102.0086629 | M89: 102.011475 | N89: 50.81 | O89: 1.32 | P89: 0.01411388889
C90: 2 | D90: 0 | E90: 0 | F90: 0 | G90: 0 | H90: 0 | I90: 0 | K90: 2.2582 | L90: 99.94471379 | M90: 99.947748 | N90: 49.31 | O90: 1.28 | P90: 0.01369722222
C91: 3 | D91: 2.442432627 | E91: 87.60614212 | F91: 87.93418528 | G91: 0 | H91: 0 | I91: 0 | K91: 1.8684 | L91: 97.00097389 | M91: 97.00644722 | N91: 46.75 | O91: 1.25 | P91: 0.01298611111
C92: 4 | D92: 1.64778066 | E92: 84.52884379 | F92: 84.65369177 | G92: 0 | H92: 0 | I92: 0 | K92: 1.6206 | L92: 94.92355606 | M92: 94.93303021 | N92: 45.28 | O92: 1.23 | P92: 0.01257777778
C93: 5.5 | D93: 1.086996685 | E93: 80.69909766 | F93: 80.74626283 | G93: 0 | H93: 0 | I93: 0 | K93: 1.3508 | L93: 92.50054579 | M93: 92.51647221 | N93: 42.87 | O93: 1.2 | P93: 0.01190833333
C94: 7 | D94: 0.7023346304 | E94: 76.58018656 | F94: 76.62020665 | G94: 0 | H94: 0 | I94: 0 | K94: 1.174 | L94: 90.73804744 | M94: 90.75958139 | N94: 41.09 | O94: 1.15 | P94: 0.01141388889
C95: 9 | D95: 0.4601181726 | E95: 72.55825794 | F95: 72.61261703 | G95: 0 | H95: 0 | I95: 0 | K95: 1.0095 | L95: 88.98458617 | M95: 89.01126846 | N95: 39.29 | O95: 1.12 | P95: 0.01091388889
C96: 11 | D96: 0.2975342268 | E96: 68.58872272 | F96: 68.66784476 | G96: 0 | H96: 0 | I96: 0 | K96: 0.8705 | L96: 87.43059612 | M96: 87.45905684 | N96: 37.81 | O96: 1.06 | P96: 0.01050277778
C97: 13.5 | D97: 0.2179636835 | E97: 65.50939905 | F97: 65.7268696 | G97: 0 | H97: 0 | I97: 0 | K97: 0.7519 | L97: 86.03169445 | M97: 86.05863518 | N97: 36.7 | O97: 1.03 | P97: 0.01019444444
C98: 16 | D98: 0.2048148148 | E98: 64.57301119 | F98: 64.80005284 | G98: 0 | H98: 0 | I98: 0 | K98: 0.6487 | L98: 84.78299305 | M98: 84.80822774 | N98: 35.27 | O98: 0.91 | P98: 0.009797222222
C99: 19 | D99: 0.2020492866 | E99: 63.42471667 | F99: 63.55139581 | G99: 0 | H99: 0 | I99: 0 | K99: 0.5432 | L99: 83.50001312 | M99: 83.52516346 | N99: 34.3 | O99: 0.79 | P99: 0.009527777778
C100: 22 | D100: 0.2003228131 | E100: 60.98510309 | F100: 61.04496276 | G100: 0 | H100: 0 | I100: 0 | K100: 0.4639 | L100: 82.4228899 | M100: 82.4467303 | N100: 33.33 | O100: 0.7 | P100: 0.009258333333
B101: l08.dat | C101: 1 | D101: 0 | E101: 0 | F101: 0 | G101: 0 | H101: 0 | I101: 0 | K101: 4.7962 | L101: 0 | M101: 0 | N101: 76.11 | O101: 1.44 | P101: 0.02114166667 | V101: =($K101/$D101-1) -> 
C102: 1.125 | D102: 0 | E102: 0 | F102: 0 | G102: 0 | H102: 0 | I102: 0 | K102: 4.7961 | L102: 0 | M102: 0 | N102: 79.95 | O102: 1.43 | P102: 0.02220833333 | T102: =bdrate($D102:$D114,E102:E114,$K102:$K114,L102:L114) -> -0.5622135741 | U102: =bdrate($D102:$D114,F102:F114,$K102:$K114,M102:M114) -> -0.5603703976
C103: 1.5 | D103: 0 | E103: 0 | F103: 0 | G103: 0 | H103: 0 | I103: 0 | K103: 3.6709 | L103: 101.9524482 | M103: 101.9536451 | N103: 66.73 | O103: 1.42 | P103: 0.01853611111
C104: 2 | D104: 0 | E104: 0 | F104: 0 | G104: 0 | H104: 0 | I104: 0 | K104: 3.3454 | L104: 99.86548462 | M104: 99.8670006 | N104: 64.03 | O104: 1.38 | P104: 0.01778611111
C105: 3 | D105: 4.199344286 | E105: 86.51014955 | F105: 86.88420375 | G105: 0 | H105: 0 | I105: 0 | K105: 2.9038 | L105: 96.79300218 | M105: 96.79616207 | N105: 61.68 | O105: 1.38 | P105: 0.01713333333
C106: 4 | D106: 3.324896959 | E106: 83.71262986 | F106: 83.77360078 | G106: 0 | H106: 0 | I106: 0 | K106: 2.6179 | L106: 94.57105301 | M106: 94.57536779 | N106: 60.85 | O106: 1.35 | P106: 0.01690277778
C107: 5.5 | D107: 2.400207523 | E107: 79.01365826 | F107: 79.03330368 | G107: 0 | H107: 0 | I107: 0 | K107: 2.3103 | L107: 91.94117864 | M107: 91.94785651 | N107: 59.35 | O107: 1.33 | P107: 0.01648611111
C108: 7 | D108: 1.628694336 | E108: 73.99320357 | F108: 74.02472939 | G108: 0 | H108: 0 | I108: 0 | K108: 2.0979 | L108: 90.00574707 | M108: 90.01477415 | N108: 58 | O108: 1.31 | P108: 0.01611111111
C109: 9 | D109: 1.060384782 | E109: 69.24461999 | F109: 69.30503674 | G109: 0 | H109: 0 | I109: 0 | K109: 1.8971 | L109: 88.08108499 | M109: 88.09311025 | N109: 56.39 | O109: 1.29 | P109: 0.01566388889
C110: 11 | D110: 0.6507911803 | E110: 64.72450093 | F110: 64.80938426 | G110: 0 | H110: 0 | I110: 0 | K110: 1.7212 | L110: 86.34113066 | M110: 86.35660309 | N110: 54.7 | O110: 1.24 | P110: 0.01519444444
C111: 13.5 | D111: 0.3986597492 | E111: 60.77341942 | F111: 60.91711574 | G111: 0 | H111: 0 | I111: 0 | K111: 1.5711 | L111: 84.78927624 | M111: 84.80781917 | N111: 53.49 | O111: 1.19 | P111: 0.01485833333
C112: 16 | D112: 0.2593500504 | E112: 57.35603137 | F112: 57.72303602 | G112: 0 | H112: 0 | I112: 0 | K112: 1.4443 | L112: 83.41416743 | M112: 83.43627506 | N112: 52.35 | O112: 1.18 | P112: 0.01454166667
C113: 19 | D113: 0.20940049 | E113: 54.99399719 | F113: 55.7072861 | G113: 0 | H113: 0 | I113: 0 | K113: 1.3191 | L113: 82.05352945 | M113: 82.07929447 | N113: 51.22 | O113: 1.14 | P113: 0.01422777778
C114: 22 | D114: 0.2005361003 | E114: 53.84539303 | F114: 54.61405949 | G114: 0 | H114: 0 | I114: 0 | K114: 1.2183 | L114: 80.87902788 | M114: 80.90800338 | N114: 49.98 | O114: 1.1 | P114: 0.01388333333
B115: l09.dat | C115: 1 | D115: 0 | E115: 0 | F115: 0 | G115: 0 | H115: 0 | I115: 0 | K115: 3.824 | L115: 0 | M115: 0 | N115: 63.23 | O115: 1.32 | P115: 0.01756388889 | V115: =($K115/$D115-1) -> 
C116: 1.125 | D116: 0 | E116: 0 | F116: 0 | G116: 0 | H116: 0 | I116: 0 | K116: 3.8227 | L116: 0 | M116: 0 | N116: 64.1 | O116: 1.31 | P116: 0.01780555556 | T116: =bdrate($D116:$D128,E116:E128,$K116:$K128,L116:L128) -> -0.5663606736 | U116: =bdrate($D116:$D128,F116:F128,$K116:$K128,M116:M128) -> -0.5650269814
C117: 1.5 | D117: 0 | E117: 0 | F117: 0 | G117: 0 | H117: 0 | I117: 0 | K117: 2.6244 | L117: 102.0005417 | M117: 102.003655 | N117: 51.53 | O117: 1.37 | P117: 0.01431388889
C118: 2 | D118: 0 | E118: 0 | F118: 0 | G118: 0 | H118: 0 | I118: 0 | K118: 2.3312 | L118: 99.92478132 | M118: 99.92831736 | N118: 49.68 | O118: 1.33 | P118: 0.0138
C119: 3 | D119: 2.609816977 | E119: 89.71536666 | F119: 89.81405626 | G119: 0 | H119: 0 | I119: 0 | K119: 1.9395 | L119: 96.94131945 | M119: 96.94669907 | N119: 48.21 | O119: 1.31 | P119: 0.01339166667
C120: 4 | D120: 1.75868569 | E120: 85.18110376 | F120: 85.22534238 | G120: 0 | H120: 0 | I120: 0 | K120: 1.6911 | L120: 94.81277472 | M120: 94.82002213 | N120: 46.14 | O120: 1.29 | P120: 0.01281666667
C121: 5.5 | D121: 1.136022482 | E121: 80.69222414 | F121: 80.73211071 | G121: 0 | H121: 0 | I121: 0 | K121: 1.4232 | L121: 92.34833986 | M121: 92.3594241 | N121: 43.75 | O121: 1.25 | P121: 0.01215277778
C122: 7 | D122: 0.7285257242 | E122: 76.48971638 | F122: 76.53140985 | G122: 0 | H122: 0 | I122: 0 | K122: 1.2436 | L122: 90.56343594 | M122: 90.57823179 | N122: 42.13 | O122: 1.26 | P122: 0.01170277778
C123: 9 | D123: 0.458767834 | E123: 72.2608888 | F123: 72.30038375 | G123: 0 | H123: 0 | I123: 0 | K123: 1.0788 | L123: 88.79987167 | M123: 88.81877184 | N123: 40.25 | O123: 1.23 | P123: 0.01118055556
C124: 11 | D124: 0.2864029399 | E124: 68.37200208 | F124: 68.40002865 | G124: 0 | H124: 0 | I124: 0 | K124: 0.9396 | L124: 87.1950681 | M124: 87.21668515 | N124: 39.07 | O124: 1.16 | P124: 0.01085277778
C125: 13.5 | D125: 0.2128606427 | E125: 65.6301688 | F125: 65.78676841 | G125: 0 | H125: 0 | I125: 0 | K125: 0.8134 | L125: 85.73387043 | M125: 85.75781042 | N125: 37.26 | O125: 1.08 | P125: 0.01035
C126: 16 | D126: 0.1987159533 | E126: 64.4478481 | F126: 64.72862208 | G126: 0 | H126: 0 | I126: 0 | K126: 0.7098 | L126: 84.46131503 | M126: 84.48828254 | N126: 36.09 | O126: 1.01 | P126: 0.010025
C127: 19 | D127: 0.1974535236 | E127: 63.53403271 | F127: 63.74602045 | G127: 0 | H127: 0 | I127: 0 | K127: 0.5984 | L127: 83.13474877 | M127: 83.16449624 | N127: 34.93 | O127: 0.88 | P127: 0.009702777778
C128: 22 | D128: 0.1968093385 | E128: 61.50788748 | F128: 61.74427781 | G128: 0 | H128: 0 | I128: 0 | K128: 0.513 | L128: 82.06091992 | M128: 82.09501265 | N128: 34.2 | O128: 0.79 | P128: 0.0095
B129: l10.dat | C129: 1 | D129: 0 | E129: 0 | F129: 0 | G129: 0 | H129: 0 | I129: 0 | K129: 4.0752 | L129: 0 | M129: 0 | N129: 64.47 | O129: 1.33 | P129: 0.01790833333 | V129: =($K129/$D129-1) -> 
C130: 1.125 | D130: 0 | E130: 0 | F130: 0 | G130: 0 | H130: 0 | I130: 0 | K130: 4.0752 | L130: 0 | M130: 0 | N130: 64.47 | O130: 1.33 | P130: 0.01790833333 | T130: =bdrate($D130:$D142,E130:E142,$K130:$K142,L130:L142) -> -0.5114128533 | U130: =bdrate($D130:$D142,F130:F142,$K130:$K142,M130:M142) -> -0.5106795366
C131: 1.5 | D131: 0 | E131: 0 | F131: 0 | G131: 0 | H131: 0 | I131: =G131/3600 -> 0 | K131: 2.9078 | L131: 101.981817 | M131: 101.9845923 | N131: 51.89 | O131: 1.31 | P131: =N131/3600 -> 0.01441388889 | Q131: =N131/G131 ->  | R131: =O131/H131 -> 
C132: 2 | D132: 0 | E132: 0 | F132: 0 | G132: 0 | H132: 0 | I132: 0 | K132: 2.6064 | L132: 99.90724485 | M132: 99.91051764 | N132: 50.15 | O132: 1.3 | P132: 0.01393055556
C133: 3 | D133: 2.864074074 | E133: 89.07677663 | F133: 89.16822827 | G133: 0 | H133: 0 | I133: 0 | K133: 2.201 | L133: 96.88225297 | M133: 96.88742142 | N133: 48.1 | O133: 1.28 | P133: 0.01336111111
C134: 4 | D134: 1.903231013 | E134: 84.60332315 | F134: 84.63545799 | G134: 0 | H134: 0 | I134: 0 | K134: 1.9415 | L134: 94.71461431 | M134: 94.72106464 | N134: 46.88 | O134: 1.24 | P134: 0.01302222222
C135: 5.5 | D135: 1.186502378 | E135: 80.04458059 | F135: 80.09443377 | G135: 0 | H135: 0 | I135: 0 | K135: 1.6592 | L135: 92.18027816 | M135: 92.18935765 | N135: 44.61 | O135: 1.21 | P135: 0.01239166667
C136: 7 | D136: 0.7181092376 | E136: 75.86845178 | F136: 75.93492569 | G136: 0 | H136: 0 | I136: 0 | K136: 1.4699 | L136: 90.33057422 | M136: 90.34232765 | N136: 43.05 | O136: 1.19 | P136: 0.01195833333
C137: 9 | D137: 0.4514901283 | E137: 72.1571643 | F137: 72.21460641 | G137: 0 | H137: 0 | I137: 0 | K137: 1.291 | L137: 88.5052285 | M137: 88.52110308 | N137: 41.23 | O137: 1.18 | P137: 0.01145277778
C138: 11 | D138: 0.2976740164 | E138: 68.57847711 | F138: 68.61945299 | G138: 0 | H138: 0 | I138: 0 | K138: 1.1424 | L138: 86.87360456 | M138: 86.89404147 | N138: 39.83 | O138: 1.16 | P138: 0.01106388889
C139: 13.5 | D139: 0.2224758611 | E139: 65.48123374 | F139: 65.53976317 | G139: 0 | H139: 0 | I139: 0 | K139: 1.0141 | L139: 85.42123227 | M139: 85.44585985 | N139: 38.44 | O139: 1.14 | P139: 0.01067777778
C140: 16 | D140: 0.1996469232 | E140: 63.62820831 | F140: 63.77612046 | G140: 0 | H140: 0 | I140: 0 | K140: 0.9016 | L140: 84.10552722 | M140: 84.13337307 | N140: 37.01 | O140: 1.07 | P140: 0.01028055556
C141: 19 | D141: 0.1970961234 | E141: 62.64092384 | F141: 62.74719899 | G141: 0 | H141: 0 | I141: 0 | K141: 0.7923 | L141: 82.83542121 | M141: 82.86898762 | N141: 35.74 | O141: 1.02 | P141: 0.009927777778
C142: 22 | D142: 0.19607148 | E142: 60.80618759 | F142: 60.85046807 | G142: 0 | H142: 0 | I142: 0 | K142: 0.6973 | L142: 81.71811896 | M142: 81.75656461 | N142: 34.91 | O142: 0.96 | P142: 0.009697222222
B143: l11.dat | C143: 1 | D143: 0 | E143: 0 | F143: 0 | G143: 0 | H143: 0 | I143: 0 | K143: 2.7948 | L143: 0 | M143: 0 | N143: 57.98 | O143: 0.7 | P143: 0.01610555556 | V143: =($K143/$D143-1) -> 
C144: 1.125 | D144: 0 | E144: 0 | F144: 0 | G144: 0 | H144: 0 | I144: 0 | K144: 2.8254 | L144: 114.722233 | M144: 115.4055952 | N144: 56.9 | O144: 0.71 | P144: 0.01580555556 | T144: =bdrate($D144:$D156,E144:E156,$K144:$K156,L144:L156) -> -0.7857767238 | U144: =bdrate($D144:$D156,F144:F156,$K144:$K156,M144:M156) -> -0.7857443756
C145: 1.5 | D145: 0 | E145: 0 | F145: 0 | G145: 0 | H145: 0 | I145: 0 | K145: 1.9717 | L145: 102.0989297 | M145: 102.1015842 | N145: 46.43 | O145: 1.29 | P145: 0.01289722222
C146: 2 | D146: 0 | E146: 0 | F146: 0 | G146: 0 | H146: 0 | I146: 0 | K146: 1.6353 | L146: 100.0151282 | M146: 100.0180781 | N146: 43.56 | O146: 1.05 | P146: 0.0121
C147: 3 | D147: 2.052608445 | E147: 90.99070522 | F147: 91.08224459 | G147: 0 | H147: 0 | I147: 0 | K147: 1.2428 | L147: 97.46299747 | M147: 97.46492343 | N147: 39.69 | O147: 0.82 | P147: 0.011025
C148: 4 | D148: 1.465003603 | E148: 86.6711503 | F148: 86.7073516 | G148: 0 | H148: 0 | I148: 0 | K148: 0.9727 | L148: 95.44371096 | M148: 95.44860866 | N148: 37.25 | O148: 0.72 | P148: 0.01034722222
C149: 5.5 | D149: 1.01618677 | E149: 82.17073576 | F149: 82.22888143 | G149: 0 | H149: 0 | I149: 0 | K149: 0.7419 | L149: 93.20886596 | M149: 93.22072377 | N149: 35.45 | O149: 0.64 | P149: 0.009847222222
C150: 7 | D150: 0.6989205937 | E150: 77.63460541 | F150: 77.70030345 | G150: 0 | H150: 0 | I150: 0 | K150: 0.5946 | L150: 91.50630029 | M150: 91.52916461 | N150: 34.24 | O150: 0.58 | P150: 0.009511111111
C151: 9 | D151: 0.4565456118 | E151: 72.91554355 | F151: 72.99645712 | G151: 0 | H151: 0 | I151: 0 | K151: 0.4686 | L151: 89.81791498 | M151: 89.86029355 | N151: 33.06 | O151: 0.56 | P151: 0.009183333333
C152: 11 | D152: 0.2790992938 | E152: 68.58959921 | F152: 68.76291905 | G152: 0 | H152: 0 | I152: 0 | K152: 0.3877 | L152: 88.43960146 | M152: 88.50118759 | N152: 32.38 | O152: 0.53 | P152: 0.008994444444
C153: 13.5 | D153: 0.2367718691 | E153: 67.10726078 | F153: 67.42576059 | G153: 0 | H153: 0 | I153: 0 | K153: 0.3163 | L153: 87.16183141 | M153: 87.23489746 | N153: 31.7 | O153: 0.5 | P153: 0.008805555556
C154: 16 | D154: 0.2330465485 | E154: 66.3860166 | F154: 66.68438583 | G154: 0 | H154: 0 | I154: 0 | K154: 0.2686 | L154: 86.00537301 | M154: 86.08385246 | N154: 31.02 | O154: 0.48 | P154: 0.008616666667
C155: 19 | D155: 0.2320103761 | E155: 64.93551014 | F155: 65.19349805 | G155: 0 | H155: 0 | I155: 0 | K155: 0.2304 | L155: 84.8745552 | M155: 84.96314769 | N155: 30.56 | O155: 0.47 | P155: 0.008488888889
C156: 22 | D156: 0.231442571 | E156: 62.17695088 | F156: 62.81637489 | G156: 0 | H156: 0 | I156: 0 | K156: 0.1989 | L156: 83.97572346 | M156: 84.05737563 | N156: 30.26 | O156: 0.47 | P156: 0.008405555556
B157: l12.dat | C157: 1 | D157: 0 | E157: 0 | F157: 0 | G157: 0 | H157: 0 | I157: 0 | K157: 4.7972 | L157: 0 | M157: 0 | N157: 71.15 | O157: 1.47 | P157: 0.01976388889 | V157: =($K157/$D157-1) -> 
C158: 1.125 | D158: 0 | E158: 0 | F158: 0 | G158: 0 | H158: 0 | I158: 0 | K158: 4.7972 | L158: 0 | M158: 0 | N158: 71.15 | O158: 1.47 | P158: 0.01976388889 | T158: =bdrate($D158:$D170,E158:E170,$K158:$K170,L158:L170) -> -0.5187267657 | U158: =bdrate($D158:$D170,F158:F170,$K158:$K170,M158:M170) -> -0.5181632478
C159: 1.5 | D159: 0 | E159: 0 | F159: 0 | G159: 0 | H159: 0 | I159: 0 | K159: 3.6276 | L159: 101.9487489 | M159: 101.9499024 | N159: 59.41 | O159: 1.43 | P159: 0.01650277778
C160: 2 | D160: 0 | E160: 0 | F160: 0 | G160: 0 | H160: 0 | I160: 0 | K160: 3.3115 | L160: 99.85968354 | M160: 99.86111114 | N160: 57.06 | O160: 1.39 | P160: 0.01585
C161: 3 | D161: 4.029752126 | E161: 88.9563385 | F161: 89.05285006 | G161: 0 | H161: 0 | I161: 0 | K161: 2.8785 | L161: 96.79104408 | M161: 96.79362911 | N161: 54.94 | O161: 1.37 | P161: 0.01526111111
C162: 4 | D162: 3.03250036 | E162: 84.54651326 | F162: 84.55771276 | G162: 0 | H162: 0 | I162: 0 | K162: 2.5953 | L162: 94.57274313 | M162: 94.57593566 | N162: 54.29 | O162: 1.36 | P162: 0.01508055556
C163: 5.5 | D163: 2.179520104 | E163: 79.56678213 | F163: 79.57842558 | G163: 0 | H163: 0 | I163: 0 | K163: 2.282 | L163: 91.96459567 | M163: 91.96902798 | N163: 52.4 | O163: 1.34 | P163: 0.01455555556
C164: 7 | D164: 1.512080991 | E164: 74.58703532 | F164: 74.61111977 | G164: 0 | H164: 0 | I164: 0 | K164: 2.0599 | L164: 90.04595784 | M164: 90.05125077 | N164: 50.96 | O164: 1.32 | P164: 0.01415555556
C165: 9 | D165: 1.005646347 | E165: 69.72695391 | F165: 69.76351356 | G165: 0 | H165: 0 | I165: 0 | K165: 1.8476 | L165: 88.15395706 | M165: 88.16113514 | N165: 49.35 | O165: 1.31 | P165: 0.01370833333
C166: 11 | D166: 0.6392722294 | E166: 65.15862655 | F166: 65.22441461 | G166: 0 | H166: 0 | I166: 0 | K166: 1.6646 | L166: 86.45163047 | M166: 86.46032286 | N166: 48.13 | O166: 1.29 | P166: 0.01336944444
C167: 13.5 | D167: 0.4227237354 | E167: 61.23589657 | F167: 61.32531499 | G167: 0 | H167: 0 | I167: 0 | K167: 1.5065 | L167: 84.95663905 | M167: 84.96734039 | N167: 46.7 | O167: 1.26 | P167: 0.01297222222
C168: 16 | D168: 0.2861939761 | E168: 57.36928052 | F168: 57.70027401 | G168: 0 | H168: 0 | I168: 0 | K168: 1.3761 | L168: 83.6354037 | M168: 83.64743162 | N168: 46.12 | O168: 1.25 | P168: 0.01281111111
C169: 19 | D169: 0.2251405102 | E169: 54.48862122 | F169: 55.31457362 | G169: 0 | H169: 0 | I169: 0 | K169: 1.2496 | L169: 82.33647322 | M169: 82.35072553 | N169: 44.85 | O169: 1.24 | P169: 0.01245833333
C170: 22 | D170: 0.2106513907 | E170: 53.02428698 | F170: 54.2448296 | G170: 0 | H170: 0 | I170: 0 | K170: 1.1488 | L170: 81.20963912 | M170: 81.22587636 | N170: 44.23 | O170: 1.22 | P170: 0.01228611111
B171: l13.dat | C171: 1 | D171: 0 | E171: 0 | F171: 0 | G171: 0 | H171: 0 | I171: 0 | K171: 3.2542 | L171: 0 | M171: 0 | N171: 59.88 | O171: 0.75 | P171: 0.01663333333 | V171: =($K171/$D171-1) -> 
C172: 1.125 | D172: 0 | E172: 0 | F172: 0 | G172: 0 | H172: 0 | I172: 0 | K172: 3.2733 | L172: 111.836886 | M172: 112.1498468 | N172: 58.12 | O172: 0.78 | P172: 0.01614444444 | T172: =bdrate($D172:$D184,E172:E184,$K172:$K184,L172:L184) -> -0.7170768593 | U172: =bdrate($D172:$D184,F172:F184,$K172:$K184,M172:M184) -> -0.7174271288
C173: 1.5 | D173: 0 | E173: 0 | F173: 0 | G173: 0 | H173: 0 | I173: 0 | K173: 2.5612 | L173: 101.9415848 | M173: 101.9437892 | N173: 47.18 | O173: 1.29 | P173: 0.01310555556
C174: 2 | D174: 0 | E174: 0 | F174: 0 | G174: 0 | H174: 0 | I174: 0 | K174: 2.1317 | L174: 99.7526564 | M174: 99.75425289 | N174: 45.56 | O174: 0.9 | P174: 0.01265555556
C175: 3 | D175: 2.874353653 | E175: 90.73566195 | F175: 90.76579457 | G175: 0 | H175: 0 | I175: 0 | K175: 1.7246 | L175: 97.43626331 | M175: 97.43782536 | N175: 42.63 | O175: 0.73 | P175: 0.01184166667
C176: 4 | D176: 2.172833261 | E176: 86.4397884 | F176: 86.45818161 | G176: 0 | H176: 0 | I176: 0 | K176: 1.3491 | L176: 95.04017008 | M176: 95.0427397 | N176: 40.05 | O176: 0.69 | P176: 0.011125
C177: 5.5 | D177: 1.652096844 | E177: 81.70090522 | F177: 81.74231865 | G177: 0 | H177: 0 | I177: 0 | K177: 1.0692 | L177: 92.67957045 | M177: 92.68788812 | N177: 37.59 | O177: 0.64 | P177: 0.01044166667
C178: 7 | D178: 1.21261421 | E178: 76.4147404 | F178: 76.50681879 | G178: 0 | H178: 0 | I178: 0 | K178: 0.9034 | L178: 90.99014164 | M178: 91.00385036 | N178: 36.25 | O178: 0.61 | P178: 0.01006944444
C179: 9 | D179: 0.8484579911 | E179: 71.34293912 | F179: 71.54185932 | G179: 0 | H179: 0 | I179: 0 | K179: 0.7787 | L179: 89.31237668 | M179: 89.33808969 | N179: 34.33 | O179: 0.59 | P179: 0.009536111111
C180: 11 | D180: 0.5764418504 | E180: 66.66225046 | F180: 67.04003554 | G180: 0 | H180: 0 | I180: 0 | K180: 0.6907 | L180: 87.92412188 | M180: 87.95899848 | N180: 33.31 | O180: 0.56 | P180: 0.009252777778
C181: 13.5 | D181: 0.3902594034 | E181: 62.26571064 | F181: 62.89583446 | G181: 0 | H181: 0 | I181: 0 | K181: 0.6163 | L181: 86.56244172 | M181: 86.61466765 | N181: 32.52 | O181: 0.56 | P181: 0.009033333333
C182: 16 | D182: 0.2622568093 | E182: 58.03083985 | F182: 59.17846406 | G182: 0 | H182: 0 | I182: 0 | K182: 0.5526 | L182: 85.33527216 | M182: 85.39955699 | N182: 31.96 | O182: 0.54 | P182: 0.008877777778
C183: 19 | D183: 0.2080299755 | E183: 55.15003622 | F183: 56.98117195 | G183: 0 | H183: 0 | I183: 0 | K183: 0.5075 | L183: 84.15639101 | M183: 84.22272984 | N183: 31.31 | O183: 0.53 | P183: 0.008697222222
C184: 22 | D184: 0.1978109238 | E184: 53.97454533 | F184: 55.97341396 | G184: 0 | H184: 0 | I184: 0 | K184: 0.4646 | L184: 83.09860437 | M184: 83.17672046 | N184: 30.93 | O184: 0.52 | P184: 0.008591666667
B185: l14.dat | C185: 1 | D185: 0 | E185: 0 | F185: 0 | G185: 0 | H185: 0 | I185: 0 | K185: 3.2284 | L185: 0 | M185: 0 | N185: 60.38 | O185: 0.79 | P185: 0.01677222222 | V185: =($K185/$D185-1) -> 
C186: 1.125 | D186: 0 | E186: 0 | F186: 0 | G186: 0 | H186: 0 | I186: 0 | K186: 3.2833 | L186: 113.8802608 | M186: 114.4119375 | N186: 58.29 | O186: 0.85 | P186: 0.01619166667 | T186: =bdrate($D186:$D198,E186:E198,$K186:$K198,L186:L198) -> -0.8127384335 | U186: =bdrate($D186:$D198,F186:F198,$K186:$K198,M186:M198) -> -0.7940542706
C187: 1.5 | D187: 0 | E187: 0 | F187: 0 | G187: 0 | H187: 0 | I187: 0 | K187: 2.4684 | L187: 102.0021156 | M187: 102.0041286 | N187: 48.02 | O187: 1.29 | P187: 0.01333888889
C188: 2 | D188: 0 | E188: 0 | F188: 0 | G188: 0 | H188: 0 | I188: 0 | K188: 2.0489 | L188: 99.78661869 | M188: 99.7877477 | N188: 45.8 | O188: 0.95 | P188: 0.01272222222
C189: 3 | D189: 2.749201614 | E189: 84.33665283 | F189: 85.62357447 | G189: 0 | H189: 0 | I189: 0 | K189: 1.6394 | L189: 97.29223091 | M189: 97.29311772 | N189: 42.83 | O189: 0.84 | P189: 0.01189722222
C190: 4 | D190: 2.076258827 | E190: 82.94193348 | F190: 83.53693567 | G190: 0 | H190: 0 | I190: 0 | K190: 1.3122 | L190: 95.1043537 | M190: 95.10666474 | N190: 41.46 | O190: 0.78 | P190: 0.01151666667
C191: 5.5 | D191: 1.579109382 | E191: 80.24074567 | F191: 80.41361846 | G191: 0 | H191: 0 | I191: 0 | K191: 1.054 | L191: 92.80076415 | M191: 92.80859823 | N191: 38.22 | O191: 0.7 | P191: 0.01061666667
C192: 7 | D192: 1.149071912 | E192: 75.98465652 | F192: 76.04943575 | G192: 0 | H192: 0 | I192: 0 | K192: 0.8976 | L192: 91.08831237 | M192: 91.1037044 | N192: 36.25 | O192: 0.65 | P192: 0.01006944444
C193: 9 | D193: 0.8044026517 | E193: 71.3834935 | F193: 71.54531569 | G193: 0 | H193: 0 | I193: 0 | K193: 0.7583 | L193: 89.35114384 | M193: 89.37886829 | N193: 34.89 | O193: 0.61 | P193: 0.009691666667
C194: 11 | D194: 0.5545885574 | E194: 66.89052022 | F194: 67.22819862 | G194: 0 | H194: 0 | I194: 0 | K194: 0.663 | L194: 87.97382509 | M194: 88.00957582 | N194: 33.79 | O194: 0.59 | P194: 0.009386111111
C195: 13.5 | D195: 0.3751995965 | E195: 62.4563869 | F195: 63.04660989 | G195: 0 | H195: 0 | I195: =G195/3600 -> 0 | K195: 0.5774 | L195: 86.60906107 | M195: 86.65139435 | N195: 32.79 | O195: 0.56 | P195: =N195/3600 -> 0.009108333333 | Q195: =N195/G195 ->  | R195: =O195/H195 -> 
C196: 16 | D196: 0.2570874766 | E196: 58.51242746 | F196: 59.55097217 | G196: 0 | H196: 0 | I196: 0 | K196: 0.5289 | L196: 85.43211648 | M196: 85.4816428 | N196: 32 | O196: 0.56 | P196: 0.008888888889
C197: 19 | D197: 0.2213517798 | E197: 56.36536737 | F197: 57.60755234 | G197: 0 | H197: 0 | I197: 0 | K197: 0.4723 | L197: 84.24686351 | M197: 84.30540814 | N197: 31.53 | O197: 0.55 | P197: 0.008758333333
C198: 22 | D198: 0.2153552385 | E198: 55.28060988 | F198: 56.16994325 | G198: 0 | H198: 0 | I198: 0 | K198: 0.4337 | L198: 83.20390921 | M198: 83.27203234 | N198: 31.18 | O198: 0.54 | P198: 0.008661111111
B199: l15.dat | C199: 1 | D199: 0 | E199: 0 | F199: 0 | G199: 0 | H199: 0 | I199: 0 | K199: 4.5504 | L199: 0 | M199: 0 | N199: 65.39 | O199: 1.47 | P199: 0.01816388889 | V199: =($K199/$D199-1) -> 
C200: 1.125 | D200: 0 | E200: 0 | F200: 0 | G200: 0 | H200: 0 | I200: 0 | K200: 4.5453 | L200: 0 | M200: 0 | N200: 66.72 | O200: 1.44 | P200: 0.01853333333 | T200: =bdrate($D200:$D212,E200:E212,$K200:$K212,L200:L212) -> -0.5828163496 | U200: =bdrate($D200:$D212,F200:F212,$K200:$K212,M200:M212) -> -0.5744695031
... 857 more rows

Sheet CHBMIT (EEG)
D1: Reference | K1: Tested | T1: BD-rate (piecewise cubic) | V1: Lossless
C2: StepSizeForQP | D2: BPS | E2: PSNR1 | F2: PSNR2 | G2: Enc T [s] | H2: Dec T [s] | I2: Enc T [h] | K2: BPS | L2: PSNR1 | M2: PSNR2 | N2: Enc T [s] | O2: Dec T [s] | P2: Enc T [h] | Q2: EncR | R2: DecR | T2: BD-PSNR1 | U2: BD-PSNR2 | V2: BR-R
A3: CHBMIT | B3: chb01_07.dat | C3: 1 | D3: 0 | E3: 0 | F3: 0 | G3: 0 | H3: 0 | I3: =G3/3600 -> 0 | K3: 5.5921 | L3: 0 | M3: 0 | N3: 432.1 | O3: 2.6 | P3: =N3/3600 -> 0.1200277778 | Q3: =N3/G3 ->  | R3: =O3/H3 ->  | V3: =($K3/$D3-1) -> 
A4: EEG | C4: 1.125 | D4: 0 | E4: 0 | F4: 0 | G4: 0 | H4: 0 | I4: 0 | K4: 5.4562 | L4: 0 | M4: 0 | N4: 426.27 | O4: 4.19 | P4: 0.1184083333 | T4: =bdrate($D4:$D23,E4:E23,$K4:$K23,L4:L23) -> -0.2841943737 | U4: =bdrate($D4:$D23,F4:F23,$K4:$K23,M4:M23) -> -0.2820918705
C5: 1.5 | D5: 0 | E5: 0 | F5: 0 | G5: 0 | H5: 0 | I5: 0 | K5: 4.9958 | L5: 102.479325 | M5: 102.5456863 | N5: 396.8 | O5: 5.25 | P5: 0.1102222222
C6: 2 | D6: 0 | E6: 0 | F6: 0 | G6: 0 | H6: 0 | I6: 0 | K6: 4.5755 | L6: 100.0259305 | M6: 100.0391566 | N6: 387.01 | O6: 4.39 | P6: 0.1075027778
C7: 3 | D7: 0 | E7: 0 | F7: 0 | G7: 0 | H7: 0 | I7: 0 | K7: 4.0503 | L7: 98.0879843 | M7: 98.09020132 | N7: 376.34 | O7: 3.11 | P7: 0.1045388889
C8: 4 | D8: 0 | E8: 0 | F8: 0 | G8: 0 | H8: 0 | I8: 0 | K8: 3.6268 | L8: 94.63412254 | M8: 94.63648849 | N8: 371.1 | O8: 3.16 | P8: 0.1030833333
C9: 5.5 | D9: 0 | E9: 0 | F9: 0 | G9: 0 | H9: 0 | I9: 0 | K9: 3.1834 | L9: 91.86297161 | M9: 91.87005683 | N9: 365.38 | O9: 2.98 | P9: 0.1014944444
C10: 7 | D10: 0 | E10: 0 | F10: 0 | G10: 0 | H10: 0 | I10: 0 | K10: 2.8917 | L10: 90.01435815 | M10: 90.02301857 | N10: 363.19 | O10: 2.88 | P10: 0.1008861111
C11: 9 | D11: 0 | E11: 0 | F11: 0 | G11: 0 | H11: 0 | I11: 0 | K11: 2.5674 | L11: 87.84680294 | M11: 87.85295159 | N11: 359.81 | O11: 2.79 | P11: 0.09994722222
C12: 11 | D12: 0 | E12: 0 | F12: 0 | G12: 0 | H12: 0 | I12: 0 | K12: 2.3093 | L12: 86.10541045 | M12: 86.11859827 | N12: 356.02 | O12: 2.68 | P12: 0.09889444444
C13: 13 | D13: 0 | E13: 0 | F13: 0 | G13: 0 | H13: 0 | I13: 0 | K13: 2.0569 | L13: 84.38700741 | M13: 84.41372638 | N13: 352.91 | O13: 2.58 | P13: 0.09803055556
C14: 16 | D14: 3.70236715 | E14: 89.14401804 | F14: 89.2412605 | G14: 0 | H14: 0 | I14: 0 | K14: 1.8632 | L14: 83.04078181 | M14: 83.08161437 | N14: 348.36 | O14: 2.44 | P14: 0.09676666667
C15: 22 | D15: 2.717260719 | E15: 84.43491017 | F15: 84.47171497 | G15: 0 | H15: 0 | I15: 0 | K15: 1.5219 | L15: 80.55580958 | M15: 80.62121423 | N15: 343.26 | O15: 2.24 | P15: 0.09535
C16: 33 | D16: 1.842104469 | E16: 79.32364085 | F16: 79.41102984 | G16: 0 | H16: 0 | I16: 0 | K16: 1.1462 | L16: 77.56422585 | M16: 77.65568644 | N16: 337 | O16: 2.01 | P16: 0.09361111111
C17: 44 | D17: 1.148576766 | E17: 74.37900775 | F17: 74.50395594 | G17: 0 | H17: 0 | I17: 0 | K17: 0.8959 | L17: 75.35980667 | M17: 75.46087519 | N17: 328.47 | O17: 1.85 | P17: 0.09124166667
C18: 55 | D18: 0.6651468146 | E18: 69.92490075 | F18: 70.13162551 | G18: 0 | H18: 0 | I18: 0 | K18: 0.7444 | L18: 73.86207466 | M18: 73.96910809 | N18: 325.55 | O18: 1.76 | P18: 0.09043055556
C19: 66 | D19: 0.3704593146 | E19: 66.09341296 | F19: 66.42626886 | G19: 0 | H19: 0 | I19: 0 | K19: 0.6244 | L19: 72.59800194 | M19: 72.71161692 | N19: 321.42 | O19: 1.66 | P19: 0.08928333333
C20: 77 | D20: 0.2439092693 | E20: 63.34144097 | F20: 63.84413818 | G20: 0 | H20: 0 | I20: 0 | K20: 0.5297 | L20: 71.51962837 | M20: 71.64271227 | N20: 319.43 | O20: 1.62 | P20: 0.08873055556
C21: 88 | D21: 0.2145372886 | E21: 62.04663912 | F21: 62.7928744 | G21: 0 | H21: 0 | I21: 0 | K21: 0.4707 | L21: 70.76933739 | M21: 70.89748777 | N21: 317.77 | O21: 1.57 | P21: 0.08826944444
C22: 99 | D22: 0.2106419837 | E22: 61.41964873 | F22: 62.44275732 | G22: 0 | H22: 0 | I22: 0 | K22: 0.407 | L22: 69.92315619 | M22: 70.06778379 | N22: 314.62 | O22: 1.52 | P22: 0.08739444444
C23: 110 | D23: 0.2101826691 | E23: 61.21675775 | F23: 62.3374738 | G23: 0 | H23: 0 | I23: 0 | K23: 0.3547 | L23: 69.18002665 | M23: 69.33987954 | N23: 312.52 | O23: 1.48 | P23: 0.08681111111
B24: chb01_14.dat | C24: 1 | D24: 0 | E24: 0 | F24: 0 | G24: 0 | H24: 0 | I24: 0 | K24: 4.9952 | L24: 0 | M24: 0 | N24: 387.04 | O24: 2.83 | P24: 0.1075111111 | V24: =($K24/$D24-1) -> 
C25: 1.125 | D25: 0 | E25: 0 | F25: 0 | G25: 0 | H25: 0 | I25: 0 | K25: 4.9257 | L25: 0 | M25: 0 | N25: 392.14 | O25: 3.91 | P25: 0.1089277778 | T25: =bdrate($D25:$D44,E25:E44,$K25:$K44,L25:L44) -> -0.206140183 | U25: =bdrate($D25:$D44,F25:F44,$K25:$K44,M25:M44) -> -0.2057917985
C26: 1.5 | D26: 0 | E26: 0 | F26: 0 | G26: 0 | H26: 0 | I26: 0 | K26: 4.2463 | L26: 102.002538 | M26: 102.0051737 | N26: 364.77 | O26: 3.9 | P26: 0.101325
C27: 2 | D27: 0 | E27: 0 | F27: 0 | G27: 0 | H27: 0 | I27: 0 | K27: 3.8407 | L27: 99.83337572 | M27: 99.83367397 | N27: 358 | O27: 3.58 | P27: 0.09944444444
C28: 3 | D28: 0 | E28: 0 | F28: 0 | G28: 0 | H28: 0 | I28: 0 | K28: 3.3282 | L28: 97.30482411 | M28: 97.30565936 | N28: 346.03 | O28: 3.14 | P28: 0.09611944444
C29: 4 | D29: 0 | E29: 0 | F29: 0 | G29: 0 | H29: 0 | I29: 0 | K29: 2.9066 | L29: 94.62415217 | M29: 94.625348 | N29: 343.83 | O29: 3.17 | P29: 0.09550833333
C30: 5.5 | D30: 0 | E30: 0 | F30: 0 | G30: 0 | H30: 0 | I30: 0 | K30: 2.5071 | L30: 92.11609721 | M30: 92.12037415 | N30: 338.69 | O30: 3.06 | P30: 0.09408055556
C31: 7 | D31: 0 | E31: 0 | F31: 0 | G31: 0 | H31: 0 | I31: 0 | K31: 2.2365 | L31: 90.31592353 | M31: 90.32547579 | N31: 332.59 | O31: 2.94 | P31: 0.09238611111
C32: 9 | D32: 0 | E32: 0 | F32: 0 | G32: 0 | H32: 0 | I32: 0 | K32: 1.9753 | L32: 88.47632045 | M32: 88.49448459 | N32: 326.68 | O32: 2.85 | P32: 0.09074444444
C33: 11 | D33: 0 | E33: 0 | F33: 0 | G33: 0 | H33: 0 | I33: 0 | K33: 1.7585 | L33: 86.86055844 | M33: 86.88896481 | N33: 321.99 | O33: 2.73 | P33: 0.08944166667
C34: 13 | D34: 0 | E34: 0 | F34: 0 | G34: 0 | H34: 0 | I34: 0 | K34: 1.573 | L34: 85.39561447 | M34: 85.43471327 | N34: 317.73 | O34: 2.64 | P34: 0.08825833333
C35: 16 | D35: 2.710344958 | E35: 90.28687789 | F35: 90.31014672 | G35: 0 | H35: 0 | I35: 0 | K35: 1.4239 | L35: 84.15108009 | M35: 84.19820545 | N35: 315.29 | O35: 2.53 | P35: 0.08758055556
C36: 22 | D36: 1.890934481 | E36: 85.40471291 | F36: 85.46556114 | G36: 0 | H36: 0 | I36: 0 | K36: 1.1687 | L36: 81.8149137 | M36: 81.87463921 | N36: 309.97 | O36: 2.37 | P36: 0.08610277778
C37: 33 | D37: 1.273289931 | E37: 80.5867976 | F37: 80.67040564 | G37: 0 | H37: 0 | I37: 0 | K37: 0.8881 | L37: 78.93647949 | M37: 79.01652063 | N37: 305.12 | O37: 2.18 | P37: 0.08475555556
C38: 44 | D38: 0.8092334692 | E38: 75.92459197 | F38: 76.03050771 | G38: 0 | H38: 0 | I38: 0 | K38: 0.6886 | L38: 76.64929016 | M38: 76.74782254 | N38: 299.86 | O38: 1.97 | P38: 0.08329444444
C39: 55 | D39: 0.5129321407 | E39: 71.86105767 | F39: 71.99158168 | G39: 0 | H39: 0 | I39: 0 | K39: 0.5732 | L39: 75.1767773 | M39: 75.29364253 | N39: 298.81 | O39: 1.82 | P39: 0.08300277778
C40: 66 | D40: 0.3330181914 | E40: 68.00222295 | F40: 68.15249083 | G40: 0 | H40: 0 | I40: 0 | K40: 0.4803 | L40: 73.90619646 | M40: 74.04583785 | N40: 296.2 | O40: 1.64 | P40: 0.08227777778
C41: 77 | D41: 0.2378162742 | E41: 64.68402147 | F41: 64.89563606 | G41: 0 | H41: 0 | I41: 0 | K41: 0.4159 | L41: 72.93266152 | M41: 73.08628464 | N41: 294.95 | O41: 1.58 | P41: 0.08193055556
C42: 88 | D42: 0.1950822766 | E42: 61.96791795 | F42: 62.38748799 | G42: 0 | H42: 0 | I42: 0 | K42: 0.376 | L42: 72.23680196 | M42: 72.40156525 | N42: 296.68 | O42: 1.53 | P42: 0.08241111111
C43: 99 | D43: 0.1866976147 | E43: 60.81882997 | F43: 61.54501628 | G43: 0 | H43: 0 | I43: 0 | K43: 0.3324 | L43: 71.41967213 | M43: 71.59662022 | N43: 298.34 | O43: 1.49 | P43: 0.08287222222
C44: 110 | D44: 0.1863885115 | E44: 60.7263457 | F44: 61.47433809 | G44: 0 | H44: 0 | I44: 0 | K44: 0.297 | L44: 70.69461302 | M44: 70.88152196 | N44: 298.85 | O44: 1.46 | P44: 0.08301388889
B45: chb01_20.dat | C45: 1 | D45: 0 | E45: 0 | F45: 0 | G45: 0 | H45: 0 | I45: 0 | K45: 4.6978 | L45: 0 | M45: 0 | N45: 275.85 | O45: 2.35 | P45: 0.076625 | V45: =($K45/$D45-1) -> 
C46: 1.125 | D46: 0 | E46: 0 | F46: 0 | G46: 0 | H46: 0 | I46: 0 | K46: 4.5987 | L46: 0 | M46: 0 | N46: 272.42 | O46: 2.76 | P46: 0.07567222222 | T46: =bdrate($D46:$D65,E46:E65,$K46:$K65,L46:L65) -> -0.2349656708 | U46: =bdrate($D46:$D65,F46:F65,$K46:$K65,M46:M65) -> -0.2337839369
C47: 1.5 | D47: 0 | E47: 0 | F47: 0 | G47: 0 | H47: 0 | I47: 0 | K47: 3.8808 | L47: 101.9466575 | M47: 101.9472321 | N47: 258.99 | O47: 2.67 | P47: 0.07194166667
C48: 2 | D48: 0 | E48: 0 | F48: 0 | G48: 0 | H48: 0 | I48: 0 | K48: 3.4883 | L48: 99.8357305 | M48: 99.83593291 | N48: 251.83 | O48: 2.52 | P48: 0.06995277778
C49: 3 | D49: 0 | E49: 0 | F49: 0 | G49: 0 | H49: 0 | I49: 0 | K49: 2.9574 | L49: 97.04987604 | M49: 97.05036579 | N49: 243.95 | O49: 2.3 | P49: 0.06776388889
C50: 4 | D50: 0 | E50: 0 | F50: 0 | G50: 0 | H50: 0 | I50: 0 | K50: 2.5824 | L50: 94.73264291 | M50: 94.73458705 | N50: 243.8 | O50: 2.25 | P50: 0.06772222222
C51: 5.5 | D51: 0 | E51: 0 | F51: 0 | G51: 0 | H51: 0 | I51: 0 | K51: 2.2013 | L51: 92.33332098 | M51: 92.34061318 | N51: 239.77 | O51: 2.16 | P51: 0.06660277778
C52: 7 | D52: 0 | E52: 0 | F52: 0 | G52: 0 | H52: 0 | I52: 0 | K52: 1.9491 | L52: 90.63763857 | M52: 90.65246482 | N52: 234.89 | O52: 2.09 | P52: 0.06524722222
C53: 9 | D53: 0 | E53: 0 | F53: 0 | G53: 0 | H53: 0 | I53: 0 | K53: 1.7053 | L53: 88.87572607 | M53: 88.90102698 | N53: 233.38 | O53: 2.01 | P53: 0.06482777778
C54: 11 | D54: 0 | E54: 0 | F54: 0 | G54: 0 | H54: 0 | I54: 0 | K54: 1.5075 | L54: 87.33104559 | M54: 87.37086423 | N54: 227.52 | O54: 1.91 | P54: 0.0632
C55: 13 | D55: 0 | E55: 0 | F55: 0 | G55: 0 | H55: 0 | I55: 0 | K55: 1.3321 | L55: 85.83571907 | M55: 85.88581103 | N55: 224.27 | O55: 1.81 | P55: 0.06229722222
C56: 16 | D56: 2.297379783 | E56: 90.47546784 | F56: 90.53952078 | G56: 0 | H56: 0 | I56: 0 | K56: 1.197 | L56: 84.59263455 | M56: 84.64395719 | N56: 223.17 | O56: 1.74 | P56: 0.06199166667
C57: 22 | D57: 1.604843476 | E57: 85.8999823 | F57: 85.977324 | G57: 0 | H57: 0 | I57: 0 | K57: 0.9629 | L57: 82.24730209 | M57: 82.29248358 | N57: 221.46 | O57: 1.59 | P57: 0.06151666667
C58: 33 | D58: 1.083410473 | E58: 81.20735885 | F58: 81.25736117 | G58: 0 | H58: 0 | I58: 0 | K58: 0.7086 | L58: 79.3354874 | M58: 79.37907117 | N58: 218.81 | O58: 1.42 | P58: 0.06078055556
C59: 44 | D59: 0.6891438321 | E59: 76.63940015 | F59: 76.69716424 | G59: 0 | H59: 0 | I59: 0 | K59: 0.5357 | L59: 77.14195819 | M59: 77.20124733 | N59: 216.7 | O59: 1.24 | P59: 0.06019444444
C60: 55 | D60: 0.4377519727 | E60: 72.53262111 | F60: 72.63520707 | G60: 0 | H60: 0 | I60: 0 | K60: 0.4423 | L60: 75.76212057 | M60: 75.83736289 | N60: 216.61 | O60: 1.17 | P60: 0.06016944444
C61: 66 | D61: 0.2881112642 | E61: 68.88310762 | F61: 69.00264422 | G61: 0 | H61: 0 | I61: 0 | K61: 0.3746 | L61: 74.62619312 | M61: 74.71193848 | N61: 217.81 | O61: 1.15 | P61: 0.06050277778
C62: 77 | D62: 0.2180657329 | E62: 65.78622004 | F62: 66.01067516 | G62: 0 | H62: 0 | I62: 0 | K62: 0.322 | L62: 73.65616263 | M62: 73.75390884 | N62: 217.24 | O62: 1.12 | P62: 0.06034444444
C63: 88 | D63: 0.1949500494 | E63: 63.66840729 | F63: 64.36265925 | G63: 0 | H63: 0 | I63: 0 | K63: 0.2897 | L63: 72.98728698 | M63: 73.09405123 | N63: 219.11 | O63: 1.1 | P63: 0.06086388889
C64: 99 | D64: 0.191850509 | E64: 63.09619795 | F64: 64.01363852 | G64: 0 | H64: 0 | I64: 0 | K64: 0.2562 | L64: 72.21089822 | M64: 72.32937658 | N64: 219.88 | O64: 1.07 | P64: 0.06107777778
C65: 110 | D65: 0.1916867308 | E65: 62.94905378 | F65: 63.93796288 | G65: 0 | H65: 0 | I65: 0 | K65: 0.2278 | L65: 71.51926618 | M65: 71.64899791 | N65: 221.4 | O65: 1.04 | P65: 0.0615
B66: chb01_27.dat | C66: 1 | D66: 0 | E66: 0 | F66: 0 | G66: 0 | H66: 0 | I66: 0 | K66: 5.1051 | L66: 0 | M66: 0 | N66: 65.6 | O66: 0.66 | P66: 0.01822222222 | V66: =($K66/$D66-1) -> 
C67: 1.125 | D67: 0 | E67: 0 | F67: 0 | G67: 0 | H67: 0 | I67: =G67/3600 -> 0 | K67: 5.2534 | L67: 115.7611638 | M67: 115.3726115 | N67: 64.42 | O67: 0.5 | P67: =N67/3600 -> 0.01789444444 | Q67: =N67/G67 ->  | R67: =O67/H67 ->  | T67: =bdrate($D67:$D86,E67:E86,$K67:$K86,L67:L86) -> -0.3611901747 | U67: =bdrate($D67:$D86,F67:F86,$K67:$K86,M67:M86) -> -0.3614551671
C68: 1.5 | D68: 0 | E68: 0 | F68: 0 | G68: 0 | H68: 0 | I68: 0 | K68: 4.5123 | L68: 101.9202764 | M68: 101.9221519 | N68: 61.02 | O68: 0.69 | P68: 0.01695
C69: 2 | D69: 0 | E69: 0 | F69: 0 | G69: 0 | H69: 0 | I69: 0 | K69: 4.121 | L69: 99.83197891 | M69: 99.83239914 | N69: 59.4 | O69: 0.65 | P69: 0.0165
C70: 3 | D70: 0 | E70: 0 | F70: 0 | G70: 0 | H70: 0 | I70: 0 | K70: 3.5783 | L70: 97.20963951 | M70: 97.21004803 | N70: 57.58 | O70: 0.58 | P70: 0.01599444444
C71: 4 | D71: 0 | E71: 0 | F71: 0 | G71: 0 | H71: 0 | I71: 0 | K71: 3.2044 | L71: 94.73949089 | M71: 94.74073539 | N71: 56.99 | O71: 0.57 | P71: 0.01583055556
C72: 5.5 | D72: 0 | E72: 0 | F72: 0 | G72: 0 | H72: 0 | I72: 0 | K72: 2.8181 | L72: 92.29222778 | M72: 92.29632752 | N72: 56.06 | O72: 0.54 | P72: 0.01557222222
C73: 7 | D73: 0 | E73: 0 | F73: 0 | G73: 0 | H73: 0 | I73: 0 | K73: 2.5635 | L73: 90.57653989 | M73: 90.5831408 | N73: 55.21 | O73: 0.52 | P73: 0.01533611111
C74: 9 | D74: 0 | E74: 0 | F74: 0 | G74: 0 | H74: 0 | I74: 0 | K74: 2.3118 | L74: 88.74552452 | M74: 88.75476781 | N74: 54.37 | O74: 0.5 | P74: 0.01510277778
C75: 11 | D75: 0 | E75: 0 | F75: 0 | G75: 0 | H75: 0 | I75: 0 | K75: 2.1084 | L75: 87.17658546 | M75: 87.18753351 | N75: 53.51 | O75: 0.49 | P75: 0.01486388889
C76: 13 | D76: 0 | E76: 0 | F76: 0 | G76: 0 | H76: 0 | I76: 0 | K76: 1.924 | L76: 85.66040946 | M76: 85.67192623 | N76: 52.79 | O76: 0.48 | P76: 0.01466388889
C77: 16 | D77: 3.034436141 | E77: 83.28357233 | F77: 83.36629223 | G77: 0 | H77: 0 | I77: 0 | K77: 1.7771 | L77: 84.41261278 | M77: 84.42397393 | N77: 52.55 | O77: 0.47 | P77: 0.01459722222
C78: 22 | D78: 2.417456975 | E78: 82.12906638 | F78: 82.17928141 | G78: 0 | H78: 0 | I78: 0 | K78: 1.5228 | L78: 82.02574192 | M78: 82.03666251 | N78: 51.51 | O78: 0.44 | P78: 0.01430833333
C79: 33 | D79: 1.908978714 | E79: 79.58823405 | F79: 79.60810904 | G79: 0 | H79: 0 | I79: 0 | K79: 1.2337 | L79: 78.99587561 | M79: 79.00633071 | N79: 50.2 | O79: 0.4 | P79: 0.01394444444
C80: 44 | D80: 1.408396739 | E80: 75.2362864 | F80: 75.24823475 | G80: 0 | H80: 0 | I80: 0 | K80: 1.0065 | L80: 76.44933858 | M80: 76.46784616 | N80: 49.49 | O80: 0.35 | P80: 0.01374722222
C81: 55 | D81: 0.9975701993 | E81: 70.49293821 | F81: 70.50963634 | G81: 0 | H81: 0 | I81: 0 | K81: 0.8786 | L81: 74.88602543 | M81: 74.91689187 | N81: 49.68 | O81: 0.31 | P81: 0.0138
C82: 66 | D82: 0.6700837862 | E82: 65.56900353 | F82: 65.58448293 | G82: 0 | H82: 0 | I82: 0 | K82: 0.7884 | L82: 73.6508192 | M82: 73.68673365 | N82: 49.01 | O82: 0.3 | P82: 0.01361388889
C83: 77 | D83: 0.4585054348 | E83: 61.23830422 | F83: 61.2483173 | G83: 0 | H83: 0 | I83: 0 | K83: 0.7137 | L83: 72.59071459 | M83: 72.62195652 | N83: 48.87 | O83: 0.29 | P83: 0.013575
C84: 88 | D84: 0.3233786232 | E84: 57.13703717 | F84: 57.15545275 | G84: 0 | H84: 0 | I84: 0 | K84: 0.6718 | L84: 71.76103446 | M84: 71.82858619 | N84: 48.96 | O84: 0.28 | P84: 0.0136
C85: 99 | D85: 0.2666032609 | E85: 54.07632011 | F85: 54.12078545 | G85: 0 | H85: 0 | I85: 0 | K85: 0.6177 | L85: 70.87754655 | M85: 70.93634135 | N85: 48.83 | O85: 0.28 | P85: 0.01356388889
C86: 110 | D86: 0.2459556159 | E86: 51.51630172 | F86: 51.65571744 | G86: 0 | H86: 0 | I86: 0 | K86: 0.5687 | L86: 70.01898663 | M86: 70.06714939 | N86: 48.84 | O86: 0.27 | P86: 0.01356666667
B87: chb01_32.dat | C87: 1 | D87: 0 | E87: 0 | F87: 0 | G87: 0 | H87: 0 | I87: 0 | K87: 6.1689 | L87: 0 | M87: 0 | N87: 414.75 | O87: 2.8 | P87: 0.1152083333 | V87: =($K87/$D87-1) -> 
C88: 1.125 | D88: 0 | E88: 0 | F88: 0 | G88: 0 | H88: 0 | I88: 0 | K88: 5.9413 | L88: 0 | M88: 0 | N88: 421.18 | O88: 4.53 | P88: 0.1169944444 | T88: =bdrate($D88:$D107,E88:E107,$K88:$K107,L88:L107) -> -0.274895685 | U88: =bdrate($D88:$D107,F88:F107,$K88:$K107,M88:M107) -> -0.2729263396
C89: 1.5 | D89: 0 | E89: 0 | F89: 0 | G89: 0 | H89: 0 | I89: 0 | K89: 5.517 | L89: 102.6659794 | M89: 102.7165443 | N89: 390.5 | O89: 6.03 | P89: 0.1084722222
C90: 2 | D90: 0 | E90: 0 | F90: 0 | G90: 0 | H90: 0 | I90: 0 | K90: 5.0939 | L90: 100.1584721 | M90: 100.1666378 | N90: 383.06 | O90: 5.04 | P90: 0.1064055556
C91: 3 | D91: 0 | E91: 0 | F91: 0 | G91: 0 | H91: 0 | I91: 0 | K91: 4.5527 | L91: 98.08592436 | M91: 98.08653347 | N91: 370.78 | O91: 3.52 | P91: 0.1029944444
C92: 4 | D92: 0 | E92: 0 | F92: 0 | G92: 0 | H92: 0 | I92: 0 | K92: 4.1547 | L92: 94.73357524 | M92: 94.73519019 | N92: 365.61 | O92: 3.53 | P92: 0.1015583333
C93: 5.5 | D93: 0 | E93: 0 | F93: 0 | G93: 0 | H93: 0 | I93: 0 | K93: 3.7383 | L93: 92.02337338 | M93: 92.026478 | N93: 358.47 | O93: 3.26 | P93: 0.099575
C94: 7 | D94: 0 | E94: 0 | F94: 0 | G94: 0 | H94: 0 | I94: 0 | K94: 3.454 | L94: 90.16077849 | M94: 90.16278643 | N94: 352.69 | O94: 3.09 | P94: 0.09796944444
C95: 9 | D95: 0 | E95: 0 | F95: 0 | G95: 0 | H95: 0 | I95: 0 | K95: 3.121 | L95: 87.90113237 | M95: 87.90282802 | N95: 348.18 | O95: 3.01 | P95: 0.09671666667
C96: 11 | D96: 0 | E96: 0 | F96: 0 | G96: 0 | H96: 0 | I96: 0 | K96: 2.8489 | L96: 86.08265005 | M96: 86.08451166 | N96: 343.37 | O96: 2.89 | P96: 0.09538055556
C97: 13 | D97: 0 | E97: 0 | F97: 0 | G97: 0 | H97: 0 | I97: 0 | K97: 2.5632 | L97: 84.2271543 | M97: 84.22961122 | N97: 339.01 | O97: 2.78 | P97: 0.09416944444
C98: 16 | D98: 4.203567708 | E98: 86.98171211 | F98: 87.26725557 | G98: 0 | H98: 0 | I98: 0 | K98: 2.3462 | L98: 82.82077713 | M98: 82.82484955 | N98: 335.51 | O98: 2.66 | P98: 0.09319722222
C99: 22 | D99: 3.282580389 | E99: 83.62111448 | F99: 83.66395224 | G99: 0 | H99: 0 | I99: 0 | K99: 1.9612 | L99: 80.22365632 | M99: 80.23034007 | N99: 330.14 | O99: 2.47 | P99: 0.09170555556
C100: 33 | D100: 2.348780948 | E100: 78.754993 | F100: 78.77427559 | G100: 0 | H100: 0 | I100: 0 | K100: 1.5312 | L100: 77.10525044 | M100: 77.11849517 | N100: 322.24 | O100: 2.24 | P100: 0.08951111111
C101: 44 | D101: 1.540755963 | E101: 73.64599424 | F101: 73.68013598 | G101: 0 | H101: 0 | I101: 0 | K101: 1.2344 | L101: 74.75555707 | M101: 74.7769436 | N101: 319.97 | O101: 2.06 | P101: 0.08888055556
C102: 55 | D102: 0.94003359 | E102: 68.95166795 | F102: 69.03613099 | G102: 0 | H102: 0 | I102: 0 | K102: 1.0532 | L102: 73.18535533 | M102: 73.2129007 | N102: 314.32 | O102: 1.96 | P102: 0.08731111111
C103: 66 | D103: 0.5379762983 | E103: 64.73671859 | F103: 64.88581678 | G103: 0 | H103: 0 | I103: 0 | K103: 0.9078 | L103: 71.86627414 | M103: 71.9010197 | N103: 310.84 | O103: 1.88 | P103: 0.08634444444
C104: 77 | D104: 0.3269010417 | E104: 61.20633608 | F104: 61.42853655 | G104: 0 | H104: 0 | I104: 0 | K104: 0.7891 | L104: 70.72373736 | M104: 70.76752942 | N104: 308.45 | O104: 1.8 | P104: 0.08568055556
C105: 88 | D105: 0.2463885115 | E105: 58.78890058 | F105: 59.23476545 | G105: 0 | H105: 0 | I105: 0 | K105: 0.715 | L105: 69.97226886 | M105: 70.02137192 | N105: 307.77 | O105: 1.75 | P105: 0.08549166667
C106: 99 | D106: 0.2287281099 | E106: 57.62097502 | F106: 58.321207 | G106: 0 | H106: 0 | I106: 0 | K106: 0.6306 | L106: 69.06107614 | M106: 69.11717477 | N106: 305.69 | O106: 1.71 | P106: 0.08491388889
C107: 110 | D107: 0.2266028835 | E107: 57.22030282 | F107: 58.02858649 | G107: 0 | H107: 0 | I107: 0 | K107: 0.5605 | L107: 68.26381912 | M107: 68.33042346 | N107: 307.24 | O107: 1.65 | P107: 0.08534444444
B108: chb01_40.dat | C108: 1 | D108: 0 | E108: 0 | F108: 0 | G108: 0 | H108: 0 | I108: 0 | K108: 5.0561 | L108: 0 | M108: 0 | N108: 353.17 | O108: 3.57 | P108: 0.09810277778 | V108: =($K108/$D108-1) -> 
C109: 1.125 | D109: 0 | E109: 0 | F109: 0 | G109: 0 | H109: 0 | I109: 0 | K109: 4.8239 | L109: 0 | M109: 0 | N109: 349.12 | O109: 4.19 | P109: 0.09697777778 | T109: =bdrate($D109:$D128,E109:E128,$K109:$K128,L109:L128) -> -0.1973734995 | U109: =bdrate($D109:$D128,F109:F128,$K109:$K128,M109:M128) -> -0.1946252939
C110: 1.5 | D110: 0 | E110: 0 | F110: 0 | G110: 0 | H110: 0 | I110: 0 | K110: 4.2419 | L110: 101.8423408 | M110: 101.846315 | N110: 328.89 | O110: 3.85 | P110: 0.09135833333
C111: 2 | D111: 0 | E111: 0 | F111: 0 | G111: 0 | H111: 0 | I111: 0 | K111: 3.8493 | L111: 99.75739833 | M111: 99.75871809 | N111: 317.86 | O111: 3.57 | P111: 0.08829444444
C112: 3 | D112: 0 | E112: 0 | F112: 0 | G112: 0 | H112: 0 | I112: 0 | K112: 3.3648 | L112: 97.53002308 | M112: 97.53406055 | N112: 303.23 | O112: 3.06 | P112: 0.08423055556
C113: 4 | D113: 0 | E113: 0 | F113: 0 | G113: 0 | H113: 0 | I113: 0 | K113: 2.8995 | L113: 94.48455557 | M113: 94.48507669 | N113: 311.38 | O113: 3.2 | P113: 0.08649444444
C114: 5.5 | D114: 0 | E114: 0 | F114: 0 | G114: 0 | H114: 0 | I114: 0 | K114: 2.4803 | L114: 91.92762806 | M114: 91.93237245 | N114: 305.38 | O114: 3.02 | P114: 0.08482777778
C115: 7 | D115: 0 | E115: 0 | F115: 0 | G115: 0 | H115: 0 | I115: 0 | K115: 2.1936 | L115: 90.09435536 | M115: 90.11127324 | N115: 298.44 | O115: 2.88 | P115: 0.0829
C116: 9 | D116: 0 | E116: 0 | F116: 0 | G116: 0 | H116: 0 | I116: 0 | K116: 1.9097 | L116: 88.19202901 | M116: 88.24593224 | N116: 293.33 | O116: 2.74 | P116: 0.08148055556
C117: 11 | D117: 0 | E117: 0 | F117: 0 | G117: 0 | H117: 0 | I117: 0 | K117: 1.6987 | L117: 86.65409119 | M117: 86.73657828 | N117: 288.86 | O117: 2.62 | P117: 0.08023888889
C118: 13 | D118: 0 | E118: 0 | F118: 0 | G118: 0 | H118: 0 | I118: 0 | K118: 1.5107 | L118: 85.17104169 | M118: 85.27784093 | N118: 286.26 | O118: 2.48 | P118: 0.07951666667
C119: 16 | D119: 2.579490867 | E119: 90.08964724 | F119: 90.15422588 | G119: 0 | H119: 0 | I119: 0 | K119: 1.3679 | L119: 83.94706602 | M119: 84.06424899 | N119: 284.91 | O119: 2.36 | P119: 0.07914166667
C120: 22 | D120: 1.791968599 | E120: 85.28483371 | F120: 85.43982384 | G120: 0 | H120: 0 | I120: 0 | K120: 1.1214 | L120: 81.62388969 | M120: 81.77722339 | N120: 281.12 | O120: 2.19 | P120: 0.07808888889
C121: 33 | D121: 1.210131341 | E121: 80.53767197 | F121: 80.74971811 | G121: 0 | H121: 0 | I121: 0 | K121: 0.8332 | L121: 78.61500042 | M121: 78.80070333 | N121: 279.69 | O121: 1.97 | P121: 0.07769166667
C122: 44 | D122: 0.7595927687 | E122: 75.79638386 | F122: 76.02968872 | G122: 0 | H122: 0 | I122: 0 | K122: 0.6369 | L122: 76.36862001 | M122: 76.55615818 | N122: 281.06 | O122: 1.81 | P122: 0.07807222222
C123: 55 | D123: 0.4620003019 | E123: 71.59989178 | F123: 71.83911383 | G123: 0 | H123: 0 | I123: 0 | K123: 0.5226 | L123: 74.93164357 | M123: 75.131948 | N123: 281.05 | O123: 1.71 | P123: 0.07806944444
C124: 66 | D124: 0.291727808 | E124: 67.85721495 | F124: 68.19154356 | G124: 0 | H124: 0 | I124: 0 | K124: 0.4411 | L124: 73.80135711 | M124: 74.02097971 | N124: 278.54 | O124: 1.65 | P124: 0.07737222222
C125: 77 | D125: 0.2131072615 | E125: 64.62773144 | F125: 65.31679301 | G125: 0 | H125: 0 | I125: 0 | K125: 0.3787 | L125: 72.81492079 | M125: 73.05837943 | N125: 276.69 | O125: 1.61 | P125: 0.07685833333
C126: 88 | D126: 0.1881144324 | E126: 62.49317682 | F126: 63.90235909 | G126: 0 | H126: 0 | I126: 0 | K126: 0.3388 | L126: 72.11621441 | M126: 72.38837827 | N126: 277.13 | O126: 1.55 | P126: 0.07698055556
C127: 99 | D127: 0.1808261624 | E127: 60.91489852 | F127: 63.36497877 | G127: 0 | H127: 0 | I127: 0 | K127: 0.2985 | L127: 71.35831878 | M127: 71.65634011 | N127: 275.09 | O127: 1.52 | P127: 0.07641388889
C128: 110 | D128: 0.1802845713 | E128: 60.74808169 | F128: 63.2974477 | G128: 0 | H128: 0 | I128: 0 | K128: 0.266 | L128: 70.67075201 | M128: 70.99743276 | N128: 273.99 | O128: 1.49 | P128: 0.07610833333
B129: chb02_07.dat | C129: 1 | D129: 0 | E129: 0 | F129: 0 | G129: 0 | H129: 0 | I129: 0 | K129: 5.6693 | L129: 0 | M129: 0 | N129: 434.22 | O129: 2.49 | P129: 0.1206166667 | V129: =($K129/$D129-1) -> 
C130: 1.125 | D130: 0 | E130: 0 | F130: 0 | G130: 0 | H130: 0 | I130: 0 | K130: 5.4926 | L130: 0 | M130: 0 | N130: 443.01 | O130: 4.03 | P130: 0.1230583333 | T130: =bdrate($D130:$D149,E130:E149,$K130:$K149,L130:L149) -> -0.3800502168 | U130: =bdrate($D130:$D149,F130:F149,$K130:$K149,M130:M149) -> -0.3740249292
C131: 1.5 | D131: 0 | E131: 0 | F131: 0 | G131: 0 | H131: 0 | I131: =G131/3600 -> 0 | K131: 5.0369 | L131: 102.3542198 | M131: 102.4299439 | N131: 408.8 | O131: 5.32 | P131: =N131/3600 -> 0.1135555556 | Q131: =N131/G131 ->  | R131: =O131/H131 -> 
C132: 2 | D132: 0 | E132: 0 | F132: 0 | G132: 0 | H132: 0 | I132: 0 | K132: 4.6269 | L132: 100.0083901 | M132: 100.029972 | N132: 404.23 | O132: 4.48 | P132: 0.1122861111
C133: 3 | D133: 0 | E133: 0 | F133: 0 | G133: 0 | H133: 0 | I133: 0 | K133: 4.0935 | L133: 98.12409672 | M133: 98.12416274 | N133: 395.35 | O133: 3.1 | P133: 0.1098194444
C134: 4 | D134: 0 | E134: 0 | F134: 0 | G134: 0 | H134: 0 | I134: 0 | K134: 3.688 | L134: 94.6974417 | M134: 94.70426549 | N134: 388.16 | O134: 3.27 | P134: 0.1078222222
C135: 5.5 | D135: 0 | E135: 0 | F135: 0 | G135: 0 | H135: 0 | I135: 0 | K135: 3.258 | L135: 91.9536567 | M135: 91.96326509 | N135: 382.13 | O135: 3.04 | P135: 0.1061472222
C136: 7 | D136: 0 | E136: 0 | F136: 0 | G136: 0 | H136: 0 | I136: 0 | K136: 2.9764 | L136: 90.12763495 | M136: 90.13475184 | N136: 378.8 | O136: 2.89 | P136: 0.1052222222
C137: 9 | D137: 0 | E137: 0 | F137: 0 | G137: 0 | H137: 0 | I137: 0 | K137: 2.6506 | L137: 87.92577432 | M137: 87.93615351 | N137: 373.17 | O137: 2.85 | P137: 0.1036583333
C138: 11 | D138: 0 | E138: 0 | F138: 0 | G138: 0 | H138: 0 | I138: 0 | K138: 2.3954 | L138: 86.19971776 | M138: 86.22011618 | N138: 369.65 | O138: 2.79 | P138: 0.1026805556
C139: 13 | D139: 0 | E139: 0 | F139: 0 | G139: 0 | H139: 0 | I139: 0 | K139: 2.1494 | L139: 84.47921511 | M139: 84.51534765 | N139: 366.49 | O139: 2.7 | P139: 0.1018027778
C140: 16 | D140: 3.903887379 | E140: 86.93630038 | F140: 87.76191658 | G140: 0 | H140: 0 | I140: 0 | K140: 1.9608 | L140: 83.12062028 | M140: 83.17087644 | N140: 363.05 | O140: 2.59 | P140: 0.1008472222
C141: 22 | D141: 3.088930405 | E141: 84.01024326 | F141: 84.1387914 | G141: 0 | H141: 0 | I141: 0 | K141: 1.6247 | L141: 80.55212053 | M141: 80.63646936 | N141: 357.14 | O141: 2.38 | P141: 0.09920555556
C142: 33 | D142: 2.2531484 | E142: 79.27769444 | F142: 79.40077965 | G142: 0 | H142: 0 | I142: 0 | K142: 1.2342 | L142: 77.28568627 | M142: 77.4059974 | N142: 350.44 | O142: 2.09 | P142: 0.09734444444
C143: 44 | D143: 1.495074728 | E143: 74.0663468 | F143: 74.29358801 | G143: 0 | H143: 0 | I143: 0 | K143: 0.9764 | L143: 74.95792179 | M143: 75.13732426 | N143: 344.41 | O143: 1.87 | P143: 0.09566944444
C144: 55 | D144: 0.9207148249 | E144: 69.32870301 | F144: 69.74360266 | G144: 0 | H144: 0 | I144: 0 | K144: 0.825 | L144: 73.42110783 | M144: 73.65220301 | N144: 339.4 | O144: 1.77 | P144: 0.09427777778
C145: 66 | D145: 0.5404574275 | E145: 65.02232989 | F145: 65.70033016 | G145: 0 | H145: 0 | I145: 0 | K145: 0.7089 | L145: 72.13596948 | M145: 72.41537476 | N145: 335.35 | O145: 1.7 | P145: 0.09315277778
C146: 77 | D146: 0.3217874396 | E146: 61.19364688 | F146: 62.28406178 | G146: 0 | H146: 0 | I146: 0 | K146: 0.6155 | L146: 71.02285595 | M146: 71.34818963 | N146: 331.37 | O146: 1.63 | P146: 0.09204722222
C147: 88 | D147: 0.2358544686 | E147: 58.74522923 | F147: 60.17912887 | G147: 0 | H147: 0 | I147: 0 | K147: 0.5573 | L147: 70.26284454 | M147: 70.6216604 | N147: 329.29 | O147: 1.59 | P147: 0.09146944444
C148: 99 | D148: 0.2195320048 | E148: 57.82959695 | F148: 59.5108084 | G148: 0 | H148: 0 | I148: 0 | K148: 0.4923 | L148: 69.37815593 | M148: 69.77518107 | N148: 326 | O148: 1.56 | P148: 0.09055555556
C149: 110 | D149: 0.2180155495 | E149: 57.68614543 | F149: 59.41675974 | G149: 0 | H149: 0 | I149: 0 | K149: 0.438 | L149: 68.59296683 | M149: 69.0238806 | N149: 323.16 | O149: 1.52 | P149: 0.08976666667
B150: chb02_10.dat | C150: 1 | D150: 0 | E150: 0 | F150: 0 | G150: 0 | H150: 0 | I150: 0 | K150: 4.2965 | L150: 0 | M150: 0 | N150: 389.94 | O150: 2.18 | P150: 0.1083166667 | V150: =($K150/$D150-1) -> 
C151: 1.125 | D151: 0 | E151: 0 | F151: 0 | G151: 0 | H151: 0 | I151: 0 | K151: 4.2436 | L151: 0 | M151: 0 | N151: 391.88 | O151: 3.14 | P151: 0.1088555556 | T151: =bdrate($D151:$D170,E151:E170,$K151:$K170,L151:L170) -> -0.2569016329 | U151: =bdrate($D151:$D170,F151:F170,$K151:$K170,M151:M170) -> -0.2574944035
C152: 1.5 | D152: 0 | E152: 0 | F152: 0 | G152: 0 | H152: 0 | I152: 0 | K152: 3.5379 | L152: 101.9471327 | M152: 101.9475602 | N152: 363.83 | O152: 3.45 | P152: 0.1010638889
C153: 2 | D153: 0 | E153: 0 | F153: 0 | G153: 0 | H153: 0 | I153: 0 | K153: 3.1573 | L153: 99.86013384 | M153: 99.86026976 | N153: 358.34 | O153: 3.3 | P153: 0.09953888889
C154: 3 | D154: 0 | E154: 0 | F154: 0 | G154: 0 | H154: 0 | I154: 0 | K154: 2.6404 | L154: 97.05340635 | M154: 97.05435333 | N154: 350.18 | O154: 3.02 | P154: 0.09727222222
C155: 4 | D155: 0 | E155: 0 | F155: 0 | G155: 0 | H155: 0 | I155: 0 | K155: 2.297 | L155: 94.90122261 | M155: 94.90406494 | N155: 344.52 | O155: 2.95 | P155: 0.0957
C156: 5.5 | D156: 0 | E156: 0 | F156: 0 | G156: 0 | H156: 0 | I156: 0 | K156: 1.943 | L156: 92.60441652 | M156: 92.6115964 | N156: 336.13 | O156: 2.82 | P156: 0.09336944444
C157: 7 | D157: 0 | E157: 0 | F157: 0 | G157: 0 | H157: 0 | I157: 0 | K157: 1.7146 | L157: 90.98123122 | M157: 90.99253084 | N157: 330.37 | O157: 2.73 | P157: 0.09176944444
C158: 9 | D158: 0 | E158: 0 | F158: 0 | G158: 0 | H158: 0 | I158: 0 | K158: 1.5043 | L158: 89.33701658 | M158: 89.35208389 | N158: 325.59 | O158: 2.65 | P158: 0.09044166667
C159: 11 | D159: 0 | E159: 0 | F159: 0 | G159: 0 | H159: 0 | I159: 0 | K159: 1.3368 | L159: 87.88047956 | M159: 87.89750033 | N159: 323.08 | O159: 2.59 | P159: 0.08974444444
C160: 13 | D160: 0 | E160: 0 | F160: 0 | G160: 0 | H160: 0 | I160: 0 | K160: 1.1966 | L160: 86.52249784 | M160: 86.54051785 | N160: 320.21 | O160: 2.53 | P160: 0.08894722222
C161: 16 | D161: 2.107293554 | E161: 90.96811695 | F161: 90.98665547 | G161: 0 | H161: 0 | I161: 0 | K161: 1.0835 | L161: 85.33695311 | M161: 85.35472842 | N161: 320.25 | O161: 2.5 | P161: 0.08895833333
C162: 22 | D162: 1.500551781 | E162: 86.62369683 | F162: 86.6446409 | G162: 0 | H162: 0 | I162: 0 | K162: 0.8922 | L162: 83.08555006 | M162: 83.10202124 | N162: 318.09 | O162: 2.39 | P162: 0.08835833333
C163: 33 | D163: 1.030149834 | E163: 81.93787957 | F163: 81.95391026 | G163: 0 | H163: 0 | I163: 0 | K163: 0.6385 | L163: 79.81443743 | M163: 79.83135919 | N163: 313.38 | O163: 1.9 | P163: 0.08705
C164: 44 | D164: 0.6652079559 | E164: 77.33921661 | F164: 77.35970794 | G164: 0 | H164: 0 | I164: 0 | K164: 0.4868 | L164: 77.77013563 | M164: 77.79689759 | N164: 309.55 | O164: 1.57 | P164: 0.08598611111
C165: 55 | D165: 0.4409752415 | E165: 73.38305633 | F165: 73.40339536 | G165: 0 | H165: 0 | I165: 0 | K165: 0.4156 | L165: 76.58301905 | M165: 76.61014583 | N165: 308.09 | O165: 1.5 | P165: 0.08558055556
C166: 66 | D166: 0.2979004378 | E166: 69.34742422 | F166: 69.36576265 | G166: 0 | H166: 0 | I166: 0 | K166: 0.3636 | L166: 75.57415306 | M166: 75.60063907 | N166: 306.3 | O166: 1.46 | P166: 0.08508333333
C167: 77 | D167: 0.21487734 | E167: 65.74960407 | F167: 65.76737011 | G167: 0 | H167: 0 | I167: 0 | K167: 0.3196 | L167: 74.45306655 | M167: 74.5479523 | N167: 307.93 | O167: 1.43 | P167: 0.08553611111
C168: 88 | D168: 0.1874045139 | E168: 63.71466329 | F168: 63.79563319 | G168: 0 | H168: 0 | I168: 0 | K168: 0.2941 | L168: 73.80626408 | M168: 73.9223328 | N168: 307.95 | O168: 1.41 | P168: 0.08554166667
C169: 99 | D169: 0.1857114281 | E169: 63.34635818 | F169: 63.45214257 | G169: 0 | H169: 0 | I169: 0 | K169: 0.2649 | L169: 73.10104389 | M169: 73.19701584 | N169: 305.79 | O169: 1.38 | P169: 0.08494166667
C170: 110 | D170: 0.1856816123 | E170: 63.31646091 | F170: 63.42367571 | G170: 0 | H170: 0 | I170: 0 | K170: 0.2404 | L170: 72.43983713 | M170: 72.51948859 | N170: 304.94 | O170: 1.36 | P170: 0.08470555556
B171: chb02_12.dat | C171: 1 | D171: 0 | E171: 0 | F171: 0 | G171: 0 | H171: 0 | I171: 0 | K171: 4.0584 | L171: 0 | M171: 0 | N171: 391.34 | O171: 2.09 | P171: 0.1087055556 | V171: =($K171/$D171-1) -> 
C172: 1.125 | D172: 0 | E172: 0 | F172: 0 | G172: 0 | H172: 0 | I172: 0 | K172: 4.036 | L172: 0 | M172: 0 | N172: 393.88 | O172: 2.76 | P172: 0.1094111111 | T172: =bdrate($D172:$D191,E172:E191,$K172:$K191,L172:L191) -> -0.2700829592 | U172: =bdrate($D172:$D191,F172:F191,$K172:$K191,M172:M191) -> -0.2710180076
C173: 1.5 | D173: 0 | E173: 0 | F173: 0 | G173: 0 | H173: 0 | I173: 0 | K173: 3.3173 | L173: 101.9232274 | M173: 101.9232764 | N173: 366.22 | O173: 3.28 | P173: 0.1017277778
C174: 2 | D174: 0 | E174: 0 | F174: 0 | G174: 0 | H174: 0 | I174: 0 | K174: 2.9411 | L174: 99.85919853 | M174: 99.85929827 | N174: 358.87 | O174: 3.17 | P174: 0.09968611111
C175: 3 | D175: 0 | E175: 0 | F175: 0 | G175: 0 | H175: 0 | I175: 0 | K175: 2.4314 | L175: 97.02860745 | M175: 97.02978572 | N175: 350.52 | O175: 2.97 | P175: 0.09736666667
C176: 4 | D176: 0 | E176: 0 | F176: 0 | G176: 0 | H176: 0 | I176: 0 | K176: 2.0928 | L176: 94.97295219 | M176: 94.97705515 | N176: 344.85 | O176: 2.89 | P176: 0.09579166667
C177: 5.5 | D177: 0 | E177: 0 | F177: 0 | G177: 0 | H177: 0 | I177: 0 | K177: 1.7493 | L177: 92.74787099 | M177: 92.7580943 | N177: 335.05 | O177: 2.75 | P177: 0.09306944444
C178: 7 | D178: 0 | E178: 0 | F178: 0 | G178: 0 | H178: 0 | I178: 0 | K178: 1.5327 | L178: 91.17935688 | M178: 91.19439645 | N178: 329.78 | O178: 2.67 | P178: 0.09160555556
C179: 9 | D179: 0 | E179: 0 | F179: 0 | G179: 0 | H179: 0 | I179: 0 | K179: 1.3386 | L179: 89.61934489 | M179: 89.63714767 | N179: 325.27 | O179: 2.59 | P179: 0.09035277778
C180: 11 | D180: 0 | E180: 0 | F180: 0 | G180: 0 | H180: 0 | I180: 0 | K180: 1.1854 | L180: 88.20808181 | M180: 88.2264253 | N180: 323.34 | O180: 2.53 | P180: 0.08981666667
C181: 13 | D181: 0 | E181: 0 | F181: 0 | G181: 0 | H181: 0 | I181: 0 | K181: 1.0591 | L181: 86.901726 | M181: 86.91862872 | N181: 322.89 | O181: 2.53 | P181: 0.08969166667
C182: 16 | D182: 1.867778533 | E182: 91.26355238 | F182: 91.2833166 | G182: 0 | H182: 0 | I182: 0 | K182: 0.9571 | L182: 85.73202546 | M182: 85.74766284 | N182: 321.24 | O182: 2.43 | P182: 0.08923333333
C183: 22 | D183: 1.324189312 | E183: 87.0052272 | F183: 87.02530158 | G183: 0 | H183: 0 | I183: 0 | K183: 0.7834 | L183: 83.48907156 | M183: 83.50277523 | N183: 320.88 | O183: 2.35 | P183: 0.08913333333
C184: 33 | D184: 0.9029910175 | E184: 82.3455205 | F184: 82.3570673 | G184: 0 | H184: 0 | I184: 0 | K184: 0.5307 | L184: 80.03784362 | M184: 80.06269896 | N184: 320.12 | O184: 1.64 | P184: 0.08892222222
C185: 44 | D185: 0.5730287591 | E185: 77.79174282 | F185: 77.80636025 | G185: 0 | H185: 0 | I185: 0 | K185: 0.406 | L185: 78.13897257 | M185: 78.1800857 | N185: 314.39 | O185: 1.5 | P185: 0.08733055556
C186: 55 | D186: 0.3713590731 | E186: 73.86361657 | F186: 73.8823354 | G186: 0 | H186: 0 | I186: 0 | K186: 0.3382 | L186: 76.90861194 | M186: 76.95357975 | N186: 312.87 | O186: 1.45 | P186: 0.08690833333
C187: 66 | D187: 0.2522727959 | E187: 70.0285654 | F187: 70.04523263 | G187: 0 | H187: 0 | I187: 0 | K187: 0.29 | L187: 75.90341769 | M187: 75.93883451 | N187: 310.52 | O187: 1.42 | P187: 0.08625555556
C188: 77 | D188: 0.1935235507 | E188: 67.02373563 | F188: 67.0812895 | G188: 0 | H188: 0 | I188: 0 | K188: 0.2522 | L188: 74.88855808 | M188: 74.95853723 | N188: 309.82 | O188: 1.38 | P188: 0.08606111111
C189: 88 | D189: 0.1811326238 | E189: 65.78437461 | F189: 65.9106564 | G189: 0 | H189: 0 | I189: 0 | K189: 0.2298 | L189: 74.25250556 | M189: 74.3477898 | N189: 310.56 | O189: 1.36 | P189: 0.08626666667
C190: 99 | D190: 0.1808661685 | E190: 65.61176983 | F190: 65.74530682 | G190: 0 | H190: 0 | I190: 0 | K190: 0.205 | L190: 73.56427533 | M190: 73.64887564 | N190: 310.42 | O190: 1.35 | P190: 0.08622777778
C191: 110 | D191: 0.1808306914 | E191: 65.58716919 | F191: 65.72092483 | G191: 0 | H191: 0 | I191: 0 | K191: 0.184 | L191: 72.91122244 | M191: 72.98379319 | N191: 308.18 | O191: 1.33 | P191: 0.08560555556
B192: chb02_14.dat | C192: 1 | D192: 0 | E192: 0 | F192: 0 | G192: 0 | H192: 0 | I192: 0 | K192: 4.4479 | L192: 0 | M192: 0 | N192: 402.65 | O192: 2.21 | P192: 0.1118472222 | V192: =($K192/$D192-1) -> 
C193: 1.125 | D193: 0 | E193: 0 | F193: 0 | G193: 0 | H193: 0 | I193: 0 | K193: 4.3877 | L193: 0 | M193: 0 | N193: 407.86 | O193: 3.23 | P193: 0.1132944444 | T193: =bdrate($D193:$D212,E193:E212,$K193:$K212,L193:L212) -> -0.2901169286 | U193: =bdrate($D193:$D212,F193:F212,$K193:$K212,M193:M212) -> -0.2888745936
C194: 1.5 | D194: 0 | E194: 0 | F194: 0 | G194: 0 | H194: 0 | I194: 0 | K194: 3.7373 | L194: 101.976738 | M194: 101.977723 | N194: 378.86 | O194: 3.66 | P194: 0.1052388889
C195: 2 | D195: 0 | E195: 0 | F195: 0 | G195: 0 | H195: 0 | I195: =G195/3600 -> 0 | K195: 3.3519 | L195: 99.87557279 | M195: 99.87577357 | N195: 370.99 | O195: 3.43 | P195: =N195/3600 -> 0.1030527778 | Q195: =N195/G195 ->  | R195: =O195/H195 -> 
C196: 3 | D196: 0 | E196: 0 | F196: 0 | G196: 0 | H196: 0 | I196: 0 | K196: 2.8469 | L196: 97.23048098 | M196: 97.23108022 | N196: 362.18 | O196: 2.98 | P196: 0.1006055556
C197: 4 | D197: 0 | E197: 0 | F197: 0 | G197: 0 | H197: 0 | I197: 0 | K197: 2.4669 | L197: 94.8050099 | M197: 94.80702148 | N197: 356.79 | O197: 3.02 | P197: 0.09910833333
C198: 5.5 | D198: 0 | E198: 0 | F198: 0 | G198: 0 | H198: 0 | I198: 0 | K198: 2.0968 | L198: 92.42494119 | M198: 92.43279396 | N198: 348.18 | O198: 2.88 | P198: 0.09671666667
C199: 7 | D199: 0 | E199: 0 | F199: 0 | G199: 0 | H199: 0 | I199: 0 | K199: 1.8544 | L199: 90.74398444 | M199: 90.75899477 | N199: 341.77 | O199: 2.79 | P199: 0.09493611111
C200: 9 | D200: 0 | E200: 0 | F200: 0 | G200: 0 | H200: 0 | I200: 0 | K200: 1.6272 | L200: 89.035854 | M200: 89.05722942 | N200: 337.63 | O200: 2.69 | P200: 0.09378611111
... 1256 more rows

Sheet NMR55 (EEG)
D1: Reference | K1: Tested | T1: BD-rate (piecewise cubic) | V1: Lossless
C2: StepSizeForQP | D2: BPS | E2: PSNR1 | F2: PSNR2 | G2: Enc T [s] | H2: Dec T [s] | I2: Enc T [h] | K2: BPS | L2: PSNR1 | M2: PSNR2 | N2: Enc T [s] | O2: Dec T [s] | P2: Enc T [h] | Q2: EncR | R2: DecR | T2: BD-PSNR1 | U2: BD-PSNR2 | V2: BR-R
A3: NMR55 | B3: sub-101_task-Sleep_acq-headband_eeg.dat | C3: 1 | D3: 0 | E3: 0 | F3: 0 | G3: 0 | H3: 0 | I3: =G3/3600 -> 0 | K3: 3.5144 | L3: 0 | M3: 0 | N3: 1039.53 | O3: 8.27 | P3: =N3/3600 -> 0.2887583333 | Q3: =N3/G3 ->  | R3: =O3/H3 ->  | V3: =($K3/$D3-1) -> 
A4: EEG | C4: 1.125 | D4: 0 | E4: 0 | F4: 0 | G4: 0 | H4: 0 | I4: 0 | K4: 4.8516 | L4: 109.1220281 | M4: 110.1309755 | N4: 1019.99 | O4: 9.24 | P4: 0.2833305556 | T4: =bdrate($D4:$D23,E4:E23,$K4:$K23,L4:L23) -> -0.6255363752 | U4: =bdrate($D4:$D23,F4:F23,$K4:$K23,M4:M23) -> -0.4172136837
C5: 1.5 | D5: 0 | E5: 0 | F5: 0 | G5: 0 | H5: 0 | I5: 0 | K5: 4.2722 | L5: 101.3109955 | M5: 101.3654065 | N5: 966.23 | O5: 11.18 | P5: 0.2683972222
C6: 2 | D6: 0 | E6: 0 | F6: 0 | G6: 0 | H6: 0 | I6: 0 | K6: 3.9214 | L6: 99.60367103 | M6: 99.61125855 | N6: 941.07 | O6: 9.69 | P6: 0.2614083333
C7: 3 | D7: 0 | E7: 0 | F7: 0 | G7: 0 | H7: 0 | I7: 0 | K7: 3.5055 | L7: 98.13540783 | M7: 98.13541879 | N7: 922.02 | O7: 8.37 | P7: 0.2561166667
C8: 4 | D8: 0 | E8: 0 | F8: 0 | G8: 0 | H8: 0 | I8: 0 | K8: 3.1129 | L8: 94.83511305 | M8: 94.87196891 | N8: 901.44 | O8: 7.77 | P8: 0.2504
C9: 5.5 | D9: 0 | E9: 0 | F9: 0 | G9: 0 | H9: 0 | I9: 0 | K9: 2.7743 | L9: 92.03493189 | M9: 92.13767319 | N9: 881.97 | O9: 7.29 | P9: 0.2449916667
C10: 7 | D10: 0 | E10: 0 | F10: 0 | G10: 0 | H10: 0 | I10: 0 | K10: 2.5975 | L10: 90.54556513 | M10: 90.66335416 | N10: 868.34 | O10: 7.14 | P10: 0.2412055556
C11: 9 | D11: 0 | E11: 0 | F11: 0 | G11: 0 | H11: 0 | I11: 0 | K11: 2.3357 | L11: 88.36127154 | M11: 88.53807403 | N11: 847.71 | O11: 6.84 | P11: 0.235475
C12: 11 | D12: 0 | E12: 0 | F12: 0 | G12: 0 | H12: 0 | I12: 0 | K12: 2.1384 | L12: 86.68173559 | M12: 86.89933684 | N12: 826.46 | O12: 6.64 | P12: 0.2295722222
C13: 13 | D13: 0 | E13: 0 | F13: 0 | G13: 0 | H13: 0 | I13: 0 | K13: 1.9073 | L13: 84.83086446 | M13: 85.10518501 | N13: 806.16 | O13: 6.35 | P13: 0.2239333333
C14: 16 | D14: 0 | E14: 0 | F14: 0 | G14: 0 | H14: 0 | I14: 0 | K14: 1.7531 | L14: 83.56786358 | M14: 83.86508748 | N14: 792.3 | O14: 6.27 | P14: 0.2200833333
C15: 22 | D15: 0 | E15: 0 | F15: 0 | G15: 0 | H15: 0 | I15: 0 | K15: 1.4386 | L15: 80.92709594 | M15: 81.29132466 | N15: 754.16 | O15: 6.16 | P15: 0.2094888889
C16: 33 | D16: 3.242113995 | E16: 73.01449327 | F16: 81.39743767 | G16: 0 | H16: 0 | I16: 0 | K16: 1.0643 | L16: 77.83760971 | M16: 78.29986871 | N16: 716.87 | O16: 5.93 | P16: 0.1991305556
C17: 44 | D17: 2.356683722 | E17: 72.81866131 | F17: 79.68952419 | G17: 0 | H17: 0 | I17: 0 | K17: 0.8526 | L17: 75.937226 | M17: 76.39541965 | N17: 697.73 | O17: 5.55 | P17: 0.1938138889
C18: 55 | D18: 1.550810148 | E18: 72.19880886 | F18: 77.03757989 | G18: 0 | H18: 0 | I18: 0 | K18: 0.7358 | L18: 74.69951983 | M18: 75.14207955 | N18: 695.14 | O18: 5.29 | P18: 0.1930944444
C19: 66 | D19: 1.003369309 | E19: 71.05522793 | F19: 73.90345129 | G19: 0 | H19: 0 | I19: 0 | K19: 0.6458 | L19: 73.62099782 | M19: 74.06083226 | N19: 691.61 | O19: 5.11 | P19: 0.1921138889
C20: 77 | D20: 0.6620756297 | E20: 69.09921954 | F20: 70.52399697 | G20: 0 | H20: 0 | I20: 0 | K20: 0.5731 | L20: 72.67784092 | M20: 73.11002309 | N20: 683.01 | O20: 4.96 | P20: 0.189725
C21: 88 | D21: 0.43862401 | E21: 66.27539089 | F21: 67.07441567 | G21: 0 | H21: 0 | I21: 0 | K21: 0.5283 | L21: 72.02434335 | M21: 72.45930187 | N21: 684 | O21: 4.89 | P21: 0.19
C22: 99 | D22: 0.310630732 | E22: 63.19569737 | F22: 63.97683407 | G22: 0 | H22: 0 | I22: 0 | K22: 0.4756 | L22: 71.23835759 | M22: 71.66067128 | N22: 679.13 | O22: 4.73 | P22: 0.1886472222
C23: 110 | D23: 0.2418172521 | E23: 60.14001842 | F23: 61.36733342 | G23: 0 | H23: 0 | I23: 0 | K23: 0.4303 | L23: 70.49960459 | M23: 70.91275348 | N23: 677.36 | O23: 4.61 | P23: 0.1881555556
B24: sub-101_task-Sleep_acq-psg_eeg.dat | C24: 1 | D24: 0 | E24: 0 | F24: 0 | G24: 0 | H24: 0 | I24: 0 | K24: 5.1399 | L24: 0 | M24: 0 | N24: 1436.21 | O24: 14.2 | P24: 0.3989472222 | V24: =($K24/$D24-1) -> 
C25: 1.125 | D25: 0 | E25: 0 | F25: 0 | G25: 0 | H25: 0 | I25: 0 | K25: 5.847 | L25: 131.0005282 | M25: 134.0350038 | N25: 1380 | O25: 7.94 | P25: 0.3833333333 | T25: =bdrate($D25:$D44,E25:E44,$K25:$K44,L25:L44) ->  | U25: =bdrate($D25:$D44,F25:F44,$K25:$K44,M25:M44) -> -0.5408006329
C26: 1.5 | D26: 0 | E26: 0 | F26: 0 | G26: 0 | H26: 0 | I26: 0 | K26: 5.2969 | L26: 103.0944223 | M26: 105.2590414 | N26: 1301.59 | O26: 19.44 | P26: 0.3615527778
C27: 2 | D27: 0 | E27: 0 | F27: 0 | G27: 0 | H27: 0 | I27: 0 | K27: 4.8695 | L27: 100.5675894 | M27: 102.4919387 | N27: 1273.58 | O27: 15.2 | P27: 0.3537722222
C28: 3 | D28: 0 | E28: 0 | F28: 0 | G28: 0 | H28: 0 | I28: 0 | K28: 4.381 | L28: 98.91020326 | M28: 100.4371185 | N28: 1249.74 | O28: 12.44 | P28: 0.34715
C29: 4 | D29: 0 | E29: 0 | F29: 0 | G29: 0 | H29: 0 | I29: 0 | K29: 4.0189 | L29: 95.52176837 | M29: 97.15463812 | N29: 1227.43 | O29: 12.12 | P29: 0.3409527778
C30: 5.5 | D30: 0 | E30: 0 | F30: 0 | G30: 0 | H30: 0 | I30: 0 | K30: 3.6384 | L30: 92.93322416 | M30: 94.49260754 | N30: 1207.05 | O30: 11.17 | P30: 0.3352916667
C31: 7 | D31: 0 | E31: 0 | F31: 0 | G31: 0 | H31: 0 | I31: 0 | K31: 3.3885 | L31: 91.14609817 | M31: 92.61481248 | N31: 1183 | O31: 10.56 | P31: 0.3286111111
C32: 9 | D32: 0 | E32: 0 | F32: 0 | G32: 0 | H32: 0 | I32: 0 | K32: 3.0857 | L32: 88.8406454 | M32: 90.31096912 | N32: 1162.29 | O32: 10.29 | P32: 0.3228583333
C33: 11 | D33: 0 | E33: 0 | F33: 0 | G33: 0 | H33: 0 | I33: 0 | K33: 2.8501 | L33: 87.04389321 | M33: 88.63869168 | N33: 1144.99 | O33: 10.04 | P33: 0.3180527778
C34: 13 | D34: 0 | E34: 0 | F34: 0 | G34: 0 | H34: 0 | I34: 0 | K34: 2.6167 | L34: 85.24549289 | M34: 86.70938152 | N34: 1129.85 | O34: 9.68 | P34: 0.3138472222
C35: 16 | D35: 0 | E35: 0 | F35: 0 | G35: 0 | H35: 0 | I35: 0 | K35: 2.4405 | L35: 83.90427193 | M35: 85.44347787 | N35: 1117.82 | O35: 9.32 | P35: 0.3105055556
C36: 22 | D36: 0 | E36: 0 | F36: 0 | G36: 0 | H36: 0 | I36: 0 | K36: 2.1128 | L36: 81.24536066 | M36: 82.65809214 | N36: 1091.91 | O36: 8.99 | P36: 0.3033083333
C37: 33 | D37: 3.7927702 | E37: 68.95984185 | F37: 77.8339885 | G37: 0 | H37: 0 | I37: 0 | K37: 1.7248 | L37: 77.9506647 | M37: 79.41308024 | N37: 1061.5 | O37: 8.38 | P37: 0.2948611111
C38: 44 | D38: 3.201476937 | E38: 68.92313168 | F38: 76.62591791 | G38: 0 | H38: 0 | I38: 0 | K38: 1.4565 | L38: 75.52929541 | M38: 77.09336654 | N38: 1036.02 | O38: 7.86 | P38: 0.2877833333
C39: 55 | D39: 2.50855906 | E39: 68.72175043 | F39: 74.34376571 | G39: 0 | H39: 0 | I39: 0 | K39: 1.2976 | L39: 73.99052031 | M39: 75.62115496 | N39: 1025.41 | O39: 7.49 | P39: 0.2848361111
C40: 66 | D40: 1.898029064 | E40: 68.073678 | F40: 71.27650426 | G40: 0 | H40: 0 | I40: 0 | K40: 1.1685 | L40: 72.65203878 | M40: 74.23771778 | N40: 1012.91 | O40: 7.23 | P40: 0.2813638889
C41: 77 | D41: 1.397909643 | E41: 66.48839348 | F41: 68.01989176 | G41: 0 | H41: 0 | I41: 0 | K41: 1.0622 | L41: 71.50124546 | M41: 73.11292131 | N41: 1002.29 | O41: 6.91 | P41: 0.2784138889
C42: 88 | D42: 0.989918826 | E42: 63.50168723 | F42: 64.5759369 | G42: 0 | H42: 0 | I42: 0 | K42: 0.9978 | L42: 70.74930577 | M42: 72.33065776 | N42: 999.84 | O42: 6.79 | P42: 0.2777333333
C43: 99 | D43: 0.6897083815 | E43: 59.68810675 | F43: 61.04932781 | G43: 0 | H43: 0 | I43: 0 | K43: 0.9183 | L43: 69.83002055 | M43: 71.52264573 | N43: 992.42 | O43: 6.57 | P43: 0.2756722222
C44: 110 | D44: 0.4661480345 | E44: 55.44167814 | F44: 57.41982845 | G44: 0 | H44: 0 | I44: 0 | K44: 0.8482 | L44: 68.97745412 | M44: 70.73501265 | N44: 984.16 | O44: 6.39 | P44: 0.2733777778
B45: sub-102_task-Sleep_acq-psg_eeg.dat | C45: 1 | D45: 0 | E45: 0 | F45: 0 | G45: 0 | H45: 0 | I45: 0 | K45: 4.9929 | L45: 0 | M45: 0 | N45: 1560.05 | O45: 15.62 | P45: 0.4333472222 | V45: =($K45/$D45-1) -> 
C46: 1.125 | D46: 0 | E46: 0 | F46: 0 | G46: 0 | H46: 0 | I46: 0 | K46: 5.8379 | L46: 120.834153 | M46: 124.1523852 | N46: 1465.79 | O46: 9.28 | P46: 0.4071638889 | T46: =bdrate($D46:$D65,E46:E65,$K46:$K65,L46:L65) ->  | U46: =bdrate($D46:$D65,F46:F65,$K46:$K65,M46:M65) -> -0.572971125
C47: 1.5 | D47: 0 | E47: 0 | F47: 0 | G47: 0 | H47: 0 | I47: 0 | K47: 5.1788 | L47: 102.7545782 | M47: 104.9011704 | N47: 1386.7 | O47: 19.52 | P47: 0.3851944444
C48: 2 | D48: 0 | E48: 0 | F48: 0 | G48: 0 | H48: 0 | I48: 0 | K48: 4.8155 | L48: 100.6342756 | M48: 102.5842335 | N48: 1356.67 | O48: 17.09 | P48: 0.3768527778
C49: 3 | D49: 0 | E49: 0 | F49: 0 | G49: 0 | H49: 0 | I49: 0 | K49: 4.3406 | L49: 98.96492507 | M49: 100.520578 | N49: 1322.5 | O49: 14.04 | P49: 0.3673611111
C50: 4 | D50: 0 | E50: 0 | F50: 0 | G50: 0 | H50: 0 | I50: 0 | K50: 3.993 | L50: 95.62474511 | M50: 97.16348166 | N50: 1294.5 | O50: 13.78 | P50: 0.3595833333
C51: 5.5 | D51: 0 | E51: 0 | F51: 0 | G51: 0 | H51: 0 | I51: 0 | K51: 3.629 | L51: 92.93956363 | M51: 94.41762547 | N51: 1267.76 | O51: 12.92 | P51: 0.3521555556
C52: 7 | D52: 0 | E52: 0 | F52: 0 | G52: 0 | H52: 0 | I52: 0 | K52: 3.3546 | L52: 90.96316159 | M52: 92.45063681 | N52: 1249.01 | O52: 12.73 | P52: 0.3469472222
C53: 9 | D53: 0 | E53: 0 | F53: 0 | G53: 0 | H53: 0 | I53: 0 | K53: 3.041 | L53: 88.63276843 | M53: 90.13154714 | N53: 1222.96 | O53: 12.54 | P53: 0.3397111111
C54: 11 | D54: 0 | E54: 0 | F54: 0 | G54: 0 | H54: 0 | I54: 0 | K54: 2.8101 | L54: 86.9167609 | M54: 88.37679595 | N54: 1204.6 | O54: 12.09 | P54: 0.3346111111
C55: 13 | D55: 0 | E55: 0 | F55: 0 | G55: 0 | H55: 0 | I55: 0 | K55: 2.5903 | L55: 85.24959339 | M55: 86.66705659 | N55: 1181.13 | O55: 11.52 | P55: 0.3280916667
C56: 16 | D56: 0 | E56: 0 | F56: 0 | G56: 0 | H56: 0 | I56: 0 | K56: 2.4241 | L56: 83.96513 | M56: 85.4552735 | N56: 1163.19 | O56: 11.08 | P56: 0.3231083333
C57: 22 | D57: 0 | E57: 0 | F57: 0 | G57: 0 | H57: 0 | I57: 0 | K57: 2.1354 | L57: 81.50364493 | M57: 82.84167935 | N57: 1139.19 | O57: 10.22 | P57: 0.3164416667
C58: 33 | D58: 3.603282817 | E58: 64.03243476 | F58: 73.9810546 | G58: 0 | H58: 0 | I58: 0 | K58: 1.8008 | L58: 78.43190928 | M58: 79.73713261 | N58: 1109.01 | O58: 9.28 | P58: 0.3080583333
C59: 44 | D59: 2.912971978 | E59: 64.00680603 | F59: 73.2898062 | G59: 0 | H59: 0 | I59: 0 | K59: 1.5568 | L59: 76.09437809 | M59: 77.46087964 | N59: 1087.56 | O59: 8.56 | P59: 0.3021
C60: 55 | D60: 2.321535879 | E60: 63.95961562 | F60: 71.73540991 | G60: 0 | H60: 0 | I60: 0 | K60: 1.3984 | L60: 74.53198508 | M60: 75.93160915 | N60: 1074.69 | O60: 8.13 | P60: 0.298525
C61: 66 | D61: 1.826160439 | E61: 63.77488726 | F61: 69.34299303 | G61: 0 | H61: 0 | I61: 0 | K61: 1.2795 | L61: 73.16419811 | M61: 74.54332582 | N61: 1072.47 | O61: 7.78 | P61: 0.2979083333
C62: 77 | D62: 1.423395982 | E62: 63.23610583 | F62: 66.60694958 | G62: 0 | H62: 0 | I62: 0 | K62: 1.1773 | L62: 71.96632602 | M62: 73.2793034 | N62: 1061.26 | O62: 7.46 | P62: 0.2947944444
C63: 88 | D63: 1.075395526 | E63: 61.79729151 | F63: 63.55352213 | G63: 0 | H63: 0 | I63: 0 | K63: 1.1176 | L63: 71.20013175 | M63: 72.45330662 | N63: 1059.26 | O63: 7.29 | P63: 0.2942388889
C64: 99 | D64: 0.788404551 | E64: 59.06787002 | F64: 60.27424456 | G64: 0 | H64: 0 | I64: 0 | K64: 1.04 | L64: 70.23390771 | M64: 71.62499186 | N64: 1047.46 | O64: 7.06 | P64: 0.2909611111
C65: 110 | D65: 0.5601840351 | E65: 55.277424 | F65: 57.14471475 | G65: 0 | H65: 0 | I65: 0 | K65: 0.9714 | L65: 69.35383593 | M65: 70.84700223 | N65: 1041.41 | O65: 6.87 | P65: 0.2892805556
B66: sub-103_task-Sleep_acq-psg_eeg.dat | C66: 1 | D66: 0 | E66: 0 | F66: 0 | G66: 0 | H66: 0 | I66: 0 | K66: 5.0509 | L66: 0 | M66: 0 | N66: 1824.76 | O66: 18.68 | P66: 0.5068777778 | V66: =($K66/$D66-1) -> 
C67: 1.125 | D67: 0 | E67: 0 | F67: 0 | G67: 0 | H67: 0 | I67: =G67/3600 -> 0 | K67: 5.6361 | L67: 113.8414152 | M67: 116.3684197 | N67: 1753.53 | O67: 13.37 | P67: =N67/3600 -> 0.4870916667 | Q67: =N67/G67 ->  | R67: =O67/H67 ->  | T67: =bdrate($D67:$D86,E67:E86,$K67:$K86,L67:L86) ->  | U67: =bdrate($D67:$D86,F67:F86,$K67:$K86,M67:M86) -> -0.4983946071
C68: 1.5 | D68: 0 | E68: 0 | F68: 0 | G68: 0 | H68: 0 | I68: 0 | K68: 4.9787 | L68: 102.6472522 | M68: 103.982564 | N68: 1644.05 | O68: 24.99 | P68: 0.4566805556
C69: 2 | D69: 0 | E69: 0 | F69: 0 | G69: 0 | H69: 0 | I69: 0 | K69: 4.57 | L69: 100.3388461 | M69: 101.5813946 | N69: 1603.64 | O69: 20.85 | P69: 0.4454555556
C70: 3 | D70: 0 | E70: 0 | F70: 0 | G70: 0 | H70: 0 | I70: 0 | K70: 4.062 | L70: 98.57086145 | M70: 99.58374878 | N70: 1568.17 | O70: 15.72 | P70: 0.4356027778
C71: 4 | D71: 0 | E71: 0 | F71: 0 | G71: 0 | H71: 0 | I71: 0 | K71: 3.652 | L71: 95.1743401 | M71: 96.16152354 | N71: 1541.24 | O71: 16.43 | P71: 0.4281222222
C72: 5.5 | D72: 0 | E72: 0 | F72: 0 | G72: 0 | H72: 0 | I72: 0 | K72: 3.2406 | L72: 92.54485208 | M72: 93.53186597 | N72: 1510.22 | O72: 15.05 | P72: 0.4195055556
C73: 7 | D73: 0 | E73: 0 | F73: 0 | G73: 0 | H73: 0 | I73: 0 | K73: 2.9803 | L73: 90.79907129 | M73: 91.74660049 | N73: 1480.11 | O73: 14.06 | P73: 0.4111416667
C74: 9 | D74: 0 | E74: 0 | F74: 0 | G74: 0 | H74: 0 | I74: 0 | K74: 2.688 | L74: 88.68600687 | M74: 89.63155997 | N74: 1447.17 | O74: 13.9 | P74: 0.4019916667
C75: 11 | D75: 0 | E75: 0 | F75: 0 | G75: 0 | H75: 0 | I75: 0 | K75: 2.4266 | L75: 86.86417985 | M75: 87.85443752 | N75: 1424.86 | O75: 13.87 | P75: 0.3957944444
C76: 13 | D76: 0 | E76: 0 | F76: 0 | G76: 0 | H76: 0 | I76: 0 | K76: 2.1775 | L76: 85.11032568 | M76: 86.1944992 | N76: 1421.06 | O76: 13.39 | P76: 0.3947388889
C77: 16 | D77: 0 | E77: 0 | F77: 0 | G77: 0 | H77: 0 | I77: 0 | K77: 1.9992 | L77: 83.80367781 | M77: 84.93271215 | N77: 1385.2 | O77: 12.96 | P77: 0.3847777778
C78: 22 | D78: 0 | E78: 0 | F78: 0 | G78: 0 | H78: 0 | I78: 0 | K78: 1.6966 | L78: 81.33135315 | M78: 82.46292756 | N78: 1350.67 | O78: 12.07 | P78: 0.3751861111
C79: 33 | D79: 3.356806492 | E79: 69.53267655 | F79: 79.49302594 | G79: 0 | H79: 0 | I79: 0 | K79: 1.3713 | L79: 78.38113584 | M79: 79.57353769 | N79: 1302.9 | O79: 10.84 | P79: 0.3619166667
C80: 44 | D80: 2.599736382 | E80: 69.44897675 | F80: 78.10462014 | G80: 0 | H80: 0 | I80: 0 | K80: 1.151 | L80: 76.14726012 | M80: 77.39538463 | N80: 1273.15 | O80: 10.06 | P80: 0.3536527778
C81: 55 | D81: 1.975952959 | E81: 69.24012279 | F81: 75.84376136 | G81: 0 | H81: 0 | I81: 0 | K81: 1.02 | L81: 74.68025745 | M81: 75.97774697 | N81: 1256.69 | O81: 9.59 | P81: 0.3490805556
C82: 66 | D82: 1.448032065 | E82: 68.62204216 | F82: 72.88355284 | G82: 0 | H82: 0 | I82: 0 | K82: 0.9162 | L82: 73.42352676 | M82: 74.74640927 | N82: 1243.54 | O82: 9.23 | P82: 0.3454277778
C83: 77 | D83: 1.064239247 | E83: 67.21903879 | F83: 69.6916442 | G83: 0 | H83: 0 | I83: 0 | K83: 0.8307 | L83: 72.32713992 | M83: 73.68230416 | N83: 1233.43 | O83: 8.96 | P83: 0.3426194444
C84: 88 | D84: 0.7625726684 | E84: 64.52211855 | F84: 66.36813827 | G84: 0 | H84: 0 | I84: 0 | K84: 0.7792 | L84: 71.61994226 | M84: 72.97407357 | N84: 1225.65 | O84: 8.77 | P84: 0.3404583333
C85: 99 | D85: 0.531369799 | E85: 60.96408387 | F85: 63.05059955 | G85: 0 | H85: 0 | I85: 0 | K85: 0.7143 | L85: 70.70182149 | M85: 72.11350012 | N85: 1218.11 | O85: 8.6 | P85: 0.3383638889
C86: 110 | D86: 0.3883061809 | E86: 57.39619846 | F86: 59.99776031 | G86: 0 | H86: 0 | I86: 0 | K86: 0.6564 | L86: 69.84323654 | M86: 71.32318665 | N86: 1207.9 | O86: 8.35 | P86: 0.3355277778
B87: sub-104_task-Sleep_acq-headband_eeg.dat | C87: 1 | D87: 0 | E87: 0 | F87: 0 | G87: 0 | H87: 0 | I87: 0 | K87: 2.6073 | L87: 0 | M87: 0 | N87: 834.34 | O87: 6.01 | P87: 0.2317611111 | V87: =($K87/$D87-1) -> 
C88: 1.125 | D88: 0 | E88: 0 | F88: 0 | G88: 0 | H88: 0 | I88: 0 | K88: 2.9374 | L88: 116.8684983 | M88: 119.9486747 | N88: 825.28 | O88: 4.83 | P88: 0.2292444444 | T88: =bdrate($D88:$D107,E88:E107,$K88:$K107,L88:L107) -> -0.4133362278 | U88: =bdrate($D88:$D107,F88:F107,$K88:$K107,M88:M107) -> -0.4345558484
C89: 1.5 | D89: 0 | E89: 0 | F89: 0 | G89: 0 | H89: 0 | I89: 0 | K89: 2.4881 | L89: 102.1462971 | M89: 102.3149288 | N89: 762.86 | O89: 7.45 | P89: 0.2119055556
C90: 2 | D90: 0 | E90: 0 | F90: 0 | G90: 0 | H90: 0 | I90: 0 | K90: 2.1908 | L90: 100.5357574 | M90: 100.6695098 | N90: 748.4 | O90: 6.57 | P90: 0.2078888889
C91: 3 | D91: 0 | E91: 0 | F91: 0 | G91: 0 | H91: 0 | I91: 0 | K91: 1.9079 | L91: 98.68500792 | M91: 98.81411056 | N91: 730.1 | O91: 5.77 | P91: 0.2028055556
C92: 4 | D92: 0 | E92: 0 | F92: 0 | G92: 0 | H92: 0 | I92: 0 | K92: 1.6358 | L92: 96.12026786 | M92: 96.51056423 | N92: 717.81 | O92: 5.34 | P92: 0.1993916667
C93: 5.5 | D93: 0 | E93: 0 | F93: 0 | G93: 0 | H93: 0 | I93: 0 | K93: 1.3922 | L93: 93.87207152 | M93: 94.48231028 | N93: 699.89 | O93: 5.02 | P93: 0.1944138889
C94: 7 | D94: 0 | E94: 0 | F94: 0 | G94: 0 | H94: 0 | I94: 0 | K94: 1.2417 | L94: 92.41922114 | M94: 93.1459666 | N94: 685.87 | O94: 4.72 | P94: 0.1905194444
C95: 9 | D95: 0 | E95: 0 | F95: 0 | G95: 0 | H95: 0 | I95: 0 | K95: 1.0891 | L95: 90.78417997 | M95: 91.6717565 | N95: 679.05 | O95: 4.43 | P95: 0.188625
C96: 11 | D96: 0 | E96: 0 | F96: 0 | G96: 0 | H96: 0 | I96: 0 | K96: 0.9682 | L96: 89.37660601 | M96: 90.42673824 | N96: 662.06 | O96: 4.26 | P96: 0.1839055556
C97: 13 | D97: 0 | E97: 0 | F97: 0 | G97: 0 | H97: 0 | I97: 0 | K97: 0.8601 | L97: 88.01259429 | M97: 89.21350924 | N97: 659.98 | O97: 4.16 | P97: 0.1833277778
C98: 16 | D98: 0 | E98: 0 | F98: 0 | G98: 0 | H98: 0 | I98: 0 | K98: 0.7771 | L98: 86.87293 | M98: 88.2272565 | N98: 668.48 | O98: 4.07 | P98: 0.1856888889
C99: 22 | D99: 0 | E99: 0 | F99: 0 | G99: 0 | H99: 0 | I99: 0 | K99: 0.6381 | L99: 84.71414094 | M99: 86.39367887 | N99: 689.3 | O99: 3.96 | P99: 0.1914722222
C100: 33 | D100: 1.487432404 | E100: 85.07545853 | F100: 86.88362525 | G100: 0 | H100: 0 | I100: 0 | K100: 0.4921 | L100: 82.05310725 | M100: 84.19542853 | N100: 683.44 | O100: 3.93 | P100: 0.1898444444
C101: 44 | D101: 1.061023098 | E101: 83.95238107 | F101: 85.57730528 | G101: 0 | H101: 0 | I101: 0 | K101: 0.389 | L101: 79.90959883 | M101: 82.50255356 | N101: 670.63 | O101: 3.93 | P101: 0.1862861111
C102: 55 | D102: 0.7560852867 | E102: 81.74761117 | F102: 83.55486346 | G102: 0 | H102: 0 | I102: 0 | K102: 0.3353 | L102: 78.63280931 | M102: 81.49901355 | N102: 673.11 | O102: 3.9 | P102: 0.186975
C103: 66 | D103: 0.5364019114 | E103: 78.44983326 | F103: 81.07073246 | G103: 0 | H103: 0 | I103: 0 | K103: 0.294 | L103: 77.54810205 | M103: 80.68155146 | N103: 677.56 | O103: 3.86 | P103: 0.1882111111
C104: 77 | D104: 0.3966846279 | E104: 74.82528446 | F104: 78.64545186 | G104: 0 | H104: 0 | I104: 0 | K104: 0.2603 | L104: 76.54723953 | M104: 79.8833349 | N104: 682.42 | O104: 3.85 | P104: 0.1895611111
C105: 88 | D105: 0.3084057575 | E105: 71.07076568 | F105: 76.44234488 | G105: 0 | H105: 0 | I105: 0 | K105: 0.2437 | L105: 75.99526575 | M105: 79.41692085 | N105: 676.47 | O105: 3.82 | P105: 0.1879083333
C106: 99 | D106: 0.250513453 | E106: 67.32854973 | F106: 74.37009431 | G106: 0 | H106: 0 | I106: 0 | K106: 0.2198 | L106: 75.1717515 | M106: 78.79584702 | N106: 676.29 | O106: 3.82 | P106: 0.1878583333
C107: 110 | D107: 0.2154750475 | E107: 63.65019857 | F107: 71.49768427 | G107: 0 | H107: 0 | I107: 0 | K107: 0.2 | L107: 74.42967471 | M107: 78.25498301 | N107: 675.09 | O107: 3.82 | P107: 0.187525
B108: sub-104_task-Sleep_acq-psg_eeg.dat | C108: 1 | D108: 0 | E108: 0 | F108: 0 | G108: 0 | H108: 0 | I108: 0 | K108: 5.3602 | L108: 0 | M108: 0 | N108: 1757.3 | O108: 18.39 | P108: 0.4881388889 | V108: =($K108/$D108-1) -> 
C109: 1.125 | D109: 0 | E109: 0 | F109: 0 | G109: 0 | H109: 0 | I109: 0 | K109: 5.6946 | L109: 118.399718 | M109: 119.1127557 | N109: 1728.86 | O109: 13.07 | P109: 0.4802388889 | T109: =bdrate($D109:$D128,E109:E128,$K109:$K128,L109:L128) -> -0.6659110279 | U109: =bdrate($D109:$D128,F109:F128,$K109:$K128,M109:M128) -> -0.51673555
C110: 1.5 | D110: 0 | E110: 0 | F110: 0 | G110: 0 | H110: 0 | I110: 0 | K110: 4.9007 | L110: 102.2750572 | M110: 102.5764085 | N110: 1622.55 | O110: 23.57 | P110: 0.4507083333
C111: 2 | D111: 0 | E111: 0 | F111: 0 | G111: 0 | H111: 0 | I111: 0 | K111: 4.492 | L111: 100.1482086 | M111: 100.4355068 | N111: 1585.25 | O111: 19.9 | P111: 0.4403472222
C112: 3 | D112: 0 | E112: 0 | F112: 0 | G112: 0 | H112: 0 | I112: 0 | K112: 3.9864 | L112: 98.40861176 | M112: 98.63145306 | N112: 1537.14 | O112: 15.07 | P112: 0.4269833333
C113: 4 | D113: 0 | E113: 0 | F113: 0 | G113: 0 | H113: 0 | I113: 0 | K113: 3.5676 | L113: 95.09560526 | M113: 95.42098856 | N113: 1516.65 | O113: 15.68 | P113: 0.4212916667
C114: 5.5 | D114: 0 | E114: 0 | F114: 0 | G114: 0 | H114: 0 | I114: 0 | K114: 3.138 | L114: 92.42579896 | M114: 92.81057457 | N114: 1484.39 | O114: 14.71 | P114: 0.4123305556
C115: 7 | D115: 0 | E115: 0 | F115: 0 | G115: 0 | H115: 0 | I115: 0 | K115: 2.8791 | L115: 90.74576924 | M115: 91.18194992 | N115: 1456.13 | O115: 13.76 | P115: 0.4044805556
C116: 9 | D116: 0 | E116: 0 | F116: 0 | G116: 0 | H116: 0 | I116: 0 | K116: 2.5876 | L116: 88.67842654 | M116: 89.17461704 | N116: 1425.51 | O116: 13.19 | P116: 0.395975
C117: 11 | D117: 0 | E117: 0 | F117: 0 | G117: 0 | H117: 0 | I117: 0 | K117: 2.3517 | L117: 86.95204834 | M117: 87.54993361 | N117: 1402.95 | O117: 13.19 | P117: 0.3897083333
C118: 13 | D118: 0 | E118: 0 | F118: 0 | G118: 0 | H118: 0 | I118: 0 | K118: 2.1192 | L118: 85.21760564 | M118: 85.93066523 | N118: 1376.09 | O118: 12.62 | P118: 0.3822472222
C119: 16 | D119: 0 | E119: 0 | F119: 0 | G119: 0 | H119: 0 | I119: 0 | K119: 1.9524 | L119: 83.91662056 | M119: 84.73792072 | N119: 1356.94 | O119: 12.22 | P119: 0.3769277778
C120: 22 | D120: 0 | E120: 0 | F120: 0 | G120: 0 | H120: 0 | I120: 0 | K120: 1.6606 | L120: 81.44653444 | M120: 82.43846533 | N120: 1320.26 | O120: 11.38 | P120: 0.3667388889
C121: 33 | D121: 3.331463237 | E121: 71.71475002 | F121: 79.16023155 | G121: 0 | H121: 0 | I121: 0 | K121: 1.3315 | L121: 78.3889096 | M121: 79.54751287 | N121: 1282.97 | O121: 10.4 | P121: 0.3563805556
C122: 44 | D122: 2.634018363 | E122: 71.92436593 | F122: 77.97437005 | G122: 0 | H122: 0 | I122: 0 | K122: 1.1044 | L122: 76.09686629 | M122: 77.35126002 | N122: 1256.89 | O122: 9.59 | P122: 0.3491361111
C123: 55 | D123: 1.973460003 | E123: 71.18977027 | F123: 75.8068143 | G123: 0 | H123: 0 | I123: 0 | K123: 0.9671 | L123: 74.56729274 | M123: 75.88145081 | N123: 1241.18 | O123: 9.16 | P123: 0.3447722222
C124: 66 | D124: 1.395573149 | E124: 70.14010423 | F124: 72.93843815 | G124: 0 | H124: 0 | I124: 0 | K124: 0.8576 | L124: 73.24975661 | M124: 74.60287075 | N124: 1229.59 | O124: 8.86 | P124: 0.3415527778
C125: 77 | D125: 0.9312180299 | E125: 67.89475652 | F125: 69.63583386 | G125: 0 | H125: 0 | I125: 0 | K125: 0.764 | L125: 72.08640737 | M125: 73.47123753 | N125: 1217.47 | O125: 8.55 | P125: 0.3381861111
C126: 88 | D126: 0.6027924178 | E126: 64.77321033 | F126: 66.14804923 | G126: 0 | H126: 0 | I126: 0 | K126: 0.7052 | L126: 71.31262725 | M126: 72.74560003 | N126: 1213.59 | O126: 8.39 | P126: 0.3371083333
C127: 99 | D127: 0.4160446464 | E127: 61.541871 | F127: 62.76997811 | G127: 0 | H127: 0 | I127: 0 | K127: 0.6332 | L127: 70.35591357 | M127: 71.86833741 | N127: 1203.38 | O127: 8.17 | P127: 0.3342722222
C128: 110 | D128: 0.3110520337 | E128: 58.28174462 | F128: 59.45181173 | G128: 0 | H128: 0 | I128: 0 | K128: 0.57 | L128: 69.47421951 | M128: 71.07787137 | N128: 1195.97 | O128: 7.92 | P128: 0.3322138889
B129: sub-105_task-Sleep_acq-psg_eeg.dat | C129: 1 | D129: 0 | E129: 0 | F129: 0 | G129: 0 | H129: 0 | I129: 0 | K129: 5.0633 | L129: 0 | M129: 0 | N129: 2057.1 | O129: 21.61 | P129: 0.5714166667 | V129: =($K129/$D129-1) -> 
C130: 1.125 | D130: 0 | E130: 0 | F130: 0 | G130: 0 | H130: 0 | I130: 0 | K130: 5.4463 | L130: 112.8931084 | M130: 116.1866264 | N130: 1962.93 | O130: 15.65 | P130: 0.5452583333 | T130: =bdrate($D130:$D149,E130:E149,$K130:$K149,L130:L149) -> -0.4884176521 | U130: =bdrate($D130:$D149,F130:F149,$K130:$K149,M130:M149) -> -0.5016537527
C131: 1.5 | D131: 0 | E131: 0 | F131: 0 | G131: 0 | H131: 0 | I131: =G131/3600 -> 0 | K131: 4.7694 | L131: 102.5719199 | M131: 104.1544957 | N131: 1831.18 | O131: 28.6 | P131: =N131/3600 -> 0.5086611111 | Q131: =N131/G131 ->  | R131: =O131/H131 -> 
C132: 2 | D132: 0 | E132: 0 | F132: 0 | G132: 0 | H132: 0 | I132: 0 | K132: 4.4087 | L132: 100.5478412 | M132: 101.9979118 | N132: 1794.99 | O132: 25.04 | P132: 0.4986083333
C133: 3 | D133: 0 | E133: 0 | F133: 0 | G133: 0 | H133: 0 | I133: 0 | K133: 3.9154 | L133: 98.62052092 | M133: 99.59406015 | N133: 1740.45 | O133: 17.56 | P133: 0.4834583333
C134: 4 | D134: 0 | E134: 0 | F134: 0 | G134: 0 | H134: 0 | I134: 0 | K134: 3.5146 | L134: 95.33571634 | M134: 96.6233858 | N134: 1726.71 | O134: 20.06 | P134: 0.4796416667
C135: 5.5 | D135: 0 | E135: 0 | F135: 0 | G135: 0 | H135: 0 | I135: 0 | K135: 3.1097 | L135: 92.65313254 | M135: 93.71970922 | N135: 1686.64 | O135: 18.08 | P135: 0.4685111111
C136: 7 | D136: 0 | E136: 0 | F136: 0 | G136: 0 | H136: 0 | I136: 0 | K136: 2.8499 | L136: 90.90496871 | M136: 91.98841672 | N136: 1655.07 | O136: 16.79 | P136: 0.4597416667
C137: 9 | D137: 0 | E137: 0 | F137: 0 | G137: 0 | H137: 0 | I137: 0 | K137: 2.5578 | L137: 88.81119431 | M137: 90.07678756 | N137: 1622.7 | O137: 16.83 | P137: 0.45075
C138: 11 | D138: 0 | E138: 0 | F138: 0 | G138: 0 | H138: 0 | I138: 0 | K138: 2.3414 | L138: 87.15639297 | M138: 88.41369868 | N138: 1592.86 | O138: 16.39 | P138: 0.4424611111
C139: 13 | D139: 0 | E139: 0 | F139: 0 | G139: 0 | H139: 0 | I139: 0 | K139: 2.1286 | L139: 85.44341678 | M139: 86.68023407 | N139: 1567.83 | O139: 15.57 | P139: 0.4355083333
C140: 16 | D140: 0 | E140: 0 | F140: 0 | G140: 0 | H140: 0 | I140: 0 | K140: 1.9678 | L140: 84.1251142 | M140: 85.42209653 | N140: 1550.12 | O140: 14.99 | P140: 0.4305888889
C141: 22 | D141: 0 | E141: 0 | F141: 0 | G141: 0 | H141: 0 | I141: 0 | K141: 1.6784 | L141: 81.54711693 | M141: 82.93805256 | N141: 1518.72 | O141: 13.91 | P141: 0.4218666667
C142: 33 | D142: 3.383463675 | E142: 74.47261425 | F142: 79.55173839 | G142: 0 | H142: 0 | I142: 0 | K142: 1.3432 | L142: 78.2490858 | M142: 79.64493495 | N142: 1481.79 | O142: 12.53 | P142: 0.4116083333
C143: 44 | D143: 2.700327501 | E143: 74.28441897 | F143: 78.46401493 | G143: 0 | H143: 0 | I143: 0 | K143: 1.1101 | L143: 75.89985154 | M143: 77.56385591 | N143: 1454.08 | O143: 11.51 | P143: 0.4039111111
C144: 55 | D144: 2.02189345 | E144: 73.62915936 | F144: 76.30727002 | G144: 0 | H144: 0 | I144: 0 | K144: 0.973 | L144: 74.32999457 | M144: 75.80425897 | N144: 1435.82 | O144: 10.98 | P144: 0.3988388889
C145: 66 | D145: 1.406060414 | E145: 71.80430662 | F145: 73.30244631 | G145: 0 | H145: 0 | I145: 0 | K145: 0.8618 | L145: 73.03049346 | M145: 74.53741514 | N145: 1423.1 | O145: 10.48 | P145: 0.3953055556
C146: 77 | D146: 0.9241863585 | E146: 68.76728895 | F146: 70.03803502 | G146: 0 | H146: 0 | I146: 0 | K146: 0.7702 | L146: 71.93618244 | M146: 73.69376201 | N146: 1415.66 | O146: 10.13 | P146: 0.3932388889
C147: 88 | D147: 0.6082447751 | E147: 65.30105363 | F147: 66.73126494 | G147: 0 | H147: 0 | I147: 0 | K147: 0.7132 | L147: 71.17441292 | M147: 73.02982259 | N147: 1404.8 | O147: 9.91 | P147: 0.3902222222
C148: 99 | D148: 0.4161041297 | E148: 61.60929159 | F148: 63.17110975 | G148: 0 | H148: 0 | I148: 0 | K148: 0.6436 | L148: 70.23825773 | M148: 71.97172071 | N148: 1389.22 | O148: 9.58 | P148: 0.3858944444
C149: 110 | D149: 0.3078105867 | E149: 58.28541428 | F149: 60.05747666 | G149: 0 | H149: 0 | I149: 0 | K149: 0.5816 | L149: 69.38311148 | M149: 71.13745941 | N149: 1425.42 | O149: 9.49 | P149: 0.39595
B150: sub-106_task-Sleep_acq-psg_eeg.dat | C150: 1 | D150: 0 | E150: 0 | F150: 0 | G150: 0 | H150: 0 | I150: 0 | K150: 6.4795 | L150: 0 | M150: 0 | N150: 2021.2 | O150: 23.61 | P150: 0.5614444444 | V150: =($K150/$D150-1) -> 
C151: 1.125 | D151: 0 | E151: 0 | F151: 0 | G151: 0 | H151: 0 | I151: 0 | K151: 6.7702 | L151: 120.8900227 | M151: 121.4571306 | N151: 1981.4 | O151: 13.85 | P151: 0.5503888889 | T151: =bdrate($D151:$D170,E151:E170,$K151:$K170,L151:L170) -> -0.5213143504 | U151: =bdrate($D151:$D170,F151:F170,$K151:$K170,M151:M170) -> -0.5011988293
C152: 1.5 | D152: 0 | E152: 0 | F152: 0 | G152: 0 | H152: 0 | I152: 0 | K152: 6.1182 | L152: 102.7441137 | M152: 103.0718651 | N152: 1875.28 | O152: 34 | P152: 0.5209111111
C153: 2 | D153: 0 | E153: 0 | F153: 0 | G153: 0 | H153: 0 | I153: 0 | K153: 5.6617 | L153: 100.3146798 | M153: 100.567457 | N153: 1825 | O153: 27.13 | P153: 0.5069444444
C154: 3 | D154: 0 | E154: 0 | F154: 0 | G154: 0 | H154: 0 | I154: 0 | K154: 5.0874 | L154: 98.32027467 | M154: 98.54500282 | N154: 1778.13 | O154: 19.53 | P154: 0.493925
C155: 4 | D155: 0 | E155: 0 | F155: 0 | G155: 0 | H155: 0 | I155: 0 | K155: 4.6855 | L155: 95.10315099 | M155: 95.40910099 | N155: 1760.42 | O155: 20.55 | P155: 0.4890055556
C156: 5.5 | D156: 0 | E156: 0 | F156: 0 | G156: 0 | H156: 0 | I156: 0 | K156: 4.2536 | L156: 92.54089185 | M156: 92.88652661 | N156: 1718.21 | O156: 18.81 | P156: 0.4772805556
C157: 7 | D157: 0 | E157: 0 | F157: 0 | G157: 0 | H157: 0 | I157: 0 | K157: 3.9661 | L157: 90.81024173 | M157: 91.202539 | N157: 1690.72 | O157: 17.7 | P157: 0.4696444444
C158: 9 | D158: 0 | E158: 0 | F158: 0 | G158: 0 | H158: 0 | I158: 0 | K158: 3.6716 | L158: 88.80661207 | M158: 89.25883951 | N158: 1654.9 | O158: 16.62 | P158: 0.4596944444
C159: 11 | D159: 0 | E159: 0 | F159: 0 | G159: 0 | H159: 0 | I159: 0 | K159: 3.4423 | L159: 87.17593626 | M159: 87.71384757 | N159: 1622.04 | O159: 15.97 | P159: 0.4505666667
C160: 13 | D160: 0 | E160: 0 | F160: 0 | G160: 0 | H160: 0 | I160: 0 | K160: 3.2003 | L160: 85.41871017 | M160: 86.05641358 | N160: 1597.42 | O160: 15.31 | P160: 0.4437277778
C161: 16 | D161: 0 | E161: 0 | F161: 0 | G161: 0 | H161: 0 | I161: 0 | K161: 3.0157 | L161: 84.05371716 | M161: 84.78649179 | N161: 1581.13 | O161: 14.73 | P161: 0.4392027778
C162: 22 | D162: 0 | E162: 0 | F162: 0 | G162: 0 | H162: 0 | I162: 0 | K162: 2.6775 | L162: 81.44274479 | M162: 82.34360412 | N162: 1552.83 | O162: 13.78 | P162: 0.4313416667
C163: 33 | D163: 3.943361227 | E163: 70.00787667 | F163: 74.40316998 | G163: 0 | H163: 0 | I163: 0 | K163: 2.2691 | L163: 78.07889758 | M163: 79.1923725 | N163: 1513.06 | O163: 12.79 | P163: 0.4202944444
C164: 44 | D164: 3.62289668 | E164: 69.83473474 | F164: 73.94514087 | G164: 0 | H164: 0 | I164: 0 | K164: 1.9483 | L164: 75.35608154 | M164: 76.66936463 | N164: 1484.76 | O164: 11.97 | P164: 0.4124333333
C165: 55 | D165: 3.105234307 | E165: 69.62407873 | F165: 72.95381886 | G165: 0 | H165: 0 | I165: 0 | K165: 1.7522 | L165: 73.61342369 | M165: 75.02485063 | N165: 1462.67 | O165: 11.65 | P165: 0.4062972222
C166: 66 | D166: 2.438958823 | E166: 68.74665392 | F166: 70.91893498 | G166: 0 | H166: 0 | I166: 0 | K166: 1.5841 | L166: 72.07010365 | M166: 73.58787704 | N166: 1449.71 | O166: 11.17 | P166: 0.4026972222
C167: 77 | D167: 1.788159775 | E167: 66.40807193 | F167: 67.87262164 | G167: 0 | H167: 0 | I167: 0 | K167: 1.4401 | L167: 70.72483249 | M167: 72.33792336 | N167: 1434.52 | O167: 10.83 | P167: 0.3984777778
C168: 88 | D168: 1.220013652 | E168: 62.65163343 | F168: 64.30428309 | G168: 0 | H168: 0 | I168: 0 | K168: 1.3527 | L168: 69.8653413 | M168: 71.5615882 | N168: 1437.46 | O168: 10.63 | P168: 0.3992944444
C169: 99 | D169: 0.8191900774 | E169: 58.57693236 | F169: 60.72497318 | G169: 0 | H169: 0 | I169: 0 | K169: 1.2425 | L169: 68.78595828 | M169: 70.5565724 | N169: 1414.89 | O169: 10.36 | P169: 0.393025
C170: 110 | D170: 0.536747633 | E170: 54.29858424 | F170: 57.12279623 | G170: 0 | H170: 0 | I170: 0 | K170: 1.1429 | L170: 67.78674938 | M170: 69.63672438 | N170: 1403.95 | O170: 10.06 | P170: 0.3899861111
B171: sub-107_task-Sleep_acq-headband_eeg.dat | C171: 1 | D171: 0 | E171: 0 | F171: 0 | G171: 0 | H171: 0 | I171: 0 | K171: 2.4991 | L171: 0 | M171: 0 | N171: 923.7 | O171: 6.62 | P171: 0.2565833333 | V171: =($K171/$D171-1) -> 
C172: 1.125 | D172: 0 | E172: 0 | F172: 0 | G172: 0 | H172: 0 | I172: 0 | K172: 2.8285 | L172: 115.6440598 | M172: 118.4042725 | N172: 898.28 | O172: 5.88 | P172: 0.2495222222 | T172: =bdrate($D172:$D191,E172:E191,$K172:$K191,L172:L191) -> -0.4543958777 | U172: =bdrate($D172:$D191,F172:F191,$K172:$K191,M172:M191) -> -0.4580623569
C173: 1.5 | D173: 0 | E173: 0 | F173: 0 | G173: 0 | H173: 0 | I173: 0 | K173: 2.3901 | L173: 102.0041564 | M173: 102.1684972 | N173: 824.32 | O173: 8.22 | P173: 0.2289777778
C174: 2 | D174: 0 | E174: 0 | F174: 0 | G174: 0 | H174: 0 | I174: 0 | K174: 2.085 | L174: 100.3826935 | M174: 100.5085471 | N174: 799.66 | O174: 7.18 | P174: 0.2221277778
C175: 3 | D175: 0 | E175: 0 | F175: 0 | G175: 0 | H175: 0 | I175: 0 | K175: 1.8251 | L175: 98.62959729 | M175: 98.74490332 | N175: 785.75 | O175: 6.56 | P175: 0.2182638889
C176: 4 | D176: 0 | E176: 0 | F176: 0 | G176: 0 | H176: 0 | I176: 0 | K176: 1.5466 | L176: 96.00315798 | M176: 96.3557541 | N176: 763.72 | O176: 6.1 | P176: 0.2121444444
C177: 5.5 | D177: 0 | E177: 0 | F177: 0 | G177: 0 | H177: 0 | I177: 0 | K177: 1.3079 | L177: 93.73407561 | M177: 94.29503324 | N177: 733.12 | O177: 5.79 | P177: 0.2036444444
C178: 7 | D178: 0 | E178: 0 | F178: 0 | G178: 0 | H178: 0 | I178: 0 | K178: 1.162 | L178: 92.28042473 | M178: 92.94825168 | N178: 706.49 | O178: 5.52 | P178: 0.1962472222
C179: 9 | D179: 0 | E179: 0 | F179: 0 | G179: 0 | H179: 0 | I179: 0 | K179: 1.0058 | L179: 90.58473721 | M179: 91.40791003 | N179: 679.95 | O179: 5.2 | P179: 0.188875
C180: 11 | D180: 0 | E180: 0 | F180: 0 | G180: 0 | H180: 0 | I180: 0 | K180: 0.8824 | L180: 89.16153994 | M180: 90.13837804 | N180: 675.73 | O180: 5.01 | P180: 0.1877027778
C181: 13 | D181: 0 | E181: 0 | F181: 0 | G181: 0 | H181: 0 | I181: 0 | K181: 0.776 | L181: 87.82822834 | M181: 88.938042 | N181: 679.84 | O181: 4.88 | P181: 0.1888444444
C182: 16 | D182: 0 | E182: 0 | F182: 0 | G182: 0 | H182: 0 | I182: 0 | K182: 0.6975 | L182: 86.75280258 | M182: 87.97527003 | N182: 695.58 | O182: 4.63 | P182: 0.1932166667
C183: 22 | D183: 0 | E183: 0 | F183: 0 | G183: 0 | H183: 0 | I183: 0 | K183: 0.5665 | L183: 84.70235664 | M183: 86.16559762 | N183: 738.74 | O183: 4.38 | P183: 0.2052055556
C184: 33 | D184: 1.454467438 | E184: 85.62709132 | F184: 87.65017303 | G184: 0 | H184: 0 | I184: 0 | K184: 0.4269 | L184: 82.12466101 | M184: 83.93807054 | N184: 758.07 | O184: 4.26 | P184: 0.210575
C185: 44 | D185: 1.008626547 | E185: 84.31668985 | F185: 85.97215144 | G185: 0 | H185: 0 | I185: 0 | K185: 0.3304 | L185: 80.04495761 | M185: 82.21437807 | N185: 745.37 | O185: 4.29 | P185: 0.2070472222
C186: 55 | D186: 0.6988024314 | E186: 81.95689069 | F186: 83.65473325 | G186: 0 | H186: 0 | I186: 0 | K186: 0.2809 | L186: 78.79680327 | M186: 81.20602669 | N186: 745.32 | O186: 4.3 | P186: 0.2070333333
C187: 66 | D187: 0.4898757937 | E187: 78.72843789 | F187: 81.01582966 | G187: 0 | H187: 0 | I187: 0 | K187: 0.2429 | L187: 77.71583689 | M187: 80.34923616 | N187: 757.38 | O187: 4.36 | P187: 0.2103833333
C188: 77 | D188: 0.366136277 | E188: 75.31911633 | F188: 78.52851499 | G188: 0 | H188: 0 | I188: 0 | K188: 0.2127 | L188: 76.74836384 | M188: 79.58377565 | N188: 763.83 | O188: 4.26 | P188: 0.212175
C189: 88 | D189: 0.2856630283 | E189: 71.57957855 | F189: 76.24448172 | G189: 0 | H189: 0 | I189: 0 | K189: 0.1968 | L189: 76.15847356 | M189: 79.10342722 | N189: 765.08 | O189: 4.21 | P189: 0.2125222222
C190: 99 | D190: 0.2354784393 | E190: 68.02705662 | F190: 74.13866234 | G190: 0 | H190: 0 | I190: 0 | K190: 0.1747 | L190: 75.30089615 | M190: 78.40240685 | N190: 767.12 | O190: 4.17 | P190: 0.2130888889
C191: 110 | D191: 0.208904281 | E191: 64.60053315 | F191: 71.4418941 | G191: 0 | H191: 0 | I191: 0 | K191: 0.1578 | L191: 74.58497553 | M191: 77.7844822 | N191: 769.86 | O191: 4.14 | P191: 0.21385
B192: sub-107_task-Sleep_acq-psg_eeg.dat | C192: 1 | D192: 0 | E192: 0 | F192: 0 | G192: 0 | H192: 0 | I192: 0 | K192: 4.8416 | L192: 0 | M192: 0 | N192: 1991.55 | O192: 19.82 | P192: 0.5532083333 | V192: =($K192/$D192-1) -> 
C193: 1.125 | D193: 0 | E193: 0 | F193: 0 | G193: 0 | H193: 0 | I193: 0 | K193: 5.3795 | L193: 125.2545782 | M193: 127.7751149 | N193: 1943.73 | O193: 12.45 | P193: 0.539925 | T193: =bdrate($D193:$D212,E193:E212,$K193:$K212,L193:L212) -> -0.6557465678 | U193: =bdrate($D193:$D212,F193:F212,$K193:$K212,M193:M212) -> -0.5022762606
C194: 1.5 | D194: 0 | E194: 0 | F194: 0 | G194: 0 | H194: 0 | I194: 0 | K194: 4.695 | L194: 102.5977348 | M194: 104.3051722 | N194: 1826.35 | O194: 25.68 | P194: 0.5073194444
C195: 2 | D195: 0 | E195: 0 | F195: 0 | G195: 0 | H195: 0 | I195: =G195/3600 -> 0 | K195: 4.2946 | L195: 100.3688806 | M195: 101.818888 | N195: 1781.97 | O195: 21.51 | P195: =N195/3600 -> 0.4949916667 | Q195: =N195/G195 ->  | R195: =O195/H195 -> 
C196: 3 | D196: 0 | E196: 0 | F196: 0 | G196: 0 | H196: 0 | I196: 0 | K196: 3.7861 | L196: 98.49058061 | M196: 99.75051493 | N196: 1737.72 | O196: 16.68 | P196: 0.4827
C197: 4 | D197: 0 | E197: 0 | F197: 0 | G197: 0 | H197: 0 | I197: 0 | K197: 3.3838 | L197: 95.24765159 | M197: 96.42826767 | N197: 1715.79 | O197: 16.98 | P197: 0.4766083333
C198: 5.5 | D198: 0 | E198: 0 | F198: 0 | G198: 0 | H198: 0 | I198: 0 | K198: 2.9834 | L198: 92.64494038 | M198: 93.79695492 | N198: 1679.64 | O198: 15.82 | P198: 0.4665666667
C199: 7 | D199: 0 | E199: 0 | F199: 0 | G199: 0 | H199: 0 | I199: 0 | K199: 2.7159 | L199: 90.86506737 | M199: 91.98778489 | N199: 1652.61 | O199: 15.14 | P199: 0.4590583333
C200: 9 | D200: 0 | E200: 0 | F200: 0 | G200: 0 | H200: 0 | I200: 0 | K200: 2.4205 | L200: 88.77112162 | M200: 89.97163967 | N200: 1607.83 | O200: 14.49 | P200: 0.4466194444
... 2495 more rows

Sheet NMR57 (EEG)
D1: Reference | K1: Tested | T1: BD-rate (piecewise cubic) | V1: Lossless
C2: StepSizeForQP | D2: BPS | E2: PSNR1 | F2: PSNR2 | G2: Enc T [s] | H2: Dec T [s] | I2: Enc T [h] | K2: BPS | L2: PSNR1 | M2: PSNR2 | N2: Enc T [s] | O2: Dec T [s] | P2: Enc T [h] | Q2: EncR | R2: DecR | T2: BD-PSNR1 | U2: BD-PSNR2 | V2: BR-R
A3: NMR57 | B3: sub-R1124J_ses-0_task-FR3_acq-bipolar_ieeg.dat | C3: 1 | D3: 0 | E3: 0 | F3: 0 | G3: 0 | H3: 0 | I3: =G3/3600 -> 0 | K3: 5.3967 | L3: 0 | M3: 0 | N3: 15317.65 | O3: 62.7 | P3: =N3/3600 -> 4.254902778 | Q3: =N3/G3 ->  | R3: =O3/H3 ->  | V3: =($K3/$D3-1) -> 
A4: EEG | C4: 1.125 | D4: 0 | E4: 0 | F4: 0 | G4: 0 | H4: 0 | I4: 0 | K4: 6.0926 | L4: 127.1849398 | M4: 127.1946655 | N4: 13912.13 | O4: 69.68 | P4: 3.864480556 | T4: =bdrate($D4:$D23,E4:E23,$K4:$K23,L4:L23) -> -0.3526401042 | U4: =bdrate($D4:$D23,F4:F23,$K4:$K23,M4:M23) -> -0.2858079677
C5: 1.5 | D5: 0 | E5: 0 | F5: 0 | G5: 0 | H5: 0 | I5: 0 | K5: 5.5745 | L5: 103.4643477 | M5: 103.4649955 | N5: 13170.12 | O5: 91.27 | P5: 3.658366667
C6: 2 | D6: 0 | E6: 0 | F6: 0 | G6: 0 | H6: 0 | I6: 0 | K6: 5.1316 | L6: 100.9652641 | M6: 100.9664181 | N6: 13005.47 | O6: 80.94 | P6: 3.612630556
C7: 3 | D7: 0 | E7: 0 | F7: 0 | G7: 0 | H7: 0 | I7: 0 | K7: 4.5259 | L7: 98.04882129 | M7: 98.04942948 | N7: 12777.6 | O7: 60.73 | P7: 3.549333333
C8: 4 | D8: 0 | E8: 0 | F8: 0 | G8: 0 | H8: 0 | I8: 0 | K8: 4.0998 | L8: 95.61750434 | M8: 95.6195289 | N8: 12755.97 | O8: 63.77 | P8: 3.543325
C9: 5.5 | D9: 0 | E9: 0 | F9: 0 | G9: 0 | H9: 0 | I9: 0 | K9: 3.6419 | L9: 92.97149271 | M9: 92.97359945 | N9: 12669.27 | O9: 58.38 | P9: 3.519241667
C10: 7 | D10: 0 | E10: 0 | F10: 0 | G10: 0 | H10: 0 | I10: 0 | K10: 3.2909 | L10: 90.90821254 | M10: 90.90916212 | N10: 12584.2 | O10: 54.31 | P10: 3.495611111
C11: 9 | D11: 0 | E11: 0 | F11: 0 | G11: 0 | H11: 0 | I11: 0 | K11: 2.9167 | L11: 88.70352393 | M11: 88.70443891 | N11: 12742.76 | O11: 50.62 | P11: 3.539655556
C12: 11 | D12: 0 | E12: 0 | F12: 0 | G12: 0 | H12: 0 | I12: 0 | K12: 2.6172 | L12: 86.89131399 | M12: 86.89243513 | N12: 12476.36 | O12: 47.4 | P12: 3.465655556
C13: 13 | D13: 0 | E13: 0 | F13: 0 | G13: 0 | H13: 0 | I13: 0 | K13: 2.3087 | L13: 84.97675789 | M13: 84.97895374 | N13: 12389.52 | O13: 45.07 | P13: 3.441533333
C14: 16 | D14: 3.737557727 | E14: 83.93911581 | F14: 88.35204953 | G14: 0 | H14: 0 | I14: 0 | K14: 2.0482 | L14: 83.35194998 | M14: 83.35533258 | N14: 12388.54 | O14: 42.56 | P14: 3.441261111
C15: 22 | D15: 2.597994712 | E15: 81.60200418 | F15: 83.09379173 | G15: 0 | H15: 0 | I15: 0 | K15: 1.5171 | L15: 80.01192263 | M15: 80.03280211 | N15: 12257.82 | O15: 38.22 | P15: 3.40495
C16: 33 | D16: 1.459520689 | E16: 77.20721844 | F16: 77.48743968 | G16: 0 | H16: 0 | I16: 0 | K16: 0.7546 | L16: 75.84696429 | M16: 75.86439692 | N16: 11875.71 | O16: 30.3 | P16: 3.298808333
C17: 44 | D17: 0.7072803348 | E17: 73.77944622 | F17: 74.00226634 | G17: 0 | H17: 0 | I17: 0 | K17: 0.4958 | L17: 74.11989823 | M17: 74.21878658 | N17: 11734.03 | O17: 27.06 | P17: 3.259452778
C18: 55 | D18: 0.4531446649 | E18: 71.23734061 | F18: 71.79357382 | G18: 0 | H18: 0 | I18: 0 | K18: 0.3925 | L18: 73.16626553 | M18: 73.37042932 | N18: 11623.85 | O18: 25.68 | P18: 3.228847222
C19: 66 | D19: 0.3137122355 | E19: 68.24285822 | F19: 69.34647738 | G19: 0 | H19: 0 | I19: 0 | K19: 0.3279 | L19: 72.42519017 | M19: 72.71956431 | N19: 11571.15 | O19: 24.91 | P19: 3.214208333
C20: 77 | D20: 0.240639328 | E20: 65.1096037 | F20: 67.149941 | G20: 0 | H20: 0 | I20: 0 | K20: 0.2808 | L20: 71.77379229 | M20: 72.14945893 | N20: 11554.78 | O20: 24.57 | P20: 3.209661111
C21: 88 | D21: 0.2073875587 | E21: 62.64288281 | F21: 65.54105945 | G21: 0 | H21: 0 | I21: 0 | K21: 0.2522 | L21: 71.30731931 | M21: 71.74124006 | N21: 11543.6 | O21: 23.8 | P21: 3.206555556
C22: 99 | D22: 0.1975614195 | E22: 60.32067171 | F22: 64.77834376 | G22: 0 | H22: 0 | I22: 0 | K22: 0.2236 | L22: 70.75832543 | M22: 71.26409006 | N22: 11479.74 | O22: 23.53 | P22: 3.188816667
C23: 110 | D23: 0.1914126528 | E23: 57.46109075 | F23: 64.19579013 | G23: 0 | H23: 0 | I23: 0 | K23: 0.2 | L23: 70.24452624 | M23: 70.8191649 | N23: 11423.61 | O23: 22.98 | P23: 3.173225
B24: sub-R1124J_ses-1_task-FR3_acq-monopolar_ieeg.dat | C24: 1 | D24: 0 | E24: 0 | F24: 0 | G24: 0 | H24: 0 | I24: 0 | K24: 6.0264 | L24: 0 | M24: 0 | N24: 18788.39 | O24: 66.26 | P24: 5.218997222 | V24: =($K24/$D24-1) -> 
C25: 1.125 | D25: 0 | E25: 0 | F25: 0 | G25: 0 | H25: 0 | I25: 0 | K25: 6.8959 | L25: 124.6790198 | M25: 124.6801653 | N25: 16964.72 | O25: 91.14 | P25: 4.712422222 | T25: =bdrate($D25:$D44,E25:E44,$K25:$K44,L25:L44) -> -0.568849345 | U25: =bdrate($D25:$D44,F25:F44,$K25:$K44,M25:M44) -> -0.5397979673
C26: 1.5 | D26: 0 | E26: 0 | F26: 0 | G26: 0 | H26: 0 | I26: 0 | K26: 6.2938 | L26: 102.0908614 | M26: 102.0908866 | N26: 16114.35 | O26: 93.75 | P26: 4.476208333
C27: 2 | D27: 0 | E27: 0 | F27: 0 | G27: 0 | H27: 0 | I27: 0 | K27: 5.8567 | L27: 99.85055878 | M27: 99.85057054 | N27: 15910.34 | O27: 87.57 | P27: 4.419538889
C28: 3 | D28: 0 | E28: 0 | F28: 0 | G28: 0 | H28: 0 | I28: 0 | K28: 5.4281 | L28: 97.92320257 | M28: 97.92329498 | N28: 15709.93 | O28: 69.99 | P28: 4.363869444
C29: 4 | D29: 0 | E29: 0 | F29: 0 | G29: 0 | H29: 0 | I29: 0 | K29: 4.8519 | L29: 94.57926468 | M29: 94.57929937 | N29: 15616.71 | O29: 81.86 | P29: 4.337975
C30: 5.5 | D30: 0 | E30: 0 | F30: 0 | G30: 0 | H30: 0 | I30: 0 | K30: 4.3808 | L30: 91.93707758 | M30: 91.93717267 | N30: 15498.78 | O30: 78.77 | P30: 4.305216667
C31: 7 | D31: 0 | E31: 0 | F31: 0 | G31: 0 | H31: 0 | I31: 0 | K31: 4.0458 | L31: 90.01763091 | M31: 90.01773873 | N31: 15404.53 | O31: 74.84 | P31: 4.279036111
C32: 9 | D32: 0 | E32: 0 | F32: 0 | G32: 0 | H32: 0 | I32: 0 | K32: 3.7639 | L32: 88.34525007 | M32: 88.34584384 | N32: 15306.12 | O32: 68.17 | P32: 4.2517
C33: 11 | D33: 0 | E33: 0 | F33: 0 | G33: 0 | H33: 0 | I33: 0 | K33: 3.4944 | L33: 86.7239177 | M33: 86.7247325 | N33: 15212.49 | O33: 63.68 | P33: 4.225691667
C34: 13 | D34: 0 | E34: 0 | F34: 0 | G34: 0 | H34: 0 | I34: 0 | K34: 3.2091 | L34: 85.06222902 | M34: 85.0634467 | N34: 15175.93 | O34: 59.04 | P34: 4.215536111
C35: 16 | D35: 5.497967934 | E35: 80.60937681 | F35: 83.88351621 | G35: 0 | H35: 0 | I35: 0 | K35: 2.9524 | L35: 83.56279098 | M35: 83.56376063 | N35: 15081.64 | O35: 56.1 | P35: 4.189344444
C36: 22 | D36: 4.938451414 | E36: 79.86123939 | F36: 81.80873902 | G36: 0 | H36: 0 | I36: 0 | K36: 2.4174 | L36: 80.35842121 | M36: 80.35880344 | N36: 15024.9 | O36: 58.49 | P36: 4.173583333
C37: 33 | D37: 3.750151211 | E37: 76.77093494 | F37: 77.28642413 | G37: 0 | H37: 0 | I37: 0 | K37: 1.8134 | L37: 76.63957819 | M37: 76.64020671 | N37: 14861.56 | O37: 57.98 | P37: 4.128211111
C38: 44 | D38: 2.558872731 | E38: 71.68121855 | F38: 71.7489067 | G38: 0 | H38: 0 | I38: 0 | K38: 1.3379 | L38: 73.67614877 | M38: 73.67699367 | N38: 14876.3 | O38: 61.17 | P38: 4.132305556
C39: 55 | D39: 1.454792012 | E39: 66.12534555 | F39: 66.1591351 | G39: 0 | H39: 0 | I39: 0 | K39: 1.0809 | L39: 71.97873143 | M39: 71.98028045 | N39: 15025.67 | O39: 56.9 | P39: 4.173797222
C40: 66 | D40: 0.730620706 | E40: 61.98703866 | F40: 62.19775006 | G40: 0 | H40: 0 | I40: 0 | K40: 0.8996 | L40: 70.57272886 | M40: 70.57681895 | N40: 14733.7 | O40: 54.1 | P40: 4.092694444
C41: 77 | D41: 0.4439207287 | E41: 58.86842461 | F41: 59.28440109 | G41: 0 | H41: 0 | I41: 0 | K41: 0.765 | L41: 69.31489453 | M41: 69.32529773 | N41: 14687.14 | O41: 52.96 | P41: 4.079761111
C42: 88 | D42: 0.3129055895 | E42: 55.80155278 | F42: 56.49098344 | G42: 0 | H42: 0 | I42: 0 | K42: 0.7388 | L42: 68.88375725 | M42: 68.90034188 | N42: 14632.86 | O42: 55.5 | P42: 4.064683333
C43: 99 | D43: 0.2365907445 | E43: 52.56546855 | F43: 53.7929378 | G43: 0 | H43: 0 | I43: 0 | K43: 0.6305 | L43: 67.70697424 | M43: 67.73143064 | N43: 14595.69 | O43: 51.99 | P43: 4.054358333
C44: 110 | D44: 0.2137140303 | E44: 50.41434327 | F44: 52.34192577 | G44: 0 | H44: 0 | I44: 0 | K44: 0.5605 | L44: 66.77519761 | M44: 66.81068032 | N44: 14593.8 | O44: 51.02 | P44: 4.053833333
B45: sub-R1145J_ses-0_task-FR3_acq-monopolar_ieeg.dat | C45: 1 | D45: 0 | E45: 0 | F45: 0 | G45: 0 | H45: 0 | I45: 0 | K45: 5.9484 | L45: 0 | M45: 0 | N45: 32906.07 | O45: 116.39 | P45: 9.140575 | V45: =($K45/$D45-1) -> 
C46: 1.125 | D46: 0 | E46: 0 | F46: 0 | G46: 0 | H46: 0 | I46: 0 | K46: 6.8584 | L46: 128.3454762 | M46: 128.3472924 | N46: 29809.92 | O46: 158.01 | P46: 8.280533333 | T46: =bdrate($D46:$D65,E46:E65,$K46:$K65,L46:L65) -> -0.6052556754 | U46: =bdrate($D46:$D65,F46:F65,$K46:$K65,M46:M65) -> -0.5998338581
C47: 1.5 | D47: 0 | E47: 0 | F47: 0 | G47: 0 | H47: 0 | I47: 0 | K47: 6.3885 | L47: 102.8875171 | M47: 102.8875783 | N47: 28286.36 | O47: 199.19 | P47: 7.857322222
C48: 2 | D48: 0 | E48: 0 | F48: 0 | G48: 0 | H48: 0 | I48: 0 | K48: 5.8643 | L48: 100.1030137 | M48: 100.1030231 | N48: 27930.47 | O48: 167.66 | P48: 7.758463889
C49: 3 | D49: 0 | E49: 0 | F49: 0 | G49: 0 | H49: 0 | I49: 0 | K49: 5.3754 | L49: 98.09237982 | M49: 98.09253965 | N49: 27619.87 | O49: 120.44 | P49: 7.672186111
C50: 4 | D50: 0 | E50: 0 | F50: 0 | G50: 0 | H50: 0 | I50: 0 | K50: 4.912 | L50: 95.34282417 | M50: 95.34316683 | N50: 27383.56 | O50: 145.32 | P50: 7.606544444
C51: 5.5 | D51: 0 | E51: 0 | F51: 0 | G51: 0 | H51: 0 | I51: 0 | K51: 4.4418 | L51: 92.73575858 | M51: 92.73690263 | N51: 27198.99 | O51: 131.74 | P51: 7.555275
C52: 7 | D52: 0 | E52: 0 | F52: 0 | G52: 0 | H52: 0 | I52: 0 | K52: 4.0924 | L52: 90.76364374 | M52: 90.76458649 | N52: 26964.88 | O52: 122.38 | P52: 7.490244444
C53: 9 | D53: 0 | E53: 0 | F53: 0 | G53: 0 | H53: 0 | I53: 0 | K53: 3.743 | L53: 88.71909967 | M53: 88.72023156 | N53: 26837.74 | O53: 113.15 | P53: 7.454927778
C54: 11 | D54: 0 | E54: 0 | F54: 0 | G54: 0 | H54: 0 | I54: 0 | K54: 3.4531 | L54: 86.95405174 | M54: 86.95512703 | N54: 26693.86 | O54: 107.31 | P54: 7.414961111
C55: 13 | D55: 0 | E55: 0 | F55: 0 | G55: 0 | H55: 0 | I55: 0 | K55: 3.1443 | L55: 85.14078959 | M55: 85.14207635 | N55: 26524.65 | O55: 100.72 | P55: 7.367958333
C56: 16 | D56: 5.591444442 | E56: 79.19455328 | F56: 79.83011834 | G56: 0 | H56: 0 | I56: 0 | K56: 2.8865 | L56: 83.62730821 | M56: 83.62827921 | N56: 26507.14 | O56: 96.93 | P56: 7.363094444
C57: 22 | D57: 5.028827693 | E57: 78.65695293 | F57: 79.13949718 | G57: 0 | H57: 0 | I57: 0 | K57: 2.3933 | L57: 80.64225712 | M57: 80.64312328 | N57: 26366.1 | O57: 91.6 | P57: 7.323916667
C58: 33 | D58: 3.809193046 | E58: 76.12065879 | F58: 76.30637674 | G58: 0 | H58: 0 | I58: 0 | K58: 1.7693 | L58: 76.76123426 | M58: 76.76496825 | N58: 26118.32 | O58: 83.68 | P58: 7.255088889
C59: 44 | D59: 2.590179516 | E59: 71.48849367 | F59: 71.5223713 | G59: 0 | H59: 0 | I59: 0 | K59: 1.2423 | L59: 73.49370351 | M59: 73.50198853 | N59: 25940.34 | O59: 80.19 | P59: 7.20565
C60: 55 | D60: 1.494678364 | E60: 66.13693017 | F60: 66.15192988 | G60: 0 | H60: 0 | I60: 0 | K60: 0.9414 | L60: 71.53539844 | M60: 71.54061673 | N60: 26016.55 | O60: 81.37 | P60: 7.226819444
C61: 66 | D61: 0.7623500254 | E61: 61.94684061 | F61: 62.13301245 | G61: 0 | H61: 0 | I61: 0 | K61: 0.881 | L61: 70.60322865 | M61: 70.60774905 | N61: 25776.15 | O61: 101.27 | P61: 7.160041667
C62: 77 | D62: 0.4729970387 | E62: 58.72898996 | F62: 58.99806066 | G62: 0 | H62: 0 | I62: 0 | K62: 0.7822 | L62: 69.46266847 | M62: 69.47198702 | N62: 25640.6 | O62: 104.27 | P62: 7.122388889
C63: 88 | D63: 0.3428233249 | E63: 55.74048887 | F63: 56.01690353 | G63: 0 | H63: 0 | I63: 0 | K63: 0.7565 | L63: 69.04516764 | M63: 69.05748057 | N63: 25644.85 | O63: 108.08 | P63: 7.123569444
C64: 99 | D64: 0.2648074914 | E64: 52.35631795 | F64: 52.5882928 | G64: 0 | H64: 0 | I64: 0 | K64: 0.6671 | L64: 67.91086145 | M64: 67.92595528 | N64: 25490.56 | O64: 106.21 | P64: 7.080711111
C65: 110 | D65: 0.2112980276 | E65: 48.66396869 | F65: 49.02306508 | G65: 0 | H65: 0 | I65: 0 | K65: 0.5982 | L65: 66.93390546 | M65: 66.95315689 | N65: 25479.67 | O65: 106.75 | P65: 7.077686111
B66: sub-R1154D_ses-1_task-FR3_acq-bipolar_ieeg.dat | C66: 1 | D66: 0 | E66: 0 | F66: 0 | G66: 0 | H66: 0 | I66: 0 | K66: 5.2047 | L66: 0 | M66: 0 | N66: 15521.11 | O66: 55.36 | P66: 4.311419444 | V66: =($K66/$D66-1) -> 
C67: 1.125 | D67: 0 | E67: 0 | F67: 0 | G67: 0 | H67: 0 | I67: =G67/3600 -> 0 | K67: 5.9571 | L67: 133.856351 | M67: 133.870696 | N67: 14053.78 | O67: 73.9 | P67: =N67/3600 -> 3.903827778 | Q67: =N67/G67 ->  | R67: =O67/H67 ->  | T67: =bdrate($D67:$D86,E67:E86,$K67:$K86,L67:L86) -> -0.3751080432 | U67: =bdrate($D67:$D86,F67:F86,$K67:$K86,M67:M86) -> -0.3270054023
C68: 1.5 | D68: 0 | E68: 0 | F68: 0 | G68: 0 | H68: 0 | I68: 0 | K68: 5.1666 | L68: 101.9384427 | M68: 101.938454 | N68: 13386.43 | O68: 71.29 | P68: 3.718452778
C69: 2 | D69: 0 | E69: 0 | F69: 0 | G69: 0 | H69: 0 | I69: 0 | K69: 4.751 | L69: 99.81780521 | M69: 99.81781082 | N69: 13322.04 | O69: 68.99 | P69: 3.700566667
C70: 3 | D70: 0 | E70: 0 | F70: 0 | G70: 0 | H70: 0 | I70: 0 | K70: 4.1491 | L70: 96.75922547 | M70: 96.75922704 | N70: 13101.58 | O70: 64.91 | P70: 3.639327778
C71: 4 | D71: 0 | E71: 0 | F71: 0 | G71: 0 | H71: 0 | I71: 0 | K71: 3.7434 | L71: 94.44358093 | M71: 94.44358907 | N71: 13045.65 | O71: 63.92 | P71: 3.623791667
C72: 5.5 | D72: 0 | E72: 0 | F72: 0 | G72: 0 | H72: 0 | I72: 0 | K72: 3.2982 | L72: 91.73878863 | M72: 91.73879503 | N72: 12943.95 | O72: 60.69 | P72: 3.595541667
C73: 7 | D73: 0 | E73: 0 | F73: 0 | G73: 0 | H73: 0 | I73: 0 | K73: 2.9778 | L73: 89.72210216 | M73: 89.72210946 | N73: 12903.76 | O73: 59.67 | P73: 3.584377778
C74: 9 | D74: 0 | E74: 0 | F74: 0 | G74: 0 | H74: 0 | I74: 0 | K74: 2.6647 | L74: 87.67923652 | M74: 87.67924453 | N74: 12801.4 | O74: 58.28 | P74: 3.555944444
C75: 11 | D75: 0 | E75: 0 | F75: 0 | G75: 0 | H75: 0 | I75: 0 | K75: 2.384 | L75: 85.82366187 | M75: 85.82367542 | N75: 12774.48 | O75: 57.45 | P75: 3.548466667
C76: 13 | D76: 0 | E76: 0 | F76: 0 | G76: 0 | H76: 0 | I76: 0 | K76: 2.1441 | L76: 84.14129984 | M76: 84.1413352 | N76: 12718.23 | O76: 56.27 | P76: 3.532841667
C77: 16 | D77: 3.75413758 | E77: 81.5875692 | F77: 85.42714886 | G77: 0 | H77: 0 | I77: 0 | K77: 1.9381 | L77: 82.6542776 | M77: 82.65438293 | N77: 12740.25 | O77: 55.29 | P77: 3.538958333
C78: 22 | D78: 2.713552607 | E78: 80.19446236 | F78: 81.94565192 | G78: 0 | H78: 0 | I78: 0 | K78: 1.5528 | L78: 79.90874953 | M78: 79.9093051 | N78: 12586.86 | O78: 52.65 | P78: 3.49635
C79: 33 | D79: 1.525978359 | E79: 76.7034844 | F79: 77.11571178 | G79: 0 | H79: 0 | I79: 0 | K79: 0.8612 | L79: 76.12971758 | M79: 76.15300743 | N79: 12428.27 | O79: 27.85 | P79: 3.452297222
C80: 44 | D80: 0.8353849132 | E80: 73.8521803 | F80: 74.15416714 | G80: 0 | H80: 0 | I80: 0 | K80: 0.6746 | L80: 74.91434022 | M80: 74.96537601 | N80: 12112.05 | O80: 25.62 | P80: 3.364458333
C81: 55 | D81: 0.5096712933 | E81: 70.65367008 | F81: 71.45403755 | G81: 0 | H81: 0 | I81: 0 | K81: 0.5746 | L81: 74.02175701 | M81: 74.13300147 | N81: 11962.86 | O81: 24.65 | P81: 3.323016667
C82: 66 | D82: 0.3175950766 | E82: 67.65810564 | F82: 68.70873771 | G82: 0 | H82: 0 | I82: 0 | K82: 0.4977 | L82: 73.18931153 | M82: 73.38629342 | N82: 11883.4 | O82: 23.88 | P82: 3.300944444
C83: 77 | D83: 0.2431358528 | E83: 65.12474077 | F83: 66.29887242 | G83: 0 | H83: 0 | I83: 0 | K83: 0.4325 | L83: 72.35914535 | M83: 72.67657665 | N83: 11903.19 | O83: 23.45 | P83: 3.306441667
C84: 88 | D84: 0.2122476264 | E84: 62.59736002 | F84: 64.17374118 | G84: 0 | H84: 0 | I84: 0 | K84: 0.3855 | L84: 71.67992045 | M84: 72.13890052 | N84: 11801.79 | O84: 22.92 | P84: 3.278275
C85: 99 | D85: 0.1994954262 | E85: 59.99952123 | F85: 61.72834024 | G85: 0 | H85: 0 | I85: 0 | K85: 0.3206 | L85: 70.70896693 | M85: 71.44808322 | N85: 11785.5 | O85: 22.47 | P85: 3.27375
C86: 110 | D86: 0.193402635 | E86: 57.28169979 | F86: 59.11586387 | G86: 0 | H86: 0 | I86: 0 | K86: 0.2696 | L86: 69.91616287 | M86: 70.85423703 | N86: 11765.46 | O86: 21.75 | P86: 3.268183333
B87: sub-R1154D_ses-1_task-FR3_acq-monopolar_ieeg.dat | C87: 1 | D87: 0 | E87: 0 | F87: 0 | G87: 0 | H87: 0 | I87: 0 | K87: 5.9196 | L87: 0 | M87: 0 | N87: 8189.38 | O87: 42.07 | P87: 2.274827778 | V87: =($K87/$D87-1) -> 
C88: 1.125 | D88: 0 | E88: 0 | F88: 0 | G88: 0 | H88: 0 | I88: 0 | K88: 6.8299 | L88: 125.9753553 | M88: 125.9983921 | N88: 7100.49 | O88: 54.99 | P88: 1.972358333 | T88: =bdrate($D88:$D107,E88:E107,$K88:$K107,L88:L107) -> -0.4805664871 | U88: =bdrate($D88:$D107,F88:F107,$K88:$K107,M88:M107) -> -0.4703228926
C89: 1.5 | D89: 0 | E89: 0 | F89: 0 | G89: 0 | H89: 0 | I89: 0 | K89: 6.4129 | L89: 102.8097956 | M89: 102.8099406 | N89: 6645.03 | O89: 71.38 | P89: 1.845841667
C90: 2 | D90: 0 | E90: 0 | F90: 0 | G90: 0 | H90: 0 | I90: 0 | K90: 5.8414 | L90: 99.94513272 | M90: 99.94516005 | N90: 6546.1 | O90: 56.08 | P90: 1.818361111
C91: 3 | D91: 0 | E91: 0 | F91: 0 | G91: 0 | H91: 0 | I91: 0 | K91: 5.3483 | L91: 98.13003978 | M91: 98.13008241 | N91: 6398.32 | O91: 40.38 | P91: 1.777311111
C92: 4 | D92: 0 | E92: 0 | F92: 0 | G92: 0 | H92: 0 | I92: 0 | K92: 4.8246 | L92: 94.63407556 | M92: 94.63438937 | N92: 6370.27 | O92: 50.63 | P92: 1.769519444
C93: 5.5 | D93: 0 | E93: 0 | F93: 0 | G93: 0 | H93: 0 | I93: 0 | K93: 4.3385 | L93: 91.93599328 | M93: 91.93666226 | N93: 6280.01 | O93: 47.24 | P93: 1.744447222
C94: 7 | D94: 0 | E94: 0 | F94: 0 | G94: 0 | H94: 0 | I94: 0 | K94: 3.9884 | L94: 89.94202196 | M94: 89.94233923 | N94: 6234.42 | O94: 45.76 | P94: 1.731783333
C95: 9 | D95: 0 | E95: 0 | F95: 0 | G95: 0 | H95: 0 | I95: 0 | K95: 3.6527 | L95: 87.89482369 | M95: 87.89530662 | N95: 6166.48 | O95: 43.47 | P95: 1.712911111
C96: 11 | D96: 0 | E96: 0 | F96: 0 | G96: 0 | H96: 0 | I96: 0 | K96: 3.3331 | L96: 86.01453421 | M96: 86.01480478 | N96: 6423.17 | O96: 42.89 | P96: 1.784213889
C97: 13 | D97: 0 | E97: 0 | F97: 0 | G97: 0 | H97: 0 | I97: 0 | K97: 3.0521 | L97: 84.3129099 | M97: 84.31332244 | N97: 6099.27 | O97: 41.57 | P97: 1.694241667
C98: 16 | D98: 5.052008129 | E98: 76.81151436 | F98: 77.56823701 | G98: 0 | H98: 0 | I98: 0 | K98: 2.7891 | L98: 82.7866547 | M98: 82.78686343 | N98: 6058.52 | O98: 41.54 | P98: 1.682922222
C99: 22 | D99: 3.838364599 | E99: 76.29433549 | F99: 76.90827657 | G99: 0 | H99: 0 | I99: 0 | K99: 2.3002 | L99: 79.89999973 | M99: 79.90005138 | N99: 5989.3 | O99: 41.34 | P99: 1.663694444
C100: 33 | D100: 2.692071052 | E100: 74.63302678 | F100: 74.94179353 | G100: 0 | H100: 0 | I100: 0 | K100: 1.7388 | L100: 76.45460072 | M100: 76.45481001 | N100: 5913.91 | O100: 39.6 | P100: 1.642752778
C101: 44 | D101: 1.544757943 | E101: 70.96700706 | F101: 71.03653126 | G101: 0 | H101: 0 | I101: 0 | K101: 1.2187 | L101: 73.40543369 | M101: 73.40756458 | N101: 5847.81 | O101: 34.91 | P101: 1.624391667
C102: 55 | D102: 0.8670606569 | E102: 67.73721624 | F102: 67.85542449 | G102: 0 | H102: 0 | I102: 0 | K102: 0.9248 | L102: 71.57284455 | M102: 71.57826112 | N102: 5810.2 | O102: 29.49 | P102: 1.613944444
C103: 66 | D103: 0.5469146445 | E103: 64.81710598 | F103: 65.00340277 | G103: 0 | H103: 0 | I103: 0 | K103: 0.726 | L103: 70.21239883 | M103: 70.22829541 | N103: 5749.59 | O103: 25.37 | P103: 1.597108333
C104: 77 | D104: 0.3665318159 | E104: 61.52434132 | F104: 61.73095533 | G104: 0 | H104: 0 | I104: 0 | K104: 0.5738 | L104: 69.10284255 | M104: 69.14876736 | N104: 5721.78 | O104: 20.68 | P104: 1.589383333
C105: 88 | D105: 0.2668940623 | E105: 58.29919748 | F105: 58.51106096 | G105: 0 | H105: 0 | I105: 0 | K105: 0.4993 | L105: 68.42438816 | M105: 68.50194894 | N105: 5685.45 | O105: 18.44 | P105: 1.579291667
C106: 99 | D106: 0.22610087 | E106: 55.55644334 | F106: 55.79153705 | G106: 0 | H106: 0 | I106: 0 | K106: 0.4442 | L106: 67.75615101 | M106: 67.87190661 | N106: 5645.34 | O106: 18.29 | P106: 1.56815
C107: 110 | D107: 0.2087297162 | E107: 52.37430307 | F107: 52.95516091 | G107: 0 | H107: 0 | I107: 0 | K107: 0.4027 | L107: 67.16331968 | M107: 67.315198 | N107: 5614.55 | O107: 18.51 | P107: 1.559597222
B108: sub-R1154D_ses-3_task-FR3_acq-bipolar_ieeg.dat | C108: 1 | D108: 0 | E108: 0 | F108: 0 | G108: 0 | H108: 0 | I108: 0 | K108: 5.3317 | L108: 0 | M108: 0 | N108: 18373.31 | O108: 67.75 | P108: 5.103697222 | V108: =($K108/$D108-1) -> 
C109: 1.125 | D109: 0 | E109: 0 | F109: 0 | G109: 0 | H109: 0 | I109: 0 | K109: 6.0732 | L109: 134.433177 | M109: 134.4429362 | N109: 16607.61 | O109: 89.09 | P109: 4.613225 | T109: =bdrate($D109:$D128,E109:E128,$K109:$K128,L109:L128) -> -0.3622224279 | U109: =bdrate($D109:$D128,F109:F128,$K109:$K128,M109:M128) -> -0.3038113556
C110: 1.5 | D110: 0 | E110: 0 | F110: 0 | G110: 0 | H110: 0 | I110: 0 | K110: 5.2943 | L110: 101.9318027 | M110: 101.9318113 | N110: 15877.19 | O110: 85.59 | P110: 4.410330556
C111: 2 | D111: 0 | E111: 0 | F111: 0 | G111: 0 | H111: 0 | I111: 0 | K111: 4.8769 | L111: 99.81018457 | M111: 99.81019082 | N111: 15661.66 | O111: 83.49 | P111: 4.350461111
C112: 3 | D112: 0 | E112: 0 | F112: 0 | G112: 0 | H112: 0 | I112: 0 | K112: 4.2804 | L112: 96.74647927 | M112: 96.74648084 | N112: 15430.21 | O112: 79.17 | P112: 4.286169444
C113: 4 | D113: 0 | E113: 0 | F113: 0 | G113: 0 | H113: 0 | I113: 0 | K113: 3.8703 | L113: 94.4338331 | M113: 94.43383938 | N113: 15439.75 | O113: 77.93 | P113: 4.288819444
C114: 5.5 | D114: 0 | E114: 0 | F114: 0 | G114: 0 | H114: 0 | I114: 0 | K114: 3.4255 | L114: 91.72841271 | M114: 91.72841956 | N114: 15316.83 | O114: 75.08 | P114: 4.254675
C115: 7 | D115: 0 | E115: 0 | F115: 0 | G115: 0 | H115: 0 | I115: 0 | K115: 3.102 | L115: 89.71050809 | M115: 89.71051528 | N115: 15234.83 | O115: 72.82 | P115: 4.231897222
C116: 9 | D116: 0 | E116: 0 | F116: 0 | G116: 0 | H116: 0 | I116: 0 | K116: 2.7835 | L116: 87.67039901 | M116: 87.67040659 | N116: 15153.23 | O116: 71.84 | P116: 4.209230556
C117: 11 | D117: 0 | E117: 0 | F117: 0 | G117: 0 | H117: 0 | I117: 0 | K117: 2.5006 | L117: 85.81315591 | M117: 85.81316748 | N117: 15088.97 | O117: 70.37 | P117: 4.191380556
C118: 13 | D118: 0 | E118: 0 | F118: 0 | G118: 0 | H118: 0 | I118: 0 | K118: 2.2587 | L118: 84.13404006 | M118: 84.13407014 | N118: 15063.92 | O118: 68.7 | P118: 4.184422222
C119: 16 | D119: 3.813320269 | E119: 80.84379605 | F119: 85.46920941 | G119: 0 | H119: 0 | I119: 0 | K119: 2.049 | L119: 82.64697443 | M119: 82.64706195 | N119: 14943.79 | O119: 67.4 | P119: 4.151052778
C120: 22 | D120: 2.781445543 | E120: 79.65784589 | F120: 81.83734154 | G120: 0 | H120: 0 | I120: 0 | K120: 1.6584 | L120: 79.9021579 | M120: 79.9026772 | N120: 14890.18 | O120: 64.81 | P120: 4.136161111
C121: 33 | D121: 1.651305476 | E121: 76.4892925 | F121: 77.0439267 | G121: 0 | H121: 0 | I121: 0 | K121: 0.9616 | L121: 76.00029617 | M121: 76.02872238 | N121: 14646.27 | O121: 34.52 | P121: 4.068408333
C122: 44 | D122: 0.9161436419 | E122: 73.61834405 | F122: 73.99242661 | G122: 0 | H122: 0 | I122: 0 | K122: 0.7585 | L122: 74.72550783 | M122: 74.77908651 | N122: 14685.99 | O122: 32.59 | P122: 4.079441667
C123: 55 | D123: 0.5873152035 | E123: 70.59847952 | F123: 71.32457662 | G123: 0 | H123: 0 | I123: 0 | K123: 0.6508 | L123: 73.81988097 | M123: 73.93082399 | N123: 14022.98 | O123: 30.38 | P123: 3.895272222
C124: 66 | D124: 0.3484039576 | E124: 66.75240075 | F124: 68.29929837 | G124: 0 | H124: 0 | I124: 0 | K124: 0.5702 | L124: 73.00263166 | M124: 73.18381097 | N124: 13886.69 | O124: 29.55 | P124: 3.857413889
C125: 77 | D125: 0.2505265225 | E125: 64.21923852 | F125: 65.8712956 | G125: 0 | H125: 0 | I125: 0 | K125: 0.5052 | L125: 72.24403108 | M125: 72.51114879 | N125: 13827.94 | O125: 28.94 | P125: 3.841094444
C126: 88 | D126: 0.2142596813 | E126: 61.81440628 | F126: 63.88751893 | G126: 0 | H126: 0 | I126: 0 | K126: 0.4661 | L126: 71.69823784 | M126: 72.0217681 | N126: 13900.03 | O126: 28.48 | P126: 3.861119444
C127: 99 | D127: 0.1984074318 | E127: 59.11449738 | F127: 61.58930106 | G127: 0 | H127: 0 | I127: 0 | K127: 0.4171 | L127: 70.96867402 | M127: 71.40018508 | N127: 13789.06 | O127: 27.86 | P127: 3.830294444
C128: 110 | D128: 0.1904943179 | E128: 56.30812668 | F128: 59.1133952 | G128: 0 | H128: 0 | I128: 0 | K128: 0.3738 | L128: 70.268236 | M128: 70.81634431 | N128: 13768.76 | O128: 27.32 | P128: 3.824655556
B129: sub-R1154D_ses-4_task-FR3_acq-bipolar_ieeg.dat | C129: 1 | D129: 0 | E129: 0 | F129: 0 | G129: 0 | H129: 0 | I129: 0 | K129: 5.2223 | L129: 0 | M129: 0 | N129: 16279.49 | O129: 58.4 | P129: 4.522080556 | V129: =($K129/$D129-1) -> 
C130: 1.125 | D130: 0 | E130: 0 | F130: 0 | G130: 0 | H130: 0 | I130: 0 | K130: 5.9361 | L130: 137.4107112 | M130: 137.4368391 | N130: 14726.26 | O130: 78.73 | P130: 4.090627778 | T130: =bdrate($D130:$D149,E130:E149,$K130:$K149,L130:L149) -> -0.3511731955 | U130: =bdrate($D130:$D149,F130:F149,$K130:$K149,M130:M149) -> -0.3122212393
C131: 1.5 | D131: 0 | E131: 0 | F131: 0 | G131: 0 | H131: 0 | I131: =G131/3600 -> 0 | K131: 5.1321 | L131: 101.9073707 | M131: 101.907375 | N131: 14054.68 | O131: 75.6 | P131: =N131/3600 -> 3.904077778 | Q131: =N131/G131 ->  | R131: =O131/H131 -> 
C132: 2 | D132: 0 | E132: 0 | F132: 0 | G132: 0 | H132: 0 | I132: 0 | K132: 4.7174 | L132: 99.80053573 | M132: 99.80053764 | N132: 13969.21 | O132: 73.94 | P132: 3.880336111
C133: 3 | D133: 0 | E133: 0 | F133: 0 | G133: 0 | H133: 0 | I133: 0 | K133: 4.1169 | L133: 96.73000103 | M133: 96.73000252 | N133: 13745.34 | O133: 69.98 | P133: 3.81815
C134: 4 | D134: 0 | E134: 0 | F134: 0 | G134: 0 | H134: 0 | I134: 0 | K134: 3.7146 | L134: 94.42677746 | M134: 94.42678088 | N134: 13722.62 | O134: 68.85 | P134: 3.811838889
C135: 5.5 | D135: 0 | E135: 0 | F135: 0 | G135: 0 | H135: 0 | I135: 0 | K135: 3.269 | L135: 91.72038799 | M135: 91.72039249 | N135: 13641.91 | O135: 66.26 | P135: 3.789419444
C136: 7 | D136: 0 | E136: 0 | F136: 0 | G136: 0 | H136: 0 | I136: 0 | K136: 2.9518 | L136: 89.70351185 | M136: 89.70351793 | N136: 13527.59 | O136: 64.28 | P136: 3.757663889
C137: 9 | D137: 0 | E137: 0 | F137: 0 | G137: 0 | H137: 0 | I137: 0 | K137: 2.6402 | L137: 87.66407423 | M137: 87.6640827 | N137: 13455.31 | O137: 63.58 | P137: 3.737586111
C138: 11 | D138: 0 | E138: 0 | F138: 0 | G138: 0 | H138: 0 | I138: 0 | K138: 2.3614 | L138: 85.80818518 | M138: 85.80820064 | N138: 13394.74 | O138: 62.36 | P138: 3.720761111
C139: 13 | D139: 0 | E139: 0 | F139: 0 | G139: 0 | H139: 0 | I139: 0 | K139: 2.1261 | L139: 84.13116849 | M139: 84.13121146 | N139: 13331.6 | O139: 60.95 | P139: 3.703222222
C140: 16 | D140: 3.771468782 | E140: 82.09874203 | F140: 85.81887573 | G140: 0 | H140: 0 | I140: 0 | K140: 1.9232 | L140: 82.64862077 | M140: 82.64873729 | N140: 13332.54 | O140: 59.82 | P140: 3.703483333
C141: 22 | D141: 2.719755051 | E141: 80.54456709 | F141: 82.08984583 | G141: 0 | H141: 0 | I141: 0 | K141: 1.5494 | L141: 79.93093874 | M141: 79.93163092 | N141: 13207.55 | O141: 58.01 | P141: 3.668763889
C142: 33 | D142: 1.527350117 | E142: 76.83570831 | F142: 77.17565156 | G142: 0 | H142: 0 | I142: 0 | K142: 0.8787 | L142: 76.07984991 | M142: 76.1034591 | N142: 13028.09 | O142: 29.24 | P142: 3.618913889
C143: 44 | D143: 0.8282495423 | E143: 73.89326075 | F143: 74.17211545 | G143: 0 | H143: 0 | I143: 0 | K143: 0.6885 | L143: 74.85795529 | M143: 74.900255 | N143: 12774.46 | O143: 27.32 | P143: 3.548461111
C144: 55 | D144: 0.4951251578 | E144: 70.65820196 | F144: 71.40694777 | G144: 0 | H144: 0 | I144: 0 | K144: 0.5858 | L144: 73.95940399 | M144: 74.05157839 | N144: 12601.96 | O144: 25.94 | P144: 3.500544444
C145: 66 | D145: 0.3042152027 | E145: 67.71934646 | F145: 68.57139424 | G145: 0 | H145: 0 | I145: 0 | K145: 0.5063 | L145: 73.12675235 | M145: 73.29212988 | N145: 12453.22 | O145: 24.93 | P145: 3.459227778
C146: 77 | D146: 0.2310188868 | E146: 65.25780919 | F146: 66.1965021 | G146: 0 | H146: 0 | I146: 0 | K146: 0.4398 | L146: 72.32180182 | M146: 72.59528794 | N146: 12466.2 | O146: 24.37 | P146: 3.462833333
C147: 88 | D147: 0.2030465859 | E147: 62.92508802 | F147: 64.28424445 | G147: 0 | H147: 0 | I147: 0 | K147: 0.3891 | L147: 71.62696876 | M147: 72.06187561 | N147: 12418.3 | O147: 24.1 | P147: 3.449527778
C148: 99 | D148: 0.1920827335 | E148: 60.49175519 | F148: 62.14873807 | G148: 0 | H148: 0 | I148: 0 | K148: 0.3196 | L148: 70.64830181 | M148: 71.38691075 | N148: 12410.76 | O148: 23.55 | P148: 3.447433333
C149: 110 | D149: 0.187211257 | E149: 58.01117568 | F149: 59.75528003 | G149: 0 | H149: 0 | I149: 0 | K149: 0.274 | L149: 69.97781959 | M149: 70.83272628 | N149: 12393.59 | O149: 22.89 | P149: 3.442663889
B150: sub-R1154D_ses-4_task-FR3_acq-monopolar_ieeg.dat | C150: 1 | D150: 0 | E150: 0 | F150: 0 | G150: 0 | H150: 0 | I150: 0 | K150: 5.9217 | L150: 0 | M150: 0 | N150: 8581.99 | O150: 43.71 | P150: 2.383886111 | V150: =($K150/$D150-1) -> 
C151: 1.125 | D151: 0 | E151: 0 | F151: 0 | G151: 0 | H151: 0 | I151: 0 | K151: 6.8164 | L151: 128.9956762 | M151: 129.0204236 | N151: 7445.2 | O151: 59.66 | P151: 2.068111111 | T151: =bdrate($D151:$D170,E151:E170,$K151:$K170,L151:L170) -> -0.3663311361 | U151: =bdrate($D151:$D170,F151:F170,$K151:$K170,M151:M170) -> -0.3612568777
C152: 1.5 | D152: 0 | E152: 0 | F152: 0 | G152: 0 | H152: 0 | I152: 0 | K152: 6.2356 | L152: 101.9437059 | M152: 101.9437092 | N152: 7030.82 | O152: 59.72 | P152: 1.953005556
C153: 2 | D153: 0 | E153: 0 | F153: 0 | G153: 0 | H153: 0 | I153: 0 | K153: 5.8058 | L153: 99.8127529 | M153: 99.81275465 | N153: 6867.58 | O153: 57.15 | P153: 1.907661111
C154: 3 | D154: 0 | E154: 0 | F154: 0 | G154: 0 | H154: 0 | I154: 0 | K154: 5.3613 | L154: 98.12214732 | M154: 98.12218987 | N154: 6737 | O154: 42.7 | P154: 1.871388889
C155: 4 | D155: 0 | E155: 0 | F155: 0 | G155: 0 | H155: 0 | I155: 0 | K155: 4.7866 | L155: 94.44364816 | M155: 94.44365162 | N155: 6687.33 | O155: 53.78 | P155: 1.857591667
C156: 5.5 | D156: 0 | E156: 0 | F156: 0 | G156: 0 | H156: 0 | I156: 0 | K156: 4.2994 | L156: 91.73266107 | M156: 91.73266892 | N156: 6627.83 | O156: 52.71 | P156: 1.841063889
C157: 7 | D157: 0 | E157: 0 | F157: 0 | G157: 0 | H157: 0 | I157: 0 | K157: 3.9457 | L157: 89.71386218 | M157: 89.71386616 | N157: 6557 | O157: 51 | P157: 1.821388889
C158: 9 | D158: 0 | E158: 0 | F158: 0 | G158: 0 | H158: 0 | I158: 0 | K158: 3.6125 | L158: 87.67238943 | M158: 87.6723935 | N158: 6501.63 | O158: 49.34 | P158: 1.806008333
C159: 11 | D159: 0 | E159: 0 | F159: 0 | G159: 0 | H159: 0 | I159: 0 | K159: 3.2918 | L159: 85.81137771 | M159: 85.81138096 | N159: 6462.97 | O159: 47.62 | P159: 1.795269444
C160: 13 | D160: 0 | E160: 0 | F160: 0 | G160: 0 | H160: 0 | I160: 0 | K160: 3.0154 | L160: 84.12699785 | M160: 84.1270017 | N160: 6424.91 | O160: 46.96 | P160: 1.784697222
C161: 16 | D161: 5.035603634 | E161: 79.97051385 | F161: 80.6951017 | G161: 0 | H161: 0 | I161: 0 | K161: 2.7554 | L161: 82.62779773 | M161: 82.62780103 | N161: 6381.6 | O161: 46.48 | P161: 1.772666667
C162: 22 | D162: 3.739169744 | E162: 78.92394126 | F162: 79.3915519 | G162: 0 | H162: 0 | I162: 0 | K162: 2.2745 | L162: 79.81356991 | M162: 79.81357301 | N162: 6319.38 | O162: 45.29 | P162: 1.755383333
C163: 33 | D163: 2.586278365 | E163: 76.2017615 | F163: 76.35264226 | G163: 0 | H163: 0 | I163: 0 | K163: 1.7293 | L163: 76.46576727 | M163: 76.46581433 | N163: 6217.27 | O163: 43.45 | P163: 1.727019444
C164: 44 | D164: 1.433243442 | E164: 71.57060266 | F164: 71.59139191 | G164: 0 | H164: 0 | I164: 0 | K164: 1.2695 | L164: 73.71793155 | M164: 73.7192809 | N164: 6150.41 | O164: 41.72 | P164: 1.708447222
C165: 55 | D165: 0.8023220763 | E165: 68.26995237 | F165: 68.35068647 | G165: 0 | H165: 0 | I165: 0 | K165: 1.054 | L165: 72.34921966 | M165: 72.35455078 | N165: 6069.03 | O165: 40.39 | P165: 1.685841667
C166: 66 | D166: 0.5099945031 | E166: 65.24499116 | F166: 65.35056325 | G166: 0 | H166: 0 | I166: 0 | K166: 0.8671 | L166: 71.09674881 | M166: 71.10998584 | N166: 6060.19 | O166: 38.32 | P166: 1.683386111
C167: 77 | D167: 0.3403523584 | E167: 61.90888579 | F167: 62.03871206 | G167: 0 | H167: 0 | I167: 0 | K167: 0.7197 | L167: 70.04110187 | M167: 70.07040789 | N167: 5989.91 | O167: 36.56 | P167: 1.663863889
C168: 88 | D168: 0.24595066 | E168: 58.62832238 | F168: 58.76508893 | G168: 0 | H168: 0 | I168: 0 | K168: 0.6195 | L168: 69.25872102 | M168: 69.31279902 | N168: 5952.34 | O168: 31.2 | P168: 1.653427778
C169: 99 | D169: 0.2086761792 | E169: 55.95459495 | F169: 56.1428979 | G169: 0 | H169: 0 | I169: 0 | K169: 0.5405 | L169: 68.5550463 | M169: 68.62929837 | N169: 5878.31 | O169: 30.65 | P169: 1.632863889
C170: 110 | D170: 0.1953955762 | E170: 53.33333246 | F170: 53.85095169 | G170: 0 | H170: 0 | I170: 0 | K170: 0.4339 | L170: 67.58898069 | M170: 67.69108963 | N170: 5857.02 | O170: 23.57 | P170: 1.62695
B171: sub-R1161E_ses-0_task-FR3_acq-monopolar_ieeg.dat | C171: 1 | D171: 0 | E171: 0 | F171: 0 | G171: 0 | H171: 0 | I171: 0 | K171: 5.9901 | L171: 0 | M171: 0 | N171: 8191.88 | O171: 47.09 | P171: 2.275522222 | V171: =($K171/$D171-1) -> 
C172: 1.125 | D172: 0 | E172: 0 | F172: 0 | G172: 0 | H172: 0 | I172: 0 | K172: 6.8386 | L172: 125.9696687 | M172: 126.2022545 | N172: 7070.18 | O172: 56.89 | P172: 1.963938889 | T172: =bdrate($D172:$D191,E172:E191,$K172:$K191,L172:L191) -> -0.6195733207 | U172: =bdrate($D172:$D191,F172:F191,$K172:$K191,M172:M191) -> -0.5945839356
C173: 1.5 | D173: 0 | E173: 0 | F173: 0 | G173: 0 | H173: 0 | I173: 0 | K173: 6.3095 | L173: 102.7228682 | M173: 102.9474652 | N173: 6642.91 | O173: 72.89 | P173: 1.845252778
C174: 2 | D174: 0 | E174: 0 | F174: 0 | G174: 0 | H174: 0 | I174: 0 | K174: 5.8367 | L174: 100.2591718 | M174: 100.4981666 | N174: 6520.3 | O174: 63.47 | P174: 1.811194444
C175: 3 | D175: 0 | E175: 0 | F175: 0 | G175: 0 | H175: 0 | I175: 0 | K175: 5.317 | L175: 97.87032952 | M175: 98.10411185 | N175: 6336.76 | O175: 53.9 | P175: 1.760211111
C176: 4 | D176: 0 | E176: 0 | F176: 0 | G176: 0 | H176: 0 | I176: 0 | K176: 4.8202 | L176: 94.96243028 | M176: 95.20074757 | N176: 6299.69 | O176: 54.39 | P176: 1.749913889
C177: 5.5 | D177: 0 | E177: 0 | F177: 0 | G177: 0 | H177: 0 | I177: 0 | K177: 4.3418 | L177: 92.25289306 | M177: 92.50388305 | N177: 6222.15 | O177: 51.22 | P177: 1.728375
C178: 7 | D178: 0 | E178: 0 | F178: 0 | G178: 0 | H178: 0 | I178: 0 | K178: 3.9912 | L178: 90.2287149 | M178: 90.48786136 | N178: 6143.47 | O178: 48.13 | P178: 1.706519444
C179: 9 | D179: 0 | E179: 0 | F179: 0 | G179: 0 | H179: 0 | I179: 0 | K179: 3.6569 | L179: 88.16923392 | M179: 88.4309974 | N179: 6097.22 | O179: 46.24 | P179: 1.693672222
C180: 11 | D180: 0 | E180: 0 | F180: 0 | G180: 0 | H180: 0 | I180: 0 | K180: 3.3548 | L180: 86.33013399 | M180: 86.59192237 | N180: 6041.9 | O180: 44.31 | P180: 1.678305556
C181: 13 | D181: 0 | E181: 0 | F181: 0 | G181: 0 | H181: 0 | I181: 0 | K181: 3.0709 | L181: 84.59202455 | M181: 84.85821663 | N181: 5983.51 | O181: 42.62 | P181: 1.662086111
C182: 16 | D182: 5.003304205 | E182: 74.96894242 | F182: 78.24912144 | G182: 0 | H182: 0 | I182: 0 | K182: 2.8223 | L182: 83.08106212 | M182: 83.34594959 | N182: 6083.85 | O182: 42.93 | P182: 1.689958333
C183: 22 | D183: 4.313809094 | E183: 74.74060924 | F183: 77.41971852 | G183: 0 | H183: 0 | I183: 0 | K183: 2.3473 | L183: 80.19685358 | M183: 80.45847061 | N183: 5903.15 | O183: 40.43 | P183: 1.639763889
C184: 33 | D184: 3.318101154 | E184: 73.6428588 | F184: 74.98789346 | G184: 0 | H184: 0 | I184: 0 | K184: 1.7928 | L184: 76.63792416 | M184: 76.90296821 | N184: 5810.99 | O184: 38.28 | P184: 1.614163889
C185: 44 | D185: 2.206074238 | E185: 70.58024869 | F185: 70.88548734 | G185: 0 | H185: 0 | I185: 0 | K185: 1.3224 | L185: 73.64241031 | M185: 73.91832648 | N185: 5741.41 | O185: 36.02 | P185: 1.594836111
C186: 55 | D186: 1.284290331 | E186: 66.68297386 | F186: 66.80423838 | G186: 0 | H186: 0 | I186: 0 | K186: 1.0509 | L186: 71.83552469 | M186: 72.10913362 | N186: 5705.93 | O186: 34.21 | P186: 1.584980556
C187: 66 | D187: 0.7403905877 | E187: 63.0958639 | F187: 63.24900053 | G187: 0 | H187: 0 | I187: 0 | K187: 0.8388 | L187: 70.29573076 | M187: 70.572401 | N187: 5647.07 | O187: 31.01 | P187: 1.568630556
C188: 77 | D188: 0.4683050447 | E188: 59.86267465 | F188: 60.01374647 | G188: 0 | H188: 0 | I188: 0 | K188: 0.6453 | L188: 68.84509444 | M188: 69.11455783 | N188: 5599.38 | O188: 25.25 | P188: 1.555383333
C189: 88 | D189: 0.3446162881 | E189: 57.09843184 | F189: 57.27134399 | G189: 0 | H189: 0 | I189: 0 | K189: 0.5627 | L189: 68.06135579 | M189: 68.35384733 | N189: 5534.14 | O189: 23.48 | P189: 1.537261111
C190: 99 | D190: 0.2878207251 | E190: 54.48617344 | F190: 54.79029762 | G190: 0 | H190: 0 | I190: 0 | K190: 0.4734 | L190: 67.1549911 | M190: 67.46939863 | N190: 5466.79 | O190: 21.14 | P190: 1.518552778
C191: 110 | D191: 0.2598367114 | E191: 51.60964499 | F191: 52.31202555 | G191: 0 | H191: 0 | I191: 0 | K191: 0.4143 | L191: 66.44287295 | M191: 66.75987163 | N191: 5412.59 | O191: 19.9 | P191: 1.503497222
B192: sub-R1161E_ses-1_task-FR3_acq-bipolar_ieeg.dat | C192: 1 | D192: 0 | E192: 0 | F192: 0 | G192: 0 | H192: 0 | I192: 0 | K192: 5.229 | L192: 0 | M192: 0 | N192: 5538.61 | O192: 33.13 | P192: 1.538502778 | V192: =($K192/$D192-1) -> 
C193: 1.125 | D193: 0 | E193: 0 | F193: 0 | G193: 0 | H193: 0 | I193: 0 | K193: 6.0757 | L193: 122.6165014 | M193: 122.68666 | N193: 4716.23 | O193: 41.89 | P193: 1.310063889 | T193: =bdrate($D193:$D212,E193:E212,$K193:$K212,L193:L212) -> -0.7403600562 | U193: =bdrate($D193:$D212,F193:F212,$K193:$K212,M193:M212) -> -0.5757458453
C194: 1.5 | D194: 0 | E194: 0 | F194: 0 | G194: 0 | H194: 0 | I194: 0 | K194: 5.6004 | L194: 103.2138699 | M194: 103.2146201 | N194: 4397.68 | O194: 50.57 | P194: 1.221577778
C195: 2 | D195: 0 | E195: 0 | F195: 0 | G195: 0 | H195: 0 | I195: =G195/3600 -> 0 | K195: 5.0745 | L195: 100.3572379 | M195: 100.357603 | N195: 4299.1 | O195: 42.72 | P195: =N195/3600 -> 1.194194444 | Q195: =N195/G195 ->  | R195: =O195/H195 -> 
C196: 3 | D196: 0 | E196: 0 | F196: 0 | G196: 0 | H196: 0 | I196: 0 | K196: 4.4887 | L196: 97.61350135 | M196: 97.6138997 | N196: 4212.74 | O196: 34.55 | P196: 1.170205556
C197: 4 | D197: 0 | E197: 0 | F197: 0 | G197: 0 | H197: 0 | I197: 0 | K197: 3.9857 | L197: 94.75797795 | M197: 94.7581878 | N197: 4182.38 | O197: 37.17 | P197: 1.161772222
C198: 5.5 | D198: 0 | E198: 0 | F198: 0 | G198: 0 | H198: 0 | I198: 0 | K198: 3.5632 | L198: 92.26859198 | M198: 92.26916838 | N198: 4143.25 | O198: 34.34 | P198: 1.150902778
C199: 7 | D199: 0 | E199: 0 | F199: 0 | G199: 0 | H199: 0 | I199: 0 | K199: 3.2126 | L199: 90.2203961 | M199: 90.2207236 | N199: 4095.72 | O199: 32.62 | P199: 1.1377
C200: 9 | D200: 0 | E200: 0 | F200: 0 | G200: 0 | H200: 0 | I200: 0 | K200: 2.8731 | L200: 88.19564917 | M200: 88.1961056 | N200: 4053.6 | O200: 30.68 | P200: 1.126
... 437 more rows

Sheet Ozdemir (EMG)
D1: Reference | K1: Tested | T1: BD-rate (piecewise cubic) | V1: Lossless
C2: StepSizeForQP | D2: BPS | E2: PSNR1 | F2: PSNR2 | G2: Enc T [s] | H2: Dec T [s] | I2: Enc T [h] | K2: BPS | L2: PSNR1 | M2: PSNR2 | N2: Enc T [s] | O2: Dec T [s] | P2: Enc T [h] | Q2: EncR | R2: DecR | T2: BD-PSNR1 | U2: BD-PSNR2 | V2: BR-R
A3: Ozdemir | B3: raw_strm1.dat | C3: 1 | D3: 0 | E3: 0 | F3: 0 | G3: 0 | H3: 0 | I3: =G3/3600 -> 0 | K3: 6.3329 | L3: 0 | M3: 0 | N3: 77.89 | O3: 0.66 | P3: =N3/3600 -> 0.02163611111 | Q3: =N3/G3 ->  | R3: =O3/H3 ->  | V3: =($K3/$D3-1) -> 
A4: EMG | C4: 1.5 | D4: 0 | E4: 0 | F4: 0 | G4: 0 | H4: 0 | I4: 0 | K4: 5.8869 | L4: 102.7313261 | M4: 102.7668718 | N4: 78.26 | O4: 1.46 | P4: 0.02173888889 | T4: =bdrate($D4:$D24,E4:E24,$K4:$K24,L4:L24) ->  | U4: =bdrate($D4:$D24,F4:F24,$K4:$K24,M4:M24) -> 
C5: 2 | D5: 0 | E5: 0 | F5: 0 | G5: 0 | H5: 0 | I5: 0 | K5: 5.3896 | L5: 100.1132817 | M5: 100.1135674 | N5: 77.29 | O5: 1.04 | P5: 0.02146944444
C6: 3 | D6: 0 | E6: 0 | F6: 0 | G6: 0 | H6: 0 | I6: 0 | K6: 4.8297 | L6: 98.0614951 | M6: 98.06409612 | N6: 66.72 | O6: 0.88 | P6: 0.01853333333
C7: 4 | D7: 0 | E7: 0 | F7: 0 | G7: 0 | H7: 0 | I7: 0 | K7: 4.4084 | L7: 94.89907032 | M7: 94.92250155 | N7: 66.24 | O7: 0.84 | P7: 0.0184
C8: 5.5 | D8: 0 | E8: 0 | F8: 0 | G8: 0 | H8: 0 | I8: 0 | K8: 3.9835 | L8: 92.42516146 | M8: 92.46341987 | N8: 63.99 | O8: 0.77 | P8: 0.017775
C9: 7 | D9: 0 | E9: 0 | F9: 0 | G9: 0 | H9: 0 | I9: 0 | K9: 3.6902 | L9: 90.64644529 | M9: 90.68970015 | N9: 63.12 | O9: 0.73 | P9: 0.01753333333
C10: 9 | D10: 0 | E10: 0 | F10: 0 | G10: 0 | H10: 0 | I10: 0 | K10: 3.3605 | L10: 88.45786106 | M10: 88.53137354 | N10: 62.16 | O10: 0.7 | P10: 0.01726666667
C11: 11 | D11: 0 | E11: 0 | F11: 0 | G11: 0 | H11: 0 | I11: 0 | K11: 3.0902 | L11: 86.64991936 | M11: 86.7492232 | N11: 61.56 | O11: 0.68 | P11: 0.0171
C12: 13.5 | D12: 0 | E12: 0 | F12: 0 | G12: 0 | H12: 0 | I12: 0 | K12: 2.8128 | L12: 84.81554226 | M12: 84.95061153 | N12: 61.07 | O12: 0.67 | P12: 0.01696388889
C13: 16 | D13: 0 | E13: 0 | F13: 0 | G13: 0 | H13: 0 | I13: 0 | K13: 2.5868 | L13: 83.35051058 | M13: 83.50649075 | N13: 60.67 | O13: 0.65 | P13: 0.01685277778
C14: 19 | D14: 0 | E14: 0 | F14: 0 | G14: 0 | H14: 0 | I14: 0 | K14: 2.3677 | L14: 81.89962911 | M14: 82.07635775 | N14: 60.84 | O14: 0.64 | P14: 0.0169
C15: 22 | D15: 3.767473438 | E15: 66.12514844 | F15: 72.02008061 | G15: 0 | H15: 0 | I15: 0 | K15: 2.1815 | L15: 80.67313345 | M15: 80.86525985 | N15: 60.88 | O15: 0.62 | P15: 0.01691111111
C16: 25.5 | D16: 3.021948437 | E16: 66.05785201 | F16: 70.74840892 | G16: 0 | H16: 0 | I16: 0 | K16: 1.9949 | L16: 79.44392224 | M16: 79.65072889 | N16: 62.46 | O16: 0.6 | P16: 0.01735
C17: 29 | D17: 2.170640625 | E17: 65.79948581 | F17: 69.32248504 | G17: 0 | H17: 0 | I17: 0 | K17: 1.8573 | L17: 78.51683572 | M17: 78.73297957 | N17: 62.95 | O17: 0.58 | P17: 0.01748611111
C18: 33 | D18: 1.476179687 | E18: 65.41031427 | F18: 67.77172204 | G18: 0 | H18: 0 | I18: 0 | K18: 1.6914 | L18: 77.39832026 | M18: 77.63313622 | N18: 64.04 | O18: 0.55 | P18: 0.01778888889
C19: 37 | D19: 0.9661421875 | E19: 64.4891555 | F19: 65.91448897 | G19: 0 | H19: 0 | I19: 0 | K19: 1.5532 | L19: 76.45297554 | M19: 76.69567424 | N19: 64.15 | O19: 0.53 | P19: 0.01781944444
C20: 41.5 | D20: 0.627953125 | E20: 62.71779892 | F20: 63.63152506 | G20: 0 | H20: 0 | I20: 0 | K20: 1.4391 | L20: 75.63820177 | M20: 75.87954609 | N20: 64.19 | O20: 0.51 | P20: 0.01783055556
C21: 46 | D21: 0.4259921875 | E21: 60.28702961 | F21: 61.15432777 | G21: 0 | H21: 0 | I21: 0 | K21: 1.3445 | L21: 74.93532584 | M21: 75.1714481 | N21: 63.57 | O21: 0.5 | P21: 0.01765833333
C22: 51 | D22: 0.3083703125 | E22: 57.3683991 | F22: 58.44787958 | G22: 0 | H22: 0 | I22: 0 | K22: 1.2521 | L22: 74.21550613 | M22: 74.44619019 | N22: 63.02 | O22: 0.49 | P22: 0.01750555556
C23: 56 | D23: 0.2512515625 | E23: 54.77358891 | F23: 56.06111159 | G23: 0 | H23: 0 | I23: 0 | K23: 1.1766 | L23: 73.59417357 | M23: 73.82131162 | N23: 62.6 | O23: 0.47 | P23: 0.01738888889
C24: 60.5 | D24: 0.2290796875 | E24: 52.83170335 | F24: 54.44028121 | G24: 0 | H24: 0 | I24: 0 | K24: 1.1087 | L24: 73.02450113 | M24: 73.24977461 | N24: 61.98 | O24: 0.46 | P24: 0.01721666667
B25: raw_strm10.dat | C25: 1 | D25: 0 | E25: 0 | F25: 0 | G25: 0 | H25: 0 | I25: 0 | K25: 5.9627 | L25: 0 | M25: 0 | N25: 79.47 | O25: 0.69 | P25: 0.022075 | V25: =($K25/$D25-1) -> 
C26: 1.5 | D26: 0 | E26: 0 | F26: 0 | G26: 0 | H26: 0 | I26: 0 | K26: 5.504 | L26: 102.8155725 | M26: 102.8553845 | N26: 81.19 | O26: 1.42 | P26: 0.02255277778 | T26: =bdrate($D26:$D46,E26:E46,$K26:$K46,L26:L46) -> -0.7499455763 | U26: =bdrate($D26:$D46,F26:F46,$K26:$K46,M26:M46) -> -0.3929525597
C27: 2 | D27: 0 | E27: 0 | F27: 0 | G27: 0 | H27: 0 | I27: 0 | K27: 5.0146 | L27: 100.1808995 | M27: 100.181365 | N27: 79.92 | O27: 1.06 | P27: 0.0222
C28: 3 | D28: 0 | E28: 0 | F28: 0 | G28: 0 | H28: 0 | I28: 0 | K28: 4.4444 | L28: 98.10087463 | M28: 98.10176385 | N28: 68.53 | O28: 0.82 | P28: 0.01903611111
C29: 4 | D29: 0 | E29: 0 | F29: 0 | G29: 0 | H29: 0 | I29: 0 | K29: 4.0307 | L29: 94.97714852 | M29: 95.00896584 | N29: 67.21 | O29: 0.77 | P29: 0.01866944444
C30: 5.5 | D30: 0 | E30: 0 | F30: 0 | G30: 0 | H30: 0 | I30: 0 | K30: 3.6082 | L30: 92.47061031 | M30: 92.52745459 | N30: 65.56 | O30: 0.71 | P30: 0.01821111111
C31: 7 | D31: 0 | E31: 0 | F31: 0 | G31: 0 | H31: 0 | I31: 0 | K31: 3.3246 | L31: 90.70150928 | M31: 90.76382985 | N31: 64.66 | O31: 0.67 | P31: 0.01796111111
C32: 9 | D32: 0 | E32: 0 | F32: 0 | G32: 0 | H32: 0 | I32: 0 | K32: 3.0001 | L32: 88.49959023 | M32: 88.59742588 | N32: 63.94 | O32: 0.66 | P32: 0.01776111111
C33: 11 | D33: 0 | E33: 0 | F33: 0 | G33: 0 | H33: 0 | I33: 0 | K33: 2.7233 | L33: 86.63864409 | M33: 86.77421349 | N33: 63.63 | O33: 0.64 | P33: 0.017675
C34: 13.5 | D34: 0 | E34: 0 | F34: 0 | G34: 0 | H34: 0 | I34: 0 | K34: 2.4356 | L34: 84.77981572 | M34: 84.95546696 | N34: 65.1 | O34: 0.63 | P34: 0.01808333333
C35: 16 | D35: 0 | E35: 0 | F35: 0 | G35: 0 | H35: 0 | I35: 0 | K35: 2.2104 | L35: 83.31506177 | M35: 83.517374 | N35: 66.59 | O35: 0.6 | P35: 0.01849722222
C36: 19 | D36: 0 | E36: 0 | F36: 0 | G36: 0 | H36: 0 | I36: 0 | K36: 1.9751 | L36: 81.78514285 | M36: 82.02229756 | N36: 68.12 | O36: 0.59 | P36: 0.01892222222
C37: 22 | D37: 3.561720312 | E37: 73.51517647 | F37: 81.72980409 | G37: 0 | H37: 0 | I37: 0 | K37: 1.7881 | L37: 80.59196175 | M37: 80.84224751 | N37: 68.85 | O37: 0.56 | P37: 0.019125
C38: 25.5 | D38: 2.656996875 | E38: 73.19324161 | F38: 79.34930937 | G38: 0 | H38: 0 | I38: 0 | K38: 1.6214 | L38: 79.47670026 | M38: 79.72847659 | N38: 69.44 | O38: 0.54 | P38: 0.01928888889
C39: 29 | D39: 1.850465625 | E39: 72.57343455 | F39: 76.3708266 | G39: 0 | H39: 0 | I39: 0 | K39: 1.4873 | L39: 78.55642091 | M39: 78.80669009 | N39: 69.63 | O39: 0.52 | P39: 0.01934166667
C40: 33 | D40: 1.206798438 | E40: 71.09255674 | F40: 72.96016117 | G40: 0 | H40: 0 | I40: 0 | K40: 1.3555 | L40: 77.63234465 | M40: 77.88001499 | N40: 69.44 | O40: 0.49 | P40: 0.01928888889
C41: 37 | D41: 0.760384375 | E41: 68.62054084 | F41: 69.4369697 | G41: 0 | H41: 0 | I41: 0 | K41: 1.2505 | L41: 76.8352254 | M41: 77.07786878 | N41: 68.81 | O41: 0.47 | P41: 0.01911388889
C42: 41.5 | D42: 0.482809375 | E42: 65.53408053 | F42: 66.04432767 | G42: 0 | H42: 0 | I42: 0 | K42: 1.1584 | L42: 76.0689098 | M42: 76.30590729 | N42: 68.05 | O42: 0.46 | P42: 0.01890277778
C43: 46 | D43: 0.32898125 | E43: 62.38733562 | F43: 63.07697522 | G43: 0 | H43: 0 | I43: 0 | K43: 1.0724 | L43: 75.36541717 | M43: 75.59860947 | N43: 67.67 | O43: 0.45 | P43: 0.01879722222
C44: 51 | D44: 0.2470984375 | E44: 59.35854872 | F44: 60.55703863 | G44: 0 | H44: 0 | I44: 0 | K44: 0.9932 | L44: 74.6678014 | M44: 74.8990446 | N44: 67.07 | O44: 0.43 | P44: 0.01863055556
C45: 56 | D45: 0.216984375 | E45: 57.08496555 | F45: 58.80685304 | G45: 0 | H45: 0 | I45: 0 | K45: 0.9259 | L45: 74.0487947 | M45: 74.27447534 | N45: 66.37 | O45: 0.42 | P45: 0.01843611111
C46: 60.5 | D46: 0.206490625 | E46: 55.22281885 | F46: 57.42963582 | G46: 0 | H46: 0 | I46: 0 | K46: 0.8647 | L46: 73.4631192 | M46: 73.68769563 | N46: 65.84 | O46: 0.41 | P46: 0.01828888889
B47: raw_strm11.dat | C47: 1 | D47: 0 | E47: 0 | F47: 0 | G47: 0 | H47: 0 | I47: 0 | K47: 6.4704 | L47: 0 | M47: 0 | N47: 78.11 | O47: 0.58 | P47: 0.02169722222 | V47: =($K47/$D47-1) -> 
C48: 1.5 | D48: 0 | E48: 0 | F48: 0 | G48: 0 | H48: 0 | I48: 0 | K48: 6.0594 | L48: 102.553231 | M48: 102.5673509 | N48: 80.47 | O48: 1.41 | P48: 0.02235277778 | T48: =bdrate($D48:$D68,E48:E68,$K48:$K68,L48:L68) ->  | U48: =bdrate($D48:$D68,F48:F68,$K48:$K68,M48:M68) -> -0.5615797015
C49: 2 | D49: 0 | E49: 0 | F49: 0 | G49: 0 | H49: 0 | I49: 0 | K49: 5.5768 | L49: 100.04826 | M49: 100.0514313 | N49: 77.12 | O49: 1.09 | P49: 0.02142222222
C50: 3 | D50: 0 | E50: 0 | F50: 0 | G50: 0 | H50: 0 | I50: 0 | K50: 5.007 | L50: 98.09548802 | M50: 98.09609739 | N50: 66.47 | O50: 0.89 | P50: 0.01846388889
C51: 4 | D51: 0 | E51: 0 | F51: 0 | G51: 0 | H51: 0 | I51: 0 | K51: 4.6012 | L51: 94.95260008 | M51: 94.98285889 | N51: 65.27 | O51: 0.86 | P51: 0.01813055556
C52: 5.5 | D52: 0 | E52: 0 | F52: 0 | G52: 0 | H52: 0 | I52: 0 | K52: 4.1739 | L52: 92.46091252 | M52: 92.50593348 | N52: 63.72 | O52: 0.79 | P52: 0.0177
C53: 7 | D53: 0 | E53: 0 | F53: 0 | G53: 0 | H53: 0 | I53: 0 | K53: 3.886 | L53: 90.7086297 | M53: 90.75734388 | N53: 62.76 | O53: 0.76 | P53: 0.01743333333
C54: 9 | D54: 0 | E54: 0 | F54: 0 | G54: 0 | H54: 0 | I54: 0 | K54: 3.5654 | L54: 88.54904821 | M54: 88.62707392 | N54: 61.2 | O54: 0.71 | P54: 0.017
C55: 11 | D55: 0 | E55: 0 | F55: 0 | G55: 0 | H55: 0 | I55: 0 | K55: 3.3001 | L55: 86.74479848 | M55: 86.85629434 | N55: 60.79 | O55: 0.69 | P55: 0.01688611111
C56: 13.5 | D56: 0 | E56: 0 | F56: 0 | G56: 0 | H56: 0 | I56: 0 | K56: 3.0054 | L56: 84.79554368 | M56: 84.96738567 | N56: 61.36 | O56: 0.67 | P56: 0.01704444444
C57: 16 | D57: 0 | E57: 0 | F57: 0 | G57: 0 | H57: 0 | I57: 0 | K57: 2.7786 | L57: 83.3482794 | M57: 83.5426924 | N57: 61.76 | O57: 0.63 | P57: 0.01715555556
C58: 19 | D58: 0 | E58: 0 | F58: 0 | G58: 0 | H58: 0 | I58: 0 | K58: 2.5756 | L58: 81.97407653 | M58: 82.17913115 | N58: 61.88 | O58: 0.62 | P58: 0.01718888889
C59: 22 | D59: 3.800309375 | E59: 67.61297963 | F59: 75.37700589 | G59: 0 | H59: 0 | I59: 0 | K59: 2.391 | L59: 80.7553188 | M59: 80.97652685 | N59: 62.7 | O59: 0.61 | P59: 0.01741666667
C60: 25.5 | D60: 3.20118125 | E60: 67.57090982 | F60: 73.90541807 | G60: 0 | H60: 0 | I60: 0 | K60: 2.2144 | L60: 79.53736308 | M60: 79.77887049 | N60: 65.9 | O60: 0.62 | P60: 0.01830555556
C61: 29 | D61: 2.419928125 | E61: 67.24176337 | F61: 72.03886732 | G61: 0 | H61: 0 | I61: 0 | K61: 2.0764 | L61: 78.55846855 | M61: 78.80624467 | N61: 64.58 | O61: 0.59 | P61: 0.01793888889
C62: 33 | D62: 1.708571875 | E62: 66.6946218 | F62: 69.82161237 | G62: 0 | H62: 0 | I62: 0 | K62: 1.9397 | L62: 77.56718032 | M62: 77.81974555 | N62: 64.69 | O62: 0.58 | P62: 0.01796944444
C63: 37 | D63: 1.161342188 | E63: 65.36612829 | F63: 67.20787754 | G63: 0 | H63: 0 | I63: 0 | K63: 1.8178 | L63: 76.6797925 | M63: 76.94102677 | N63: 64.55 | O63: 0.57 | P63: 0.01793055556
C64: 41.5 | D64: 0.7599828125 | E64: 62.93942493 | F64: 64.26864745 | G64: 0 | H64: 0 | I64: 0 | K64: 1.7067 | L64: 75.84015728 | M64: 76.10998299 | N64: 64.69 | O64: 0.56 | P64: 0.01796944444
C65: 46 | D65: 0.5003484375 | E65: 59.82728492 | F65: 61.20156038 | G65: 0 | H65: 0 | I65: 0 | K65: 1.6053 | L65: 75.07115549 | M65: 75.34940926 | N65: 64.72 | O65: 0.56 | P65: 0.01797777778
C66: 51 | D66: 0.3350890625 | E66: 56.3378057 | F66: 58.11550402 | G66: 0 | H66: 0 | I66: 0 | K66: 1.5111 | L66: 74.31150181 | M66: 74.59569239 | N66: 64.69 | O66: 0.54 | P66: 0.01796944444
C67: 56 | D67: 0.2493015625 | E67: 53.25409536 | F67: 55.63189864 | G67: 0 | H67: 0 | I67: =G67/3600 -> 0 | K67: 1.4272 | L67: 73.63140938 | M67: 73.92503698 | N67: 64.68 | O67: 0.53 | P67: =N67/3600 -> 0.01796666667 | Q67: =N67/G67 ->  | R67: =O67/H67 -> 
C68: 60.5 | D68: 0.2189328125 | E68: 51.20671855 | F68: 53.98367014 | G68: 0 | H68: 0 | I68: 0 | K68: 1.3535 | L68: 73.00247458 | M68: 73.30728575 | N68: 64.52 | O68: 0.52 | P68: 0.01792222222
B69: raw_strm12.dat | C69: 1 | D69: 0 | E69: 0 | F69: 0 | G69: 0 | H69: 0 | I69: 0 | K69: 6.6184 | L69: 0 | M69: 0 | N69: 80.4 | O69: 0.65 | P69: 0.02233333333 | V69: =($K69/$D69-1) -> 
C70: 1.5 | D70: 0 | E70: 0 | F70: 0 | G70: 0 | H70: 0 | I70: 0 | K70: 6.1991 | L70: 102.5347714 | M70: 102.555856 | N70: 81.43 | O70: 1.39 | P70: 0.02261944444 | T70: =bdrate($D70:$D90,E70:E90,$K70:$K90,L70:L90) -> -0.2673154954 | U70: =bdrate($D70:$D90,F70:F90,$K70:$K90,M70:M90) -> -0.2440720998
C71: 2 | D71: 0 | E71: 0 | F71: 0 | G71: 0 | H71: 0 | I71: 0 | K71: 5.7103 | L71: 100.0105913 | M71: 100.0132203 | N71: 77.5 | O71: 1.06 | P71: 0.02152777778
C72: 3 | D72: 0 | E72: 0 | F72: 0 | G72: 0 | H72: 0 | I72: 0 | K72: 5.1422 | L72: 98.08274536 | M72: 98.08422607 | N72: 68.97 | O72: 0.93 | P72: 0.01915833333
C73: 4 | D73: 0 | E73: 0 | F73: 0 | G73: 0 | H73: 0 | I73: 0 | K73: 4.7336 | L73: 94.92359825 | M73: 94.94426296 | N73: 67.81 | O73: 0.89 | P73: 0.01883611111
C74: 5.5 | D74: 0 | E74: 0 | F74: 0 | G74: 0 | H74: 0 | I74: 0 | K74: 4.3029 | L74: 92.40200206 | M74: 92.43694282 | N74: 66.5 | O74: 0.83 | P74: 0.01847222222
C75: 7 | D75: 0 | E75: 0 | F75: 0 | G75: 0 | H75: 0 | I75: 0 | K75: 4.0077 | L75: 90.61722493 | M75: 90.65117852 | N75: 65 | O75: 0.78 | P75: 0.01805555556
C76: 9 | D76: 0 | E76: 0 | F76: 0 | G76: 0 | H76: 0 | I76: 0 | K76: 3.679 | L76: 88.44590271 | M76: 88.50120798 | N76: 63.89 | O76: 0.75 | P76: 0.01774722222
C77: 11 | D77: 0 | E77: 0 | F77: 0 | G77: 0 | H77: 0 | I77: 0 | K77: 3.4007 | L77: 86.61397471 | M77: 86.69784798 | N77: 63.46 | O77: 0.71 | P77: 0.01762777778
C78: 13.5 | D78: 0 | E78: 0 | F78: 0 | G78: 0 | H78: 0 | I78: 0 | K78: 3.1141 | L78: 84.77331556 | M78: 84.89614967 | N78: 63.27 | O78: 0.68 | P78: 0.017575
C79: 16 | D79: 0 | E79: 0 | F79: 0 | G79: 0 | H79: 0 | I79: 0 | K79: 2.8816 | L79: 83.34396895 | M79: 83.49246525 | N79: 63.06 | O79: 0.65 | P79: 0.01751666667
C80: 19 | D80: 0 | E80: 0 | F80: 0 | G80: 0 | H80: 0 | I80: 0 | K80: 2.6786 | L80: 81.99852441 | M80: 82.15063902 | N80: 62.8 | O80: 0.65 | P80: 0.01744444444
C81: 22 | D81: 3.856965625 | E81: 77.6521558 | F81: 80.87004044 | G81: 0 | H81: 0 | I81: 0 | K81: 2.5078 | L81: 80.84603191 | M81: 81.00339086 | N81: 63 | O81: 0.62 | P81: 0.0175
C82: 25.5 | D82: 3.217992188 | E82: 77.2676124 | F82: 79.33453807 | G82: 0 | H82: 0 | I82: 0 | K82: 2.3356 | L82: 79.64742981 | M82: 79.81605013 | N82: 64.1 | O82: 0.61 | P82: 0.01780555556
C83: 29 | D83: 2.51306875 | E83: 75.97828844 | F83: 76.96403288 | G83: 0 | H83: 0 | I83: 0 | K83: 2.1934 | L83: 78.67781721 | M83: 78.85163741 | N83: 63.19 | O83: 0.59 | P83: 0.01755277778
C84: 33 | D84: 1.818332813 | E84: 73.00002429 | F84: 73.47929432 | G84: 0 | H84: 0 | I84: 0 | K84: 2.0542 | L84: 77.67414307 | M84: 77.85553257 | N84: 63.36 | O84: 0.57 | P84: 0.0176
C85: 37 | D85: 1.262389063 | E85: 68.94279935 | F85: 69.30342732 | G85: 0 | H85: 0 | I85: 0 | K85: 1.936 | L85: 76.79117875 | M85: 76.97448658 | N85: 63.23 | O85: 0.56 | P85: 0.01756388889
C86: 41.5 | D86: 0.8418265625 | E86: 64.46712757 | F86: 64.92510881 | G86: 0 | H86: 0 | I86: 0 | K86: 1.8254 | L86: 75.93018414 | M86: 76.11948488 | N86: 62.64 | O86: 0.55 | P86: 0.0174
C87: 46 | D87: 0.557278125 | E87: 60.25352323 | F87: 60.94276844 | G87: 0 | H87: 0 | I87: 0 | K87: 1.7281 | L87: 75.14877306 | M87: 75.34008519 | N87: 62.09 | O87: 0.55 | P87: 0.01724722222
C88: 51 | D88: 0.365590625 | E88: 56.1172908 | F88: 57.36435786 | G88: 0 | H88: 0 | I88: 0 | K88: 1.6334 | L88: 74.37195634 | M88: 74.56761078 | N88: 62.03 | O88: 0.54 | P88: 0.01723055556
C89: 56 | D89: 0.25930625 | E89: 52.51529708 | F89: 54.29040348 | G89: 0 | H89: 0 | I89: 0 | K89: 1.5466 | L89: 73.65516822 | M89: 73.86198598 | N89: 62.21 | O89: 0.53 | P89: 0.01728055556
C90: 60.5 | D90: 0.216053125 | E90: 50.04035002 | F90: 52.27965991 | G90: 0 | H90: 0 | I90: 0 | K90: 1.4686 | L90: 73.00316436 | M90: 73.21828893 | N90: 62.33 | O90: 0.52 | P90: 0.01731388889
B91: raw_strm13.dat | C91: 1 | D91: 0 | E91: 0 | F91: 0 | G91: 0 | H91: 0 | I91: 0 | K91: 6.2077 | L91: 0 | M91: 0 | N91: 79.32 | O91: 0.63 | P91: 0.02203333333 | V91: =($K91/$D91-1) -> 
C92: 1.5 | D92: 0 | E92: 0 | F92: 0 | G92: 0 | H92: 0 | I92: 0 | K92: 5.7976 | L92: 102.8008867 | M92: 102.8563168 | N92: 80.79 | O92: 1.48 | P92: 0.02244166667 | T92: =bdrate($D92:$D112,E92:E112,$K92:$K112,L92:L112) ->  | U92: =bdrate($D92:$D112,F92:F112,$K92:$K112,M92:M112) -> -0.6367935975
C93: 2 | D93: 0 | E93: 0 | F93: 0 | G93: 0 | H93: 0 | I93: 0 | K93: 5.2935 | L93: 100.1000521 | M93: 100.100894 | N93: 76.97 | O93: 1.09 | P93: 0.02138055556
C94: 3 | D94: 0 | E94: 0 | F94: 0 | G94: 0 | H94: 0 | I94: 0 | K94: 4.705 | L94: 98.13148919 | M94: 98.1316215 | N94: 66.46 | O94: 0.83 | P94: 0.01846111111
C95: 4 | D95: 0 | E95: 0 | F95: 0 | G95: 0 | H95: 0 | I95: 0 | K95: 4.2843 | L95: 94.87570088 | M95: 94.8889543 | N95: 65.11 | O95: 0.8 | P95: 0.01808611111
C96: 5.5 | D96: 0 | E96: 0 | F96: 0 | G96: 0 | H96: 0 | I96: 0 | K96: 3.8535 | L96: 92.34857675 | M96: 92.37491447 | N96: 63.66 | O96: 0.76 | P96: 0.01768333333
C97: 7 | D97: 0 | E97: 0 | F97: 0 | G97: 0 | H97: 0 | I97: 0 | K97: 3.5596 | L97: 90.55788237 | M97: 90.58860104 | N97: 62.46 | O97: 0.73 | P97: 0.01735
C98: 9 | D98: 0 | E98: 0 | F98: 0 | G98: 0 | H98: 0 | I98: 0 | K98: 3.236 | L98: 88.4190565 | M98: 88.47061945 | N98: 61.59 | O98: 0.7 | P98: 0.01710833333
C99: 11 | D99: 0 | E99: 0 | F99: 0 | G99: 0 | H99: 0 | I99: 0 | K99: 2.9508 | L99: 86.53263408 | M99: 86.61385972 | N99: 61.89 | O99: 0.66 | P99: 0.01719166667
C100: 13.5 | D100: 0 | E100: 0 | F100: 0 | G100: 0 | H100: 0 | I100: 0 | K100: 2.6332 | L100: 84.55033369 | M100: 84.67965682 | N100: 64.45 | O100: 0.65 | P100: 0.01790277778
C101: 16 | D101: 0 | E101: 0 | F101: 0 | G101: 0 | H101: 0 | I101: 0 | K101: 2.3905 | L101: 83.10989027 | M101: 83.2566842 | N101: 66.29 | O101: 0.63 | P101: 0.01841388889
C102: 19 | D102: 0 | E102: 0 | F102: 0 | G102: 0 | H102: 0 | I102: 0 | K102: 2.1814 | L102: 81.80638278 | M102: 81.95151673 | N102: 67.33 | O102: 0.59 | P102: 0.01870277778
C103: 22 | D103: 3.679951562 | E103: 70.41633372 | F103: 75.19182693 | G103: 0 | H103: 0 | I103: 0 | K103: 2.0149 | L103: 80.728285 | M103: 80.85974664 | N103: 66.91 | O103: 0.56 | P103: 0.01858611111
C104: 25.5 | D104: 2.870378125 | E104: 70.25708365 | F104: 73.80357867 | G104: 0 | H104: 0 | I104: 0 | K104: 1.8598 | L104: 79.6336741 | M104: 79.75736436 | N104: 66.41 | O104: 0.55 | P104: 0.01844722222
C105: 29 | D105: 2.059404687 | E105: 69.82797868 | F105: 72.21958592 | G105: 0 | H105: 0 | I105: 0 | K105: 1.7257 | L105: 78.6846404 | M105: 78.80967526 | N105: 66.6 | O105: 0.54 | P105: 0.0185
C106: 33 | D106: 1.405373437 | E106: 68.96579174 | F106: 70.2896325 | G106: 0 | H106: 0 | I106: 0 | K106: 1.5941 | L106: 77.71540348 | M106: 77.84681345 | N106: 66.57 | O106: 0.56 | P106: 0.01849166667
C107: 37 | D107: 0.930559375 | E107: 67.16515001 | F107: 67.79087196 | G107: 0 | H107: 0 | I107: 0 | K107: 1.4839 | L107: 76.88361754 | M107: 77.01885465 | N107: 66.37 | O107: 0.52 | P107: 0.01843611111
C108: 41.5 | D108: 0.602334375 | E108: 64.3547883 | F108: 64.67482509 | G108: 0 | H108: 0 | I108: 0 | K108: 1.3747 | L108: 76.05274471 | M108: 76.19640755 | N108: 66.16 | O108: 0.51 | P108: 0.01837777778
C109: 46 | D109: 0.401059375 | E109: 61.15626426 | F109: 61.41901047 | G109: 0 | H109: 0 | I109: 0 | K109: 1.2835 | L109: 75.32119437 | M109: 75.46668493 | N109: 65.67 | O109: 0.48 | P109: 0.01824166667
C110: 51 | D110: 0.2891484375 | E110: 57.99704958 | F110: 58.53001198 | G110: 0 | H110: 0 | I110: 0 | K110: 1.2017 | L110: 74.61481208 | M110: 74.76270122 | N110: 65.44 | O110: 0.48 | P110: 0.01817777778
C111: 56 | D111: 0.23878125 | E111: 55.42348728 | F111: 56.49208272 | G111: 0 | H111: 0 | I111: 0 | K111: 1.1274 | L111: 73.96292104 | M111: 74.11465434 | N111: 64.99 | O111: 0.46 | P111: 0.01805277778
C112: 60.5 | D112: 0.2216609375 | E112: 53.59657902 | F112: 55.07751286 | G112: 0 | H112: 0 | I112: 0 | K112: 1.0618 | L112: 73.37856885 | M112: 73.5294882 | N112: 64.56 | O112: 0.45 | P112: 0.01793333333
B113: raw_strm14.dat | C113: 1 | D113: 0 | E113: 0 | F113: 0 | G113: 0 | H113: 0 | I113: 0 | K113: 6.5831 | L113: 0 | M113: 0 | N113: 77 | O113: 0.62 | P113: 0.02138888889 | V113: =($K113/$D113-1) -> 
C114: 1.5 | D114: 0 | E114: 0 | F114: 0 | G114: 0 | H114: 0 | I114: 0 | K114: 6.0902 | L114: 102.2763861 | M114: 102.2788415 | N114: 80.92 | O114: 1.05 | P114: 0.02247777778 | T114: =bdrate($D114:$D134,E114:E134,$K114:$K134,L114:L134) ->  | U114: =bdrate($D114:$D134,F114:F134,$K114:$K134,M114:M134) -> -0.4981122671
C115: 2 | D115: 0 | E115: 0 | F115: 0 | G115: 0 | H115: 0 | I115: 0 | K115: 5.6502 | L115: 100.0017307 | M115: 100.0055604 | N115: 77.97 | O115: 0.87 | P115: 0.02165833333
C116: 3 | D116: 0 | E116: 0 | F116: 0 | G116: 0 | H116: 0 | I116: 0 | K116: 5.1364 | L116: 98.13587652 | M116: 98.1403628 | N116: 66.06 | O116: 0.98 | P116: 0.01835
C117: 4 | D117: 0 | E117: 0 | F117: 0 | G117: 0 | H117: 0 | I117: 0 | K117: 4.717 | L117: 94.91807269 | M117: 94.93906228 | N117: 65.43 | O117: 0.83 | P117: 0.018175
C118: 5.5 | D118: 0 | E118: 0 | F118: 0 | G118: 0 | H118: 0 | I118: 0 | K118: 4.299 | L118: 92.44314441 | M118: 92.47595273 | N118: 65.09 | O118: 0.8 | P118: 0.01808055556
C119: 7 | D119: 0 | E119: 0 | F119: 0 | G119: 0 | H119: 0 | I119: 0 | K119: 4.0079 | L119: 90.6742585 | M119: 90.70904741 | N119: 62.16 | O119: 0.79 | P119: 0.01726666667
C120: 9 | D120: 0 | E120: 0 | F120: 0 | G120: 0 | H120: 0 | I120: 0 | K120: 3.6859 | L120: 88.53831945 | M120: 88.59775447 | N120: 61.55 | O120: 0.73 | P120: 0.01709722222
C121: 11 | D121: 0 | E121: 0 | F121: 0 | G121: 0 | H121: 0 | I121: 0 | K121: 3.4224 | L121: 86.76419544 | M121: 86.84730446 | N121: 60.66 | O121: 0.7 | P121: 0.01685
C122: 13.5 | D122: 0 | E122: 0 | F122: 0 | G122: 0 | H122: 0 | I122: 0 | K122: 3.1475 | L122: 84.92197229 | M122: 85.03812483 | N122: 60.34 | O122: 0.66 | P122: 0.01676111111
C123: 16 | D123: 0 | E123: 0 | F123: 0 | G123: 0 | H123: 0 | I123: 0 | K123: 2.9382 | L123: 83.51805528 | M123: 83.65085103 | N123: 60.21 | O123: 0.63 | P123: 0.016725
C124: 19 | D124: 0 | E124: 0 | F124: 0 | G124: 0 | H124: 0 | I124: 0 | K124: 2.7314 | L124: 82.06485684 | M124: 82.21434447 | N124: 60.09 | O124: 0.61 | P124: 0.01669166667
C125: 22 | D125: 3.85006875 | E125: 68.40845211 | F125: 75.8426822 | G125: 0 | H125: 0 | I125: 0 | K125: 2.5516 | L125: 80.83607727 | M125: 80.99909611 | N125: 60.58 | O125: 0.59 | P125: 0.01682777778
C126: 25.5 | D126: 3.314228125 | E126: 68.3637602 | F126: 74.5377339 | G126: 0 | H126: 0 | I126: 0 | K126: 2.3761 | L126: 79.58672422 | M126: 79.7660149 | N126: 61.13 | O126: 0.59 | P126: 0.01698055556
C127: 29 | D127: 2.546525 | E127: 68.11759486 | F127: 72.77232027 | G127: 0 | H127: 0 | I127: 0 | K127: 2.2382 | L127: 78.60963398 | M127: 78.80429823 | N127: 62.56 | O127: 0.58 | P127: 0.01737777778
C128: 33 | D128: 1.801385938 | E128: 67.43289627 | F128: 70.37029328 | G128: 0 | H128: 0 | I128: 0 | K128: 2.0894 | L128: 77.56197167 | M128: 77.76766793 | N128: 63.39 | O128: 0.56 | P128: 0.01760833333
C129: 37 | D129: 1.235515625 | E129: 65.8629187 | F129: 67.4338478 | G129: 0 | H129: 0 | I129: 0 | K129: 1.9591 | L129: 76.6127046 | M129: 76.82782637 | N129: 64.28 | O129: 0.54 | P129: 0.01785555556
C130: 41.5 | D130: 0.8138625 | E130: 63.11958793 | F130: 64.00275399 | G130: 0 | H130: 0 | I130: 0 | K130: 1.8384 | L130: 75.74476966 | M130: 75.96807136 | N130: 63.9 | O130: 0.52 | P130: 0.01775
C131: 46 | D131: 0.5423765625 | E131: 59.86610538 | F131: 60.63934319 | G131: 0 | H131: 0 | I131: =G131/3600 -> 0 | K131: 1.7336 | L131: 74.96680143 | M131: 75.19703356 | N131: 64.27 | O131: 0.52 | P131: =N131/3600 -> 0.01785277778 | Q131: =N131/G131 ->  | R131: =O131/H131 -> 
C132: 51 | D132: 0.366965625 | E132: 56.24928168 | F132: 57.24605429 | G132: 0 | H132: 0 | I132: 0 | K132: 1.6303 | L132: 74.17164915 | M132: 74.41124347 | N132: 64.09 | O132: 0.51 | P132: 0.01780277778
C133: 56 | D133: 0.26978125 | E133: 52.87320571 | F133: 54.22969671 | G133: 0 | H133: 0 | I133: 0 | K133: 1.544 | L133: 73.50223638 | M133: 73.74878176 | N133: 63.91 | O133: 0.5 | P133: 0.01775277778
C134: 60.5 | D134: 0.2236875 | E134: 50.09797009 | F134: 51.91742839 | G134: 0 | H134: 0 | I134: 0 | K134: 1.468 | L134: 72.87595892 | M134: 73.12649324 | N134: 64.1 | O134: 0.48 | P134: 0.01780555556
B135: raw_strm15.dat | C135: 1 | D135: 0 | E135: 0 | F135: 0 | G135: 0 | H135: 0 | I135: 0 | K135: 6.1018 | L135: 0 | M135: 0 | N135: 75.74 | O135: 0.74 | P135: 0.02103888889 | V135: =($K135/$D135-1) -> 
C136: 1.5 | D136: 0 | E136: 0 | F136: 0 | G136: 0 | H136: 0 | I136: 0 | K136: 5.6418 | L136: 102.8644694 | M136: 102.897777 | N136: 78.95 | O136: 1.46 | P136: 0.02193055556 | T136: =bdrate($D136:$D156,E136:E156,$K136:$K156,L136:L156) ->  | U136: =bdrate($D136:$D156,F136:F156,$K136:$K156,M136:M156) -> -0.4767498823
C137: 2 | D137: 0 | E137: 0 | F137: 0 | G137: 0 | H137: 0 | I137: 0 | K137: 5.1634 | L137: 100.2559192 | M137: 100.256807 | N137: 77.73 | O137: 1.09 | P137: 0.02159166667
C138: 3 | D138: 0 | E138: 0 | F138: 0 | G138: 0 | H138: 0 | I138: 0 | K138: 4.5827 | L138: 98.11928611 | M138: 98.11948181 | N138: 65.87 | O138: 0.85 | P138: 0.01829722222
C139: 4 | D139: 0 | E139: 0 | F139: 0 | G139: 0 | H139: 0 | I139: 0 | K139: 4.1764 | L139: 95.00864858 | M139: 95.04506375 | N139: 64.87 | O139: 0.81 | P139: 0.01801944444
C140: 5.5 | D140: 0 | E140: 0 | F140: 0 | G140: 0 | H140: 0 | I140: 0 | K140: 3.7509 | L140: 92.49945816 | M140: 92.56233929 | N140: 62.93 | O140: 0.74 | P140: 0.01748055556
C141: 7 | D141: 0 | E141: 0 | F141: 0 | G141: 0 | H141: 0 | I141: 0 | K141: 3.464 | L141: 90.71814675 | M141: 90.78648119 | N141: 61.98 | O141: 0.7 | P141: 0.01721666667
C142: 9 | D142: 0 | E142: 0 | F142: 0 | G142: 0 | H142: 0 | I142: 0 | K142: 3.1416 | L142: 88.54012693 | M142: 88.64421395 | N142: 61.12 | O142: 0.67 | P142: 0.01697777778
C143: 11 | D143: 0 | E143: 0 | F143: 0 | G143: 0 | H143: 0 | I143: 0 | K143: 2.8649 | L143: 86.68424897 | M143: 86.82355308 | N143: 60.74 | O143: 0.63 | P143: 0.01687222222
C144: 13.5 | D144: 0 | E144: 0 | F144: 0 | G144: 0 | H144: 0 | I144: 0 | K144: 2.571 | L144: 84.77279862 | M144: 84.96236507 | N144: 60.82 | O144: 0.61 | P144: 0.01689444444
C145: 16 | D145: 0 | E145: 0 | F145: 0 | G145: 0 | H145: 0 | I145: 0 | K145: 2.349 | L145: 83.34413347 | M145: 83.55991108 | N145: 61.45 | O145: 0.59 | P145: 0.01706944444
C146: 19 | D146: 0 | E146: 0 | F146: 0 | G146: 0 | H146: 0 | I146: 0 | K146: 2.1253 | L146: 81.86812346 | M146: 82.11334287 | N146: 63.61 | O146: 0.58 | P146: 0.01766944444
C147: 22 | D147: 3.63033125 | E147: 72.62005333 | F147: 78.60444953 | G147: 0 | H147: 0 | I147: 0 | K147: 1.9433 | L147: 80.68669665 | M147: 80.94571576 | N147: 64.18 | O147: 0.56 | P147: 0.01782777778
C148: 25.5 | D148: 2.80875625 | E148: 72.31956112 | F148: 76.98367325 | G148: 0 | H148: 0 | I148: 0 | K148: 1.7735 | L148: 79.53743481 | M148: 79.80333197 | N148: 64.61 | O148: 0.55 | P148: 0.01794722222
C149: 29 | D149: 1.985725 | E149: 71.80116993 | F149: 74.91272359 | G149: 0 | H149: 0 | I149: 0 | K149: 1.646 | L149: 78.63109357 | M149: 78.89710918 | N149: 63.86 | O149: 0.55 | P149: 0.01773888889
C150: 33 | D150: 1.326410937 | E150: 70.50118482 | F150: 72.23280475 | G150: 0 | H150: 0 | I150: 0 | K150: 1.5197 | L150: 77.71200122 | M150: 77.97660669 | N150: 63.05 | O150: 0.53 | P150: 0.01751388889
C151: 37 | D151: 0.8619125 | E151: 68.15764499 | F151: 69.16322031 | G151: 0 | H151: 0 | I151: 0 | K151: 1.4066 | L151: 76.87238431 | M151: 77.13338594 | N151: 62.66 | O151: 0.51 | P151: 0.01740555556
C152: 41.5 | D152: 0.550225 | E152: 64.96230163 | F152: 65.84578749 | G152: 0 | H152: 0 | I152: 0 | K152: 1.2996 | L152: 76.04233845 | M152: 76.30812475 | N152: 62.29 | O152: 0.5 | P152: 0.01730277778
C153: 46 | D153: 0.3702734375 | E153: 61.72594857 | F153: 62.82457547 | G153: 0 | H153: 0 | I153: 0 | K153: 1.2081 | L153: 75.30045153 | M153: 75.55876813 | N153: 62.12 | O153: 0.48 | P153: 0.01725555556
C154: 51 | D154: 0.267521875 | E154: 58.53280521 | F154: 60.02956033 | G154: 0 | H154: 0 | I154: 0 | K154: 1.1251 | L154: 74.58112131 | M154: 74.8420091 | N154: 62.05 | O154: 0.48 | P154: 0.01723611111
C155: 56 | D155: 0.227209375 | E155: 56.19888497 | F155: 58.08158491 | G155: 0 | H155: 0 | I155: 0 | K155: 1.0479 | L155: 73.92398055 | M155: 74.19094685 | N155: 62.05 | O155: 0.46 | P155: 0.01723611111
C156: 60.5 | D156: 0.2116203125 | E156: 54.07724193 | F156: 56.53795682 | G156: 0 | H156: 0 | I156: 0 | K156: 0.9842 | L156: 73.35310426 | M156: 73.6280035 | N156: 61.56 | O156: 0.44 | P156: 0.0171
B157: raw_strm16.dat | C157: 1 | D157: 0 | E157: 0 | F157: 0 | G157: 0 | H157: 0 | I157: 0 | K157: 6.2598 | L157: 0 | M157: 0 | N157: 77.46 | O157: 0.64 | P157: 0.02151666667 | V157: =($K157/$D157-1) -> 
C158: 1.5 | D158: 0 | E158: 0 | F158: 0 | G158: 0 | H158: 0 | I158: 0 | K158: 5.8347 | L158: 102.8335647 | M158: 102.8659557 | N158: 78.37 | O158: 1.48 | P158: 0.02176944444 | T158: =bdrate($D158:$D178,E158:E178,$K158:$K178,L158:L178) -> -0.512406659 | U158: =bdrate($D158:$D178,F158:F178,$K158:$K178,M158:M178) -> -0.4172268717
C159: 2 | D159: 0 | E159: 0 | F159: 0 | G159: 0 | H159: 0 | I159: 0 | K159: 5.3617 | L159: 100.2775039 | M159: 100.2778763 | N159: 75.97 | O159: 1.18 | P159: 0.02110277778
C160: 3 | D160: 0 | E160: 0 | F160: 0 | G160: 0 | H160: 0 | I160: 0 | K160: 4.7711 | L160: 98.12199466 | M160: 98.12202215 | N160: 65.78 | O160: 0.86 | P160: 0.01827222222
C161: 4 | D161: 0 | E161: 0 | F161: 0 | G161: 0 | H161: 0 | I161: 0 | K161: 4.3666 | L161: 94.98714138 | M161: 95.01381415 | N161: 64.89 | O161: 0.86 | P161: 0.018025
C162: 5.5 | D162: 0 | E162: 0 | F162: 0 | G162: 0 | H162: 0 | I162: 0 | K162: 3.9336 | L162: 92.45525599 | M162: 92.50149495 | N162: 63.04 | O162: 0.79 | P162: 0.01751111111
C163: 7 | D163: 0 | E163: 0 | F163: 0 | G163: 0 | H163: 0 | I163: 0 | K163: 3.6415 | L163: 90.65720045 | M163: 90.71166202 | N163: 61.74 | O163: 0.76 | P163: 0.01715
C164: 9 | D164: 0 | E164: 0 | F164: 0 | G164: 0 | H164: 0 | I164: 0 | K164: 3.3192 | L164: 88.51105941 | M164: 88.59180358 | N164: 60.77 | O164: 0.72 | P164: 0.01688055556
C165: 11 | D165: 0 | E165: 0 | F165: 0 | G165: 0 | H165: 0 | I165: 0 | K165: 3.05 | L165: 86.72408711 | M165: 86.8351297 | N165: 61.12 | O165: 0.69 | P165: 0.01697777778
C166: 13.5 | D166: 0 | E166: 0 | F166: 0 | G166: 0 | H166: 0 | I166: 0 | K166: 2.7505 | L166: 84.81425586 | M166: 84.97173338 | N166: 60.35 | O166: 0.66 | P166: 0.01676388889
C167: 16 | D167: 0 | E167: 0 | F167: 0 | G167: 0 | H167: 0 | I167: 0 | K167: 2.5401 | L167: 83.43514036 | M167: 83.61155743 | N167: 60.52 | O167: 0.64 | P167: 0.01681111111
C168: 19 | D168: 0 | E168: 0 | F168: 0 | G168: 0 | H168: 0 | I168: 0 | K168: 2.3231 | L168: 81.96545058 | M168: 82.16672788 | N168: 62.47 | O168: 0.62 | P168: 0.01735277778
C169: 22 | D169: 3.703085938 | E169: 74.58890583 | F169: 78.55040893 | G169: 0 | H169: 0 | I169: 0 | K169: 2.1544 | L169: 80.83375278 | M169: 81.04214587 | N169: 62.38 | O169: 0.6 | P169: 0.01732777778
C170: 25.5 | D170: 2.992571875 | E170: 74.30914672 | F170: 77.12660288 | G170: 0 | H170: 0 | I170: 0 | K170: 1.9839 | L170: 79.64886279 | M170: 79.86708421 | N170: 63.15 | O170: 0.57 | P170: 0.01754166667
C171: 29 | D171: 2.224759375 | E171: 73.55840963 | F171: 75.26068165 | G171: 0 | H171: 0 | I171: 0 | K171: 1.8526 | L171: 78.6939042 | M171: 78.91289641 | N171: 63.33 | O171: 0.57 | P171: 0.01759166667
C172: 33 | D172: 1.545071875 | E172: 71.68163088 | F172: 72.57775787 | G172: 0 | H172: 0 | I172: 0 | K172: 1.721 | L172: 77.72140784 | M172: 77.94403182 | N172: 62.9 | O172: 0.54 | P172: 0.01747222222
C173: 37 | D173: 1.038915625 | E173: 68.6018527 | F173: 69.17384872 | G173: 0 | H173: 0 | I173: 0 | K173: 1.6096 | L173: 76.8712812 | M173: 77.09702887 | N173: 62.72 | O173: 0.53 | P173: 0.01742222222
C174: 41.5 | D174: 0.67549375 | E174: 64.74344596 | F174: 65.28973168 | G174: 0 | H174: 0 | I174: 0 | K174: 1.5026 | L174: 76.03512818 | M174: 76.2646992 | N174: 62.76 | O174: 0.51 | P174: 0.01743333333
C175: 46 | D175: 0.4472203125 | E175: 60.98072815 | F175: 61.62566456 | G175: 0 | H175: 0 | I175: 0 | K175: 1.4131 | L175: 75.303804 | M175: 75.53728971 | N175: 62.41 | O175: 0.51 | P175: 0.01733611111
C176: 51 | D176: 0.307065625 | E176: 57.33525553 | F176: 58.35624473 | G176: 0 | H176: 0 | I176: 0 | K176: 1.3258 | L176: 74.54924637 | M176: 74.79238487 | N176: 62.98 | O176: 0.5 | P176: 0.01749444444
C177: 56 | D177: 0.245015625 | E177: 54.61948596 | F177: 56.18362726 | G177: 0 | H177: 0 | I177: 0 | K177: 1.2502 | L177: 73.8773548 | M177: 74.12538175 | N177: 62.4 | O177: 0.48 | P177: 0.01733333333
C178: 60.5 | D178: 0.22429375 | E178: 52.63571449 | F178: 54.69390286 | G178: 0 | H178: 0 | I178: 0 | K178: 1.1752 | L178: 73.23165319 | M178: 73.49227742 | N178: 62.9 | O178: 0.47 | P178: 0.01747222222
B179: raw_strm17.dat | C179: 1 | D179: 0 | E179: 0 | F179: 0 | G179: 0 | H179: 0 | I179: 0 | K179: 6.9577 | L179: 0 | M179: 0 | N179: 79.89 | O179: 0.7 | P179: 0.02219166667 | V179: =($K179/$D179-1) -> 
C180: 1.5 | D180: 0 | E180: 0 | F180: 0 | G180: 0 | H180: 0 | I180: 0 | K180: 6.5238 | L180: 102.2382782 | M180: 102.2507053 | N180: 80.24 | O180: 1.43 | P180: 0.02228888889 | T180: =bdrate($D180:$D200,E180:E200,$K180:$K200,L180:L200) ->  | U180: =bdrate($D180:$D200,F180:F200,$K180:$K200,M180:M200) -> 
C181: 2 | D181: 0 | E181: 0 | F181: 0 | G181: 0 | H181: 0 | I181: 0 | K181: 6.0821 | L181: 99.96995015 | M181: 99.97100537 | N181: 75.8 | O181: 1.27 | P181: 0.02105555556
C182: 3 | D182: 0 | E182: 0 | F182: 0 | G182: 0 | H182: 0 | I182: 0 | K182: 5.513 | L182: 98.16117512 | M182: 98.16152291 | N182: 68.54 | O182: 0.93 | P182: 0.01903888889
C183: 4 | D183: 0 | E183: 0 | F183: 0 | G183: 0 | H183: 0 | I183: 0 | K183: 5.09 | L183: 94.79758517 | M183: 94.80206668 | N183: 67.65 | O183: 1 | P183: 0.01879166667
C184: 5.5 | D184: 0 | E184: 0 | F184: 0 | G184: 0 | H184: 0 | I184: 0 | K184: 4.6556 | L184: 92.24357748 | M184: 92.25336923 | N184: 66.25 | O184: 0.96 | P184: 0.01840277778
C185: 7 | D185: 0 | E185: 0 | F185: 0 | G185: 0 | H185: 0 | I185: 0 | K185: 4.3543 | L185: 90.44217206 | M185: 90.45469169 | N185: 64.52 | O185: 0.91 | P185: 0.01792222222
C186: 9 | D186: 0 | E186: 0 | F186: 0 | G186: 0 | H186: 0 | I186: 0 | K186: 4.0222 | L186: 88.28206093 | M186: 88.3058202 | N186: 63.57 | O186: 0.9 | P186: 0.01765833333
C187: 11 | D187: 0 | E187: 0 | F187: 0 | G187: 0 | H187: 0 | I187: 0 | K187: 3.7483 | L187: 86.51072643 | M187: 86.54684686 | N187: 63.28 | O187: 0.89 | P187: 0.01757777778
C188: 13.5 | D188: 0 | E188: 0 | F188: 0 | G188: 0 | H188: 0 | I188: 0 | K188: 3.4645 | L188: 84.69458763 | M188: 84.74986139 | N188: 63.33 | O188: 0.86 | P188: 0.01759166667
C189: 16 | D189: 0 | E189: 0 | F189: 0 | G189: 0 | H189: 0 | I189: 0 | K189: 3.2259 | L189: 83.19302245 | M189: 83.26571555 | N189: 62.54 | O189: 0.82 | P189: 0.01737222222
C190: 19 | D190: 0 | E190: 0 | F190: 0 | G190: 0 | H190: 0 | I190: 0 | K190: 3.0151 | L190: 81.81821054 | M190: 81.89596311 | N190: 61.95 | O190: 0.79 | P190: 0.01720833333
C191: 22 | D191: 4.028173437 | E191: 65.98973503 | F191: 71.76156749 | G191: 0 | H191: 0 | I191: 0 | K191: 2.8371 | L191: 80.65065886 | M191: 80.73299263 | N191: 61.41 | O191: 0.75 | P191: 0.01705833333
C192: 25.5 | D192: 3.576240625 | E192: 65.96319512 | F192: 71.24189838 | G192: 0 | H192: 0 | I192: 0 | K192: 2.6666 | L192: 79.46900731 | M192: 79.55666848 | N192: 60.96 | O192: 0.75 | P192: 0.01693333333
C193: 29 | D193: 2.884228125 | E193: 65.69642312 | F193: 70.05857897 | G193: 0 | H193: 0 | I193: 0 | K193: 2.5311 | L193: 78.50622889 | M193: 78.59885398 | N193: 61.38 | O193: 0.76 | P193: 0.01705
C194: 33 | D194: 2.133429688 | E194: 65.28392127 | F194: 68.19857925 | G194: 0 | H194: 0 | I194: 0 | K194: 2.3895 | L194: 77.48008698 | M194: 77.5784814 | N194: 60.94 | O194: 0.75 | P194: 0.01692777778
C195: 37 | D195: 1.517848438 | E195: 64.18074351 | F195: 65.65957498 | G195: 0 | H195: 0 | I195: =G195/3600 -> 0 | K195: 2.2577 | L195: 76.51214868 | M195: 76.62033319 | N195: 61.1 | O195: 0.75 | P195: =N195/3600 -> 0.01697222222 | Q195: =N195/G195 ->  | R195: =O195/H195 -> 
C196: 41.5 | D196: 1.038021875 | E196: 61.89232583 | F196: 62.44148295 | G196: 0 | H196: 0 | I196: 0 | K196: 2.132 | L196: 75.59278027 | M196: 75.71071273 | N196: 61.46 | O196: 0.75 | P196: 0.01707222222
C197: 46 | D197: 0.7054375 | E197: 58.72736413 | F197: 58.96463313 | G197: 0 | H197: 0 | I197: 0 | K197: 2.0203 | L197: 74.7725489 | M197: 74.89626116 | N197: 61.66 | O197: 0.73 | P197: 0.01712777778
C198: 51 | D198: 0.4684296875 | E198: 54.97137933 | F198: 55.21194992 | G198: 0 | H198: 0 | I198: 0 | K198: 1.9097 | L198: 73.9432667 | M198: 74.07594552 | N198: 61.63 | O198: 0.72 | P198: 0.01711944444
C199: 56 | D199: 0.3311875 | E199: 51.39005557 | F199: 51.77229051 | G199: 0 | H199: 0 | I199: 0 | K199: 1.8209 | L199: 73.27142498 | M199: 73.4075125 | N199: 61.24 | O199: 0.71 | P199: 0.01701111111
C200: 60.5 | D200: 0.2573203125 | E200: 48.13358462 | F200: 48.7202441 | G200: 0 | H200: 0 | I200: 0 | K200: 1.7371 | L200: 72.62459487 | M200: 72.76679072 | N200: 61.62 | O200: 0.7 | P200: 0.01711666667
... 665 more rows
